Workbook

Sheet CoverSheet
A3: Electricity Distribution Business
A4: Price-Quality Regulation 1 April 2020 DPP Reset
A5: MAR waterfall model (2015 MAR to final)
A6: Final determination
A17: For publication 27 November 2019

Sheet Description
A1: Description
B2: This Excel workbook is one of a suite of models that accompanies the final determination of the default price-quality path for electricity distribution 2020-2025.
A4: Purpose
B5: This waterfall model produces a waterfall chart for each of 14 non-exempt EDB to show a breakdown of the drivers of the change in the building blocks allowable revenue (BBAR) from the 2015 reset to the BBAR for the DPP3 reset. A waterfall chart for each of the 14 EDBs is on the 'WaterfallCht' sheet. There is also a chart for the totals for the 14 EDBs. There are waterfall charts for only 14 of the 17 non-exempt EDBs. This is because the charts show the difference between the 2015 reset financial model and the financial model, so an EDB must feature in both of these models to be included in this model. Orion, Wellington Electricity and Powerco do not feature in both models as they have been on CPPs.
A6: Overview of model structure
B7: 1 | C7: This model incorporates a copy of much of the 2015 EDB DPP reset financial model. The sheets from 'Inputs' to 'MAR' are the copied sheets.
B8: 2 | C8: The modifications extend the capability of the 2015 model to take into account accelerated depreciation. With this modification, the copied sheets can perform the calculations for the 2020 reset.
B9: 3 | C9: The model inputs include both the set of inputs used for the 2015 reset and the set used for the DPP3 reset. When all the 2015 inputs are used, then the results reconcile with the 2015 financial model. When the DPP3 inputs are used, the results reconcile with the DPP3 financial model.
B10: 4 | C10: For each EDB, the model recalculates the MAR values for 15 different sets of input data, each of these 15 sets being a combination of input data from the 2015 reset for some inputs and input data from the DPP3 reset for the rest of the data. Arranging the sequence of these data combinations allows for the impact of various impacts to be determined for the waterfall charts.
B11: 5 | C11: We discuss the 15 sets of input data combinations below in the context of the waterfall chart for the total for selected EDBs.
A13: Waterfall chart
C14: The chart below is an example of the waterfall charts that this model prepares for each non-exempt EDB. A full set of 15 charts is available on the sheet 'WfallCht'.
B40: 6 | C40: The chart starts at its left hand with the brown column, indicating the value of the 2015/16 MAR (ie the MAR for the first year of the 2015 EDB reset) as 100%. All subsequent MAR values shown in the chart are relative to this value.
B41: 7 | C41: The chart ends at its right hand end with another blue column, this one indicating the DPP3 2020/21 MAR. Between these 2 columns, there are a series of rises and fall, indicating the impact of the various input categories listed along the x axis.
B42: 8 | C42: Consider, for example, the green rise column above the word 'Opex' on the x axis. The lower edge of this rise indicates the MAR if all the inputs for the parameters listed to the left of this Opex rise are at their DPP3 reset values. These parameters are: CPI for revals; RAB, Depn; Tax; Capex and Disposals. The Opex values themselves will be set to their 2015 reset values for this MAR value, as will all the other parameters to the right of the Opex rise. The MAR represented by the upper edge of the Opex rise will reflect the same input values as the lower edge, except that the DPP3 Opex values will be used. The height of the green rise therefore represents the impact of the change in opex forecasts from the 2015 reset to the DPP3 reset.
C43: Input categories
C44: The 15 input data categories are listed below, with commentary for some categories. The numbers in the "Mode" column below indicate the mode number used on Row 4 and Column D of the Inputs sheet to manage whether 2015 reset data or DPP3 reset data is used for the category. Note that there is a Mode 0.
B45: Mode
B46: 0 | C46: 2015 reset model inputs All inputs in Mode Zero are the same as for the 2015 reset financial model.
B47: 1 | C47: CPI for revals This is the forecast change in CPI from one quarter to the quarter 1 year later, and is used for calculating CPI indexed revaluations. There is just one row of inputs in the Inputs sheet for this category, being the one with the row heading "Forecast change in CPI used for revaluations".
B48: 2 | C48: RAB, Depn Six rows of inputs are in this category, the main ones being Opening RAB, Total depreciation and Closing RAB. These are all for the base year. For almost all EDBs, the rise in MAR for this category is one of most significant drivers of rises in the MAR. The impact of these inputs is entirely driven by information disclosure data and input methodologies, so there is no impact from Commission decisions taken as part of the 2020 reset. The opening RAB divided by total depreciation give the average remaining life for existing assets, so are a key determinant of the depreciation building block. The Closing RAB for the base year is the key determinant of the starting RAB at the start of the regulatory period, and so is in turn a key determinant of the return on the RAB and depreciation throughout the regulatory period.
B49: 3 | C49: Tax Five rows of inputs are in this category, being Opening RAB excluding revaluations, Adjusted depreciation, Tax depreciation, Opening regulatory tax asset value and Amortisation of initial differences in asset values. The Tax depreciation divided by the Opening regulatory tax asset value determines the effective average diminishing value depreciation rate for the base year, and this rate is used for determining the tax depreciation throughout the regulatory period. The other three input parameters are used to account for amortisations of differences between regulatory tax and cash tax. Rises and falls for this 'Tax' category do not reflect changes in the tax allowance building block. That building block will be strongly driven by the BBAR, which is an output of financial modelling rather than an input.
B50: 4 | C50: Capex Seven rows of inputs are in this category, being the panel of data of capex for the 5 years of the regulatory period plus two prior years.
B51: 5 | C51: Disposed assets Seven rows of inputs are in this category, being the panel of data of Disposed assets for the 5 years of the regulatory period plus two prior years.
B52: 6 | C52: Operating expenditure Seven rows of inputs are in this category, being the panel of data of Operating expenditure for the 5 years of the regulatory period plus two prior years.
B53: 7 | C53: Other regulated income Seven rows of inputs are in this category, being the panel of data of Other regulated income for the 5 years of the regulatory period plus two prior years. Other regulated income was accounted for in the 2015 reset by having a forecast values and taking account of this income when setting the price path. For the 2020 reset, the revenue cap with wash-up process will take account of actual values of other regulated income, and no forecast value will be used when setting the price path. We account for this change in approach to other regulated income in this waterfall model by setting the other regulated income forecast value for the 2020 reset to nil.
B54: 8 | C54: TCSD (Term Credit Spread Differential) This is a one row category.
B55: 9 | C55: Add. Allow. (Additional allowance) This is a one row category. The impact of this category is nil for all EDBs.
B56: 10 | C56: WACC (Vanilla WACC (67th percentile)) This is a single value input. It is a strong determinant of the return on capital building block and is the most significant source of 'fall' categories for almost all EDBs. The value for the DPP3 final decision is from a cost of capital determination that was made in September 2019.
B57: 11 | C57: Accel'ed Depn (Adjustment factor (for accelerated depreciation)) This is a one row category. It relates to a mechanism from the 2016 input methodology review for an EDB to apply for an acceleration of the depreciation of its 'existing assets'. The provision for accelerated deprecation did not exist for the 2015 reset, so an additional row has been added to the Inputs sheet to allow for this. The values entered for the 2015 reset have been set to nil to reflect that the provision did not apply.
B58: 12 | C58: CPI, price path (Forecast changes in the CPI element of the price path) This is the forecast change in CPI from one year to the next and is used for calculating the CPI indexation of the price path. There is just one row of inputs in the Inputs sheet for this category, being the one with the row heading "Forecast change in CPI used for revaluations". This CPI change parameter is calculated differently from the 'CPI for revals', in that this calculation is based on the sum of 4 consecutive CPI values divided by the sum of the 4 consecutive CPI values from one year earlier.
B59: 13 | C59: CPRG (Constant price revenue growth) Seven rows of inputs are in this category, being the panel of data of Other regulated income for the 5 years of the regulatory period plus two prior years. CPRG was taken into account in the 2015 reset in calculating the profile of the price path. This was because the form of control used at the time of that reset was a weighted average price path. That price path took account of the forecast CPRG values. The form of control was changed to a revenue cap as part of the 2016 input methodologies review, and this means that CPRG will no longer be required for setting the price path. We account for this change in the form of control in this waterfall model by setting the CPRG forecast value for the 2020 reset to nil.
B60: 14 | C60: X (for CPI-X) Two rows are in this category, being Industry-wide X factor and Alternative X factor. A non-zero X can have a significant impact on MAR values, but has no impact on BBAR values.
A64: Inputs sheet & overall operation of this workbook
B66: 1 | C66: The inputs sheet is an adaptation of the Inputs sheet of the 2015 DPP reset financial model on which this workbook is based. It includes all the inputs to this workbook, together with a significant amount of the processing required to produce the waterfall charts.
B67: 2 | C67: The sheet is divided into a number of panels, the panels being separated by rows and columns that have a light yellow fill colour. The panels are referred to as Panels A, B, C and D, these being the panels with a top left corner at Cell A1, A9, U9 and AM9 respectively. The panels are labelled with cells with a green fill colour.
B68: 3 | C68: Panel A is very simple and sets just: - which EDB is to be focused on in doing the various calculations and producing the EDB's waterfall chart (Cell C6). - the "mode", being a number determining the extent to which the 2015 versus 2020 reset inputs are to be used (Cell C5). If the chosen mode at Cell C5 is less than the mode number in Column A for each line of inputs, then the 2015 model inputs are used for that row of inputs, otherwise the 2020 inputs are used. A data table is used in the "Waterfall" sheet to step through 14 different values of the mode. This generates the data necessary to draw the waterfall chart for the chosen EDB. The macro for preparing the set of 15 waterfall charts steps through the choice of the 14 EDBs plus the chart for the totals of the 14 EDBs. There is a macro button on the "WfallCht" sheet to prepare this sheet.
B69: 4 | C69: Panel B consists of most of the used area of the Inputs sheet in the 2015 model. The links that transfer data from the Inputs sheet to the 'EDB data' sheet and other sheets from the 2015 model are largely still the same links in this workbook. The key difference in the Inputs sheet in this workbook is that the cells in this panel are no longer values but are instead formulas that reference the data in Panels C and D.
B70: 5 | C70: Panel C consists of the inputs to the DPP3 financial model, while Panel D consists of the inputs to the 2015 financial model. The data in Panel C is filled by links to theDPP3 financial model inputs. Panel D is filled with the values of the inputs to the 2015 financial model.
A71: Reconciliation sheet
C73: The "Reconciliation" sheet checks that this model produces outputs consistent with the 2015 and DPP3 reset financial models. When the mode is set to 0, this workbook should produce the same outputs as the 2015 financial model. When the mode is set to 14, this workbook should produce the same outputs as the DPP3 financial model. There are notes on the Reconciliation sheet as to how it operates. See Cells F2, W8, C39 and V39.
A75: The "Totals for selected EDBs" chart
C76: A waterfall chart of the totals for all non-exempt EDBs except those currently on a CPP is prepared by this workbook, and is the last chart on the WfallCht sheet. It is prepared on the Waterfall sheet when 'Totals for selected EDBs' is selected.
C77: Data for this chart is prepared in the named range "IndustryTotals" on the 'Waterfall' sheet. The values in this table are inserted through the VBA routine "Regenerate", which is the routine that also generates the charts on the WfallCht sheet. The VBA code that inserts the data starts with the VBA comment "Build table on the Waterfall sheet to chart the total for all non-exempts, except Orion, Powerco, Wellington."
C78: Note the formula at Waterfall!C21 and below. The formula selects the data from the data table to its immediate left except when "Totals for selected EDBs" is selected at D3. When the totals chart is selected, the data for the Column C formulas is taken from the totals column at the right of the "IndustryTotals" range.
A80: Model suite
C81: Follow the link 'Model map – EDB DPP3 final determination – 27 November 2019' on the Commission's EDB 2020-2025 default price-quality path determination web page for a graphical depiction of interconnections between the models and data sources.

Sheet Table of Contents
A1: Table of Contents
B4: Sheet Name | C4: Link
B5: Waterfall | C5: Waterfall calculations and chart for chosen EDB
C6: EDB names and values of MAR 2019/20
C7: Waterfall chart for chosen EDB
B8: WfallCht | C8: Waterfall charts for 14 EDBs
B9: Inputs | C9: Inputs
B10: EDB data | C10: Inputs for the selected distributor
B11: TIMING | C11: Intra-year timing
C12: Inputs
C13: Calculations
C14: Outputs
C15: Check for timing of revenue receipt
B16: RAB | C16: Regulatory asset base
C17: Inputs
C18: Calculations
C19: Outputs
B20: TAX | C20: Tax calculations
C21: Inputs
C22: Calculations
C23: Outputs
B24: BBAR | C24: Building blocks allowable revenue
C25: Inputs
C26: Calculations
C27: Outputs
B28: REV | C28: Revenue growth index
C29: Inputs
C30: Calculations
C31: Outputs
B32: MAR | C32: Maximum allowable revenue
C33: Inputs
C34: Calculations
C35: Outputs
B36: Reconciliation | C36: Reconciliation with financial models outputs
C37: Outputs

Sheet Waterfall
A1: Waterfall calculations and chart for chosen EDB
A3: EDB | D3: Total for selected EDBs
A4: Distributor number | D4: =MATCH(WfallEDB,EDBnames,0) -> 15
A5: Chosen mode | D5: 0
A7: EDB names and values of MAR 2019/20
B9: 1 | C9: 2 | D9: 3 | E9: 4 | F9: 5 | G9: 6 | H9: 7 | I9: 8 | J9: 9 | K9: 10 | L9: 11 | M9: 12 | N9: 13 | O9: 14 | P9: 15
B10: Alpine Energy | C10: Aurora Energy | D10: Centralines | E10: EA Networks | F10: Eastland Network | G10: Electricity Invercargill | H10: Horizon Energy | I10: Nelson Electricity | J10: Network Tasman | K10: OtagoNet | L10: The Lines Company | M10: Top Energy | N10: Unison Networks | O10: Vector Lines | P10: Total for selected EDBs
A11: Estimated 2019/20 allowable revenue | B11: =Inputs!C97 -> 49719.82703 | C11: =Inputs!D97 -> 67031.77007 | D11: =Inputs!E97 -> 14465.45298 | E11: =Inputs!F97 -> 37120.37321 | F11: =Inputs!G97 -> 27873.52195 | G11: =Inputs!H97 -> 13951.54334 | H11: =Inputs!I97 -> 23616.33857 | I11: =Inputs!J97 -> 6803.157236 | J11: =Inputs!K97 -> 28269.63342 | K11: =Inputs!L97 -> 27205.40425 | L11: =Inputs!M97 -> 40848.16814 | M11: =Inputs!N97 -> 48585.63677 | N11: =Inputs!O97 -> 112883.5122 | O11: =Inputs!P97 -> 417635.917 | P11: =SUM(B11:O11) -> 916010.2562
A13: Waterfall chart for chosen EDB
A16: PV(BBAR) for chosen EDB and chosen mode | G16: =BBAR!C57 -> 
A17: Starting price for applicable X factor | G17: =MAR!D57 -> 
G19: Direction | H19: Base | I19: Fall | J19: Rise
B20: =G17 ->  | C20: =B20 -> 
A21: 0 | C21: =IF(WfallEDB=$P$10,S49,B21) -> 812302.6813 | D21: MAR 2015/16 | E21: 1 | F21: =C21/$C$21 -> 1 | H21: 0 | I21: 0 | J21: 1
A22: 1 | C22: 817399.4255 | D22: CPI for revals | E22: =A22 -> 1 | F22: =C22/$C$21 -> 1.00627444 | G22: =IF(F22>F21,">","<") -> > | H22: =H21+J21-I22-0.00002%*0 -> 0.99999 | I22: =IF(F22<F21,F21-F22+0.00001,0.00001) -> 1e-05 | J22: =IF(F22>=F21,F22-F21+0.00001,0.00001) -> 0.006284439675
A23: 2 | C23: 929307.9741 | D23: RAB, Depn | E23: 2 | F23: 1.144041495 | G23: > | H23: =H22+J22-I23-0.00002%*0 -> 1.00626444 | I23: =IF(F23<F22,F22-F23+0.00001,0.00001) -> 1e-05 | J23: =IF(F23>=F22,F23-F22+0.00001,0.00001) -> 0.1377770555
A24: 3 | C24: 911686.1831 | D24: Tax | E24: 3 | F24: 1.122347869 | G24: < | H24: 1.122337869 | I24: 0.02170362658 | J24: 1e-05
A25: 4 | C25: 940465.6512 | D25: Capex | E25: 4 | F25: 1.157777357 | G25: > | H25: =H24+J24-I25-0.00002%*0 -> 1.122337869 | I25: 1e-05 | J25: 0.03543948807
A26: 5 | C26: 939666.4035 | D26: Disposals | E26: 5 | F26: 1.156793428 | G26: < | H26: 1.156783428 | I26: 0.0009939284404 | J26: 1e-05
A27: 6 | C27: 1010645.405 | D27: Opex | E27: 6 | F27: 1.24417342 | G27: > | H27: 1.156783428 | I27: 1e-05 | J27: 0.08738999154
A28: 7 | C28: 1012487.976 | D28: OR Income | E28: 7 | F28: 1.246441751 | G28: > | H28: 1.24416342 | I28: 1e-05 | J28: 0.002278330779
A29: 8 | C29: 1016751.207 | D29: TCSD | E29: 8 | F29: 1.251690078 | G29: > | H29: 1.246431751 | I29: 1e-05 | J29: 0.005258327628
A30: 9 | C30: 1016608.652 | D30: Add. Allow. | E30: 9 | F30: 1.251514583 | G30: < | H30: 1.251504583 | I30: 0.0001854949087 | J30: 1e-05
A31: 10 | C31: 829862.0395 | D31: WACC | E31: 10 | F31: 1.021616768 | G31: < | H31: 1.021606768 | I31: 0.2299078158 | J31: 1e-05
A32: 11 | C32: 829862.0395 | D32: Accel'ed Depn | E32: 11 | F32: 1.021616768 | G32: < | H32: 1.021606768 | I32: 1e-05 | J32: 1e-05
A33: 12 | C33: 826363.6888 | D33: CPI, price path | E33: 12 | F33: 1.017310059 | G33: < | H33: 1.017300059 | I33: 0.004316708368 | J33: 1e-05
A34: 13 | C34: 836349.924 | D34: CPRG | E34: 13 | F34: 1.029603796 | G34: > | H34: 1.017300059 | I34: 1e-05 | J34: 0.01230373668
A35: 14 | C35: 851993.2587 | D35: X (CPI-X) | E35: 14 | F35: 1.048861808 | G35: =IF(F35>F34,">","<") -> > | H35: 1.029593796 | I35: 1e-05 | J35: 0.01926801183
D36: MAR 2020/21 | H36: 1.048861808 | K36: =K42/C21 -> 1.127671098
G37: Check value, should = 0 | H37: =F35-H36 -> 0
E40: Text for textbox in chart and data for orange dot
J41: 2020/21 revenue | K41: =C35 -> 851993.2587
J42: Est 2019/20 allowable revenue | K42: =INDEX(B11:P11,1,SuppNum) -> 916010.2562
J43: MAR increase, 2020/21 MAR from est 2019/20 allowable rev | K43: =(K41-K42)/K42 -> -0.0698867694
K45: ="Revenue increase, est 2019/20 allow. revenue to 2020/21 MAR: " & TEXT(K43,"0.00%") -> Revenue increase, est 2019/20 allow. revenue to 2020/21 MAR: -6.99%
D48: Named range, Anchor2 | E48: =B10 -> Alpine Energy | F48: =C10 -> Aurora Energy | G48: Centralines | H48: EA Networks | I48: =F10 -> Eastland Network | J48: Electricity Invercargill | K48: Horizon Energy | L48: Nelson Electricity | M48: Network Tasman | N48: OtagoNet | O48: The Lines Company | P48: Top Energy | Q48: Unison Networks | R48: Vector Lines | S48: Total for selected EDBs
D49: MAR 2015/16 | E49: 30458.39221 | F49: 56511.66603 | G49: 9983.311486 | H49: 33046.58332 | I49: 22731.95846 | J49: 13565.26038 | K49: 22026.85063 | L49: 6824.407415 | M49: 28091.76336 | N49: 24779.53509 | O49: 34705.26322 | P49: 34231.36848 | Q49: 100101.5151 | R49: 395244.8061 | S49: =SUM(E49:R49) -> 812302.6813
D50: CPI for revals | E50: 30593.61692 | F50: 56854.98792 | G50: 10034.42128 | H50: 33286.33292 | I50: 22871.34629 | J50: 13637.42402 | K50: 22146.22414 | L50: 6863.878183 | M50: 28254.10952 | N50: 24938.51692 | O50: 34897.73397 | P50: 34436.06079 | Q50: 100677.3218 | R50: 397907.4509 | S50: =SUM(E50:R50) -> 817399.4255
D51: RAB, Depn | E51: 35844.42654 | F51: 70803.82543 | G51: 9836.518601 | H51: 39120.81776 | I51: 26444.28059 | J51: 15938.73066 | K51: 25814.83191 | L51: 6691.114639 | M51: 29004.65362 | N51: 29606.52143 | O51: 37195.76382 | P51: 39691.2972 | Q51: 114558.0749 | R51: 448757.117 | S51: 929307.9741
D52: Tax | E52: 34717.33048 | F52: 68897.91346 | G52: 9780.138295 | H52: 37937.05866 | I52: 26202.0094 | J52: 15543.7583 | K52: 25748.22633 | L52: 6511.440005 | M52: 28866.55527 | N52: 27831.76202 | O52: 36468.59823 | P52: 38484.5338 | Q52: 112220.5289 | R52: 442476.3299 | S52: 911686.1831
D53: VCA | E53: 35708.83796 | F53: 77328.73621 | G53: 10180.38909 | H53: 38183.86795 | I53: 25163.90251 | J53: 15320.77799 | K53: 25634.03715 | L53: 6839.735526 | M53: 29225.4471 | N53: 29658.39217 | O53: 37653.84974 | P53: 38520.80338 | Q53: 113497.1194 | R53: 457549.7551 | S53: 940465.6512
D54: Disposals | E54: 35766.80799 | F54: 77321.85458 | G54: 10173.95088 | H54: 38249.80622 | I54: 25212.1219 | J54: 15353.39873 | K54: 25653.33733 | L54: 6821.520171 | M54: 29177.92284 | N54: 29596.16098 | O54: 37510.18733 | P54: 38521.4565 | Q54: 113145.7958 | R54: 457162.0823 | S54: 939666.4035
D55: Opex | E55: 39715.64738 | F55: 101032.1632 | G55: 9923.795917 | H55: 41647.06285 | I55: 27653.88941 | J55: 15057.28036 | K55: 27902.76659 | L55: 6592.697205 | M55: 31242.03791 | N55: 31321.35736 | O55: 41930.25343 | P55: 40744.6253 | Q55: 119227.8156 | R55: 476654.0125 | S55: 1010645.405
D56: OR Income | E56: 39484.36609 | F56: 103031.9481 | G56: 10034.21613 | H56: 41574.56912 | I56: 27576.01143 | J56: 14958.58566 | K56: 28009.16046 | L56: 6682.077167 | M56: 31674.76421 | N56: 31889.41308 | O56: 41939.80128 | P56: 41067.53474 | Q56: 118706.1783 | R56: 475859.3503 | S56: 1012487.976
D57: TCSD | E57: 39484.36609 | F57: 103031.9481 | G57: 10034.21613 | H57: 41574.56912 | I57: 27576.01143 | J57: 14958.58566 | K57: 28009.16046 | L57: 6682.077167 | M57: 31674.76421 | N57: 31889.41308 | O57: 41937.46648 | P57: 41067.53474 | Q57: 119194.8166 | R57: 479636.2775 | S57: 1016751.207
D58: Add. Allow. | E58: 39379.54802 | F58: 103031.9481 | G58: 10034.21613 | H58: 41574.56912 | I58: 27576.01143 | J58: 14958.58566 | K58: 28009.16046 | L58: 6682.077167 | M58: 31674.76421 | N58: 31875.217 | O58: 41913.92564 | P58: 41067.53474 | Q58: 119194.8166 | R58: 479636.2775 | S58: 1016608.652
D59: WACC | E59: 34381.64945 | F59: 86738.59061 | G59: 8316.252442 | H59: 33187.87241 | I59: 22848.30106 | J59: 12279.74007 | K59: 24003.21429 | L59: 5462.295329 | M59: 26320.87432 | N59: 25717.40275 | O59: 35193.66394 | P59: 33476.46724 | Q59: 99855.65267 | R59: 382080.0629 | S59: 829862.0395
D60: Accel'ed Depn | E60: 34381.64945 | F60: 86738.59061 | G60: 8316.252442 | H60: 33187.87241 | I60: 22848.30106 | J60: 12279.74007 | K60: 24003.21429 | L60: 5462.295329 | M60: 26320.87432 | N60: 25717.40275 | O60: 35193.66394 | P60: 33476.46724 | Q60: 99855.65267 | R60: 382080.0629 | S60: 829862.0395
D61: CPI, price path | E61: 34230.72074 | F61: 86374.45195 | G61: 8280.430476 | H61: 33048.71002 | I61: 22751.36931 | J61: 12228.30012 | K61: 23902.71516 | L61: 5439.361963 | M61: 26210.42751 | N61: 25609.55792 | O61: 35046.69054 | P61: 33332.02249 | Q61: 99436.99294 | R61: 380471.9377 | S61: 826363.6888
D62: CPRG | E62: 34421.59408 | F62: 87334.54193 | G62: 8171.629327 | H62: 33258.71266 | I62: 22662.67135 | J62: 12257.51043 | K62: 23912.12399 | L62: 5501.767235 | M62: 26452.46034 | N62: 25779.3423 | O62: 34707.86906 | P62: 33163.32591 | Q62: 100019.2992 | R62: 388707.0762 | S62: 836349.924
D63: X (CPI-X) | E63: 42652.59408 | F63: 87334.54193 | G63: 9366.993578 | H63: 33258.71266 | I63: 24028.4361 | J63: 12257.51043 | K63: 23912.12399 | L63: 5501.767235 | M63: 26452.46034 | N63: 25779.3423 | O63: 34707.86906 | P63: 38014.53155 | Q63: 100019.2992 | R63: 388707.0762 | S63: 851993.2587

Sheet WfallCht
A1: Waterfall charts for 14 EDBs
AX3: Waterfall Charts
AX4: An aid to interpreting these charts is on the Description sheet, under the headings 'Waterfall Chart' and 'Input categories'.
AX5: The chart "Total for selected EDBs" is for all non-exempt EDBs except those on a CPP between April 2015 and March 2019, ie, except Orion, Powerco and Wellington Electricity.

Sheet Inputs
A1: Inputs
A2: A | B2: Choice of which EDB to consider and the chosen 'mode'.
B3: All input data is entered into this worksheet
B4: Waterfall chart parameters
B5: Chosen mode | C5: =Waterfall!D5 -> 0
A10: B | B10: Values for chosen mode | U10: C | V10: Values from Financial model | AM10: D | AN10: Values for 2015 reset model
A11: Mode | B11: Inputs that are the same for all distributors
A12: 1 | B12: 2020 reset timeline | C12: Value | D12: =IF($C$5<$A12,AN12,V12) -> 2013/14 | E12: 2014/15 | F12: 2015/16 | G12: 2016/17 | H12: 2017/18 | I12: 2018/19 | J12: 2019/20 | V12: =[1]Inputs!C4 -> 2018/19 | W12: =[1]Inputs!D4 -> 2019/20 | X12: =[1]Inputs!E4 -> 2020/21 | Y12: =[1]Inputs!F4 -> 2021/22 | Z12: =[1]Inputs!G4 -> 2022/23 | AA12: =[1]Inputs!H4 -> 2023/24 | AB12: =[1]Inputs!I4 -> 2024/25 | AN12: 2013/14 | AO12: =LEFT(AN12,4)+1 & "/" & RIGHT(AN12,2)+1 -> 2014/15 | AP12: =LEFT(AO12,4)+1 & "/" & RIGHT(AO12,2)+1 -> 2015/16 | AQ12: 2016/17 | AR12: 2017/18 | AS12: 2018/19 | AT12: 2019/20
A13: 0 | B13: Year in modelling period | D13: 1 | E13: 2 | F13: 3 | G13: 4 | H13: 5 | I13: 6 | J13: 7 | V13: =[1]Inputs!C5 -> 1 | W13: =[1]Inputs!D5 -> 2 | X13: =[1]Inputs!E5 -> 3 | Y13: =[1]Inputs!F5 -> 4 | Z13: =[1]Inputs!G5 -> 5 | AA13: =[1]Inputs!H5 -> 6 | AB13: =[1]Inputs!I5 -> 7 | AN13: 1 | AO13: 2 | AP13: 3 | AQ13: 4 | AR13: 5 | AS13: 6 | AT13: 7
A14: 0 | B14: Year in regulatory period | F14: 1 | G14: 2 | H14: 3 | I14: 4 | J14: 5 | X14: =[1]Inputs!E6 -> 1 | Y14: =[1]Inputs!F6 -> 2 | Z14: =[1]Inputs!G6 -> 3 | AA14: =[1]Inputs!H6 -> 4 | AB14: =[1]Inputs!I6 -> 5 | AP14: 1 | AQ14: 2 | AR14: 3 | AS14: 4 | AT14: 5
A15: 1 | B15: Forecast changes in CPI used for revaluations | D15: =IF($C$5<$A15,AN15,V15) -> 0.01533219761 | E15: 0.01426174497 | F15: 0.01736972705 | G15: 0.02113821138 | H15: 0.02166934189 | I15: 0.0211128946 | J15: 0.0205564473 | V15: =[1]Inputs!C7 -> 0.01483679525 | W15: =[1]Inputs!D7 -> 0.017 | X15: =[1]Inputs!E7 -> 0.019 | Y15: =[1]Inputs!F7 -> 0.02 | Z15: =[1]Inputs!G7 -> 0.02 | AA15: =[1]Inputs!H7 -> 0.02 | AB15: =[1]Inputs!I7 -> 0.02 | AN15: 0.01533219761 | AO15: 0.01426174497 | AP15: 0.01736972705 | AQ15: 0.02113821138 | AR15: 0.02166934189 | AS15: 0.0211128946 | AT15: 0.0205564473
A16: =A44+1 -> 12 | B16: Forecast changes in the CPI element of the price path | F16: =IF($C$5<$A16,AP16,X16) -> 0.01529961751 | G16: =IF($C$5<$A16,AQ16,Y16) -> 0.01506906656 | H16: =IF($C$5<$A16,AR16,Z16) -> 0.01773195876 | I16: =IF($C$5<$A16,AS16,AA16) -> 0.02106969206 | J16: =IF($C$5<$A16,AT16,AB16) -> 0.02152879479 | X16: =[1]Inputs!E8 -> 0.01750437898 | Y16: =[1]Inputs!F8 -> 0.01950211459 | Z16: =[1]Inputs!G8 -> 0.02024805898 | AA16: =[1]Inputs!H8 -> 0.02 | AB16: =[1]Inputs!I8 -> 0.02 | AP16: 0.01529961751 | AQ16: 0.01506906656 | AR16: 0.01773195876 | AS16: 0.02106969206 | AT16: 0.02152879479
A17: 0 | B17: Company tax rate | D17: 0.28 | E17: =IF($C$5<$A17,AO17,W17) -> 0.28 | F17: 0.28 | G17: 0.28 | H17: 0.28 | I17: 0.28 | J17: 0.28 | V17: =[1]Inputs!C9 -> 0.28 | W17: =[1]Inputs!D9 -> 0.28 | X17: =[1]Inputs!E9 -> 0.28 | Y17: =[1]Inputs!F9 -> 0.28 | Z17: =[1]Inputs!G9 -> 0.28 | AA17: =[1]Inputs!H9 -> 0.28 | AB17: =[1]Inputs!I9 -> 0.28 | AN17: 0.28 | AO17: 0.28 | AP17: 0.28 | AQ17: 0.28 | AR17: 0.28 | AS17: 0.28 | AT17: 0.28
A18: 0 | B18: Days in a year | C18: =IF($C$5<$A18,AM18,U18) -> 365 | N18: Working area | U18: =[1]Inputs!B10 -> 365 | AM18: 365
A19: 0 | B19: Days from mid-year to year-end | C19: 182 | N19: =D12 -> 2013/14 | U19: =[1]Inputs!B11 -> 182 | AM19: 182
A20: 0 | B20: Days from revenue date to year-end | C20: 148 | N20: =E12 -> 2014/15 | U20: =[1]Inputs!B12 -> 148 | AM20: 148
A21: 0 | B21: Last day of year 1 of the DPP period | C21: 2021-03-31 | N21: =F12 -> 2015/16 | U21: =[1]Inputs!B13 -> 2021-03-31 | AM21: 2016-03-31
A22: =A45+1 -> 10 | B22: Vanilla WACC (67th percentile) | C22: 0.0719 | N22: =G12 -> 2016/17 | U22: =[1]Inputs!B14 -> 0.0457 | AM22: 0.0719
A23: =A22 -> 10 | B23: Cost of debt | C23: 0.0609 | N23: =H12 -> 2017/18 | U23: =[1]Inputs!B15 -> 0.0292 | AM23: 0.0609
A24: =A31+1 -> 3 | B24: Leverage | C24: 0.44 | N24: =I12 -> 2018/19 | U24: =[1]Inputs!B16 -> 0.42 | AM24: 0.44
A25: 0 | B25: Years of remaining life for newly commissioned assets | C25: 44 | N25: =J12 -> 2019/20 | U25: =[1]Inputs!B17 -> 44 | AM25: 44
A26: =A56+1 -> 14 | B26: Industry-wide X factor | C26: 0 | U26: =[1]Inputs!B18 -> 0 | AM26: 0
B27: Inputs that are specific to individual distributors
B28: Name | C28: Alpine Energy | D28: Aurora Energy | E28: Centralines | F28: EA Networks | G28: Eastland Network | H28: Electricity Invercargill | I28: Horizon Energy | J28: Nelson Electricity | K28: Network Tasman | L28: Orion | M28: OtagoNet | N28: Powerco | O28: The Lines Company | P28: Top Energy | Q28: Unison Networks | R28: Vector Lines | S28: Wellington Electricity | U28: =[1]Inputs!B20 -> Alpine Energy | V28: =[1]Inputs!C20 -> Aurora Energy | W28: =[1]Inputs!D20 -> Centralines | X28: =[1]Inputs!E20 -> EA Networks | Y28: =[1]Inputs!F20 -> Eastland Network | Z28: =[1]Inputs!G20 -> Electricity Invercargill | AA28: =[1]Inputs!H20 -> Horizon Energy | AB28: =[1]Inputs!I20 -> Nelson Electricity | AC28: =[1]Inputs!J20 -> Network Tasman | AD28: =[1]Inputs!K20 -> Orion NZ | AE28: =[1]Inputs!L20 -> OtagoNet | AF28: =[1]Inputs!M20 -> Powerco | AG28: =[1]Inputs!N20 -> The Lines Company | AH28: =[1]Inputs!O20 -> Top Energy | AI28: =[1]Inputs!P20 -> Unison Networks | AJ28: =[1]Inputs!Q20 -> Vector Lines | AK28: =[1]Inputs!R20 -> Wellington Electricity | AM28: Alpine Energy | AN28: Aurora Energy | AO28: Centralines | AP28: EA Networks | AQ28: Eastland Network | AR28: Electricity Invercargill | AS28: Horizon Energy | AT28: Nelson Electricity | AU28: Network Tasman | AV28: Orion | AW28: OtagoNet | AX28: Powerco | AY28: The Lines Company | AZ28: Top Energy | BA28: Unison Networks | BB28: Vector Lines | BC28: Wellington Electricity
B29: Distributor number | C29: 1 | D29: 2 | E29: 3 | F29: 4 | G29: 5 | H29: 6 | I29: 7 | J29: 8 | K29: 9 | L29: 10 | M29: 11 | N29: 12 | O29: 13 | P29: 14 | Q29: 15 | R29: 16 | S29: 17 | U29: =[1]Inputs!B21 -> 1 | V29: =[1]Inputs!C21 -> 2 | W29: =[1]Inputs!D21 -> 3 | X29: =[1]Inputs!E21 -> 4 | Y29: =[1]Inputs!F21 -> 5 | Z29: =[1]Inputs!G21 -> 6 | AA29: =[1]Inputs!H21 -> 7 | AB29: =[1]Inputs!I21 -> 8 | AC29: =[1]Inputs!J21 -> 9 | AD29: =[1]Inputs!K21 -> 10 | AE29: =[1]Inputs!L21 -> 11 | AF29: =[1]Inputs!M21 -> 12 | AG29: =[1]Inputs!N21 -> 13 | AH29: =[1]Inputs!O21 -> 14 | AI29: =[1]Inputs!P21 -> 15 | AJ29: =[1]Inputs!Q21 -> 16 | AK29: =[1]Inputs!R21 -> 17 | AM29: 1 | AN29: 2 | AO29: 3 | AP29: 4 | AQ29: 5 | AR29: 6 | AS29: 7 | AT29: 8 | AU29: 9 | AV29: 10 | AW29: 11 | AX29: 12 | AY29: 13 | AZ29: 14 | BA29: 15 | BB29: 16 | BC29: 17
B30: Initial conditions
A31: =A15+1 -> 2 | B31: Opening RAB | C31: =IF($C$5<$A31,AM31,U31) -> 153233.2191 | D31: =IF($C$5<$A31,AN31,V31) -> 318316 | E31: =IF($C$5<$A31,AO31,W31) -> 54463.9198 | F31: =IF($C$5<$A31,AP31,X31) -> 207829 | G31: =IF($C$5<$A31,AQ31,Y31) -> 123188.7994 | H31: =IF($C$5<$A31,AR31,Z31) -> 65348.37841 | I31: =IF($C$5<$A31,AS31,AA31) -> 104497.7564 | J31: =IF($C$5<$A31,AT31,AB31) -> 30348.79332 | K31: =IF($C$5<$A31,AU31,AC31) -> 150493 | L31: =IF($C$5<$A31,AV31,AD31) -> 864649 | M31: =IF($C$5<$A31,AW31,AE31) -> 144589 | N31: =IF($C$5<$A31,AX31,AF31) -> 1385118.8 | O31: =IF($C$5<$A31,AY31,AG31) -> 173379.1192 | P31: =IF($C$5<$A31,AZ31,AH31) -> 183788.51 | Q31: =IF($C$5<$A31,BA31,AI31) -> 491717.721 | R31: =IF($C$5<$A31,BB31,AJ31) -> 2536404 | S31: =IF($C$5<$A31,BC31,AK31) -> 555989.8374 | U31: =[1]Inputs!B23 -> 199621 | V31: =[1]Inputs!C23 -> 394155.2034 | W31: =[1]Inputs!D23 -> 54013 | X31: =[1]Inputs!E23 -> 259359.001 | Y31: =[1]Inputs!F23 -> 154613.2058 | Z31: =[1]Inputs!G23 -> 84071.69551 | AA31: =[1]Inputs!H23 -> 124949.9691 | AB31: =[1]Inputs!I23 -> 41110.98197 | AC31: =[1]Inputs!J23 -> 165522 | AD31: =[1]Inputs!K23 -> 1051194 | AE31: =[1]Inputs!L23 -> 186531.164 | AF31: =[1]Inputs!M23 -> 1657736.857 | AG31: =[1]Inputs!N23 -> 188818.5386 | AH31: =[1]Inputs!O23 -> 251488.161 | AI31: =[1]Inputs!P23 -> 586195 | AJ31: =[1]Inputs!Q23 -> 2951716 | AK31: =[1]Inputs!R23 -> 611855.0815 | AM31: 153233.2191 | AN31: 318316 | AO31: 54463.9198 | AP31: 207829 | AQ31: 123188.7994 | AR31: 65348.37841 | AS31: 104497.7564 | AT31: 30348.79332 | AU31: 150493 | AV31: 864649 | AW31: 144589 | AX31: 1385118.8 | AY31: 173379.1192 | AZ31: 183788.51 | BA31: 491717.721 | BB31: 2536404 | BC31: 555989.8374
A32: =A31 -> 2 | B32: Lost assets | C32: 0 | D32: 0 | E32: 0 | F32: 0 | G32: 0 | H32: 0 | I32: 0 | J32: 0 | K32: 0 | L32: 0 | M32: 0 | N32: 0 | O32: 0 | P32: 0 | Q32: 0 | R32: 0 | S32: 0 | U32: 0 | V32: 0 | W32: 0 | X32: 0 | Y32: 0 | Z32: 0 | AA32: 0 | AB32: 0 | AC32: 0 | AD32: 0 | AE32: 0 | AF32: 0 | AG32: 0 | AH32: 0 | AI32: 0 | AJ32: 0 | AK32: 0 | AM32: 0 | AN32: 0 | AO32: 0 | AP32: 0 | AQ32: 0 | AR32: 0 | AS32: 0 | AT32: 0 | AU32: 0 | AV32: 0 | AW32: 0 | AX32: 0 | AY32: 0 | AZ32: 0 | BA32: 0 | BB32: 0 | BC32: 0
A33: =A31 -> 2 | B33: Found assets | C33: 0 | D33: 0 | E33: 0 | F33: 0 | G33: 0 | H33: 0 | I33: 0 | J33: 0 | K33: 0 | L33: 0 | M33: 0 | N33: 0 | O33: 0 | P33: 0 | Q33: 0 | R33: 0 | S33: 0 | U33: 0 | V33: 0 | W33: 0 | X33: 0 | Y33: 0 | Z33: 0 | AA33: 0 | AB33: 0 | AC33: 0 | AD33: 0 | AE33: 0 | AF33: 0 | AG33: 0 | AH33: 0 | AI33: 0 | AJ33: 0 | AK33: 0 | AM33: 0 | AN33: 0 | AO33: 0 | AP33: 0 | AQ33: 0 | AR33: 0 | AS33: 0 | AT33: 0 | AU33: 0 | AV33: 0 | AW33: 0 | AX33: 0 | AY33: 0 | AZ33: 0 | BA33: 0 | BB33: 0 | BC33: 0
A34: =A31 -> 2 | B34: Total depreciation | C34: 9784.564581 | D34: 11473 | E34: 2561.60348 | F34: 6958.449264 | G34: 5090.053905 | H34: 2526.462 | I34: 4656.23989 | J34: 1172.906946 | K34: 6574 | L34: 34384.22 | M34: 6607 | N34: 59856.67668 | O34: 8968 | P34: 7326.490474 | Q34: 21312 | R34: 90831 | S34: 26602 | U34: =[1]Inputs!B24 -> 12793.13117 | V34: =[1]Inputs!C24 -> 15058.02417 | W34: =[1]Inputs!D24 -> 2033 | X34: =[1]Inputs!E24 -> 9529.623038 | Y34: =[1]Inputs!F24 -> 6088.948957 | Z34: =[1]Inputs!G24 -> 3119.771454 | AA34: =[1]Inputs!H24 -> 6456.22173 | AB34: =[1]Inputs!I24 -> 1446.55623 | AC34: =[1]Inputs!J24 -> 6807 | AD34: =[1]Inputs!K24 -> 40615.81705 | AE34: =[1]Inputs!L24 -> 7711.915713 | AF34: =[1]Inputs!M24 -> 67007.59801 | AG34: =[1]Inputs!N24 -> 8412.100597 | AH34: =[1]Inputs!O24 -> 9155.47597 | AI34: =[1]Inputs!P24 -> 27555.254 | AJ34: =[1]Inputs!Q24 -> 108729 | AK34: =[1]Inputs!R24 -> 26323.29182 | AM34: 9784.564581 | AN34: 11473 | AO34: 2561.60348 | AP34: 6958.449264 | AQ34: 5090.053905 | AR34: 2526.462 | AS34: 4656.23989 | AT34: 1172.906946 | AU34: 6574 | AV34: 34384.22 | AW34: 6607 | AX34: 59856.67668 | AY34: 8968 | AZ34: 7326.490474 | BA34: 21312 | BB34: 90831 | BC34: 26602
A35: =A31 -> 2 | B35: Revaluations | C35: 2346.818894 | D35: 4878.505963 | E35: 834.4512413 | F35: 3158.581459 | G35: 1881.665337 | H35: 993.1686809 | I35: 1604.129049 | J35: 465.3136965 | K35: 2306.698467 | L35: 12839.50426 | M35: 2194.580677 | N35: 21062.76409 | O35: 2654.971163 | P35: 2816.920331 | Q35: 7424.551088 | R35: 38684 | S35: 8517.846814 | AM35: 2346.818894 | AN35: 4878.505963 | AO35: 834.4512413 | AP35: 3158.581459 | AQ35: 1881.665337 | AR35: 993.1686809 | AS35: 1604.129049 | AT35: 465.3136965 | AU35: 2306.698467 | AV35: 12839.50426 | AW35: 2194.580677 | AX35: 21062.76409 | AY35: 2654.971163 | AZ35: 2816.920331 | BA35: 7424.551088 | BB35: 38684 | BC35: 8517.846814
A36: =A31 -> 2 | B36: Closing RAB | C36: 156778.6951 | D36: 324967 | E36: 55053.95459 | F36: 220520.608 | G36: 125598.5524 | H36: 64392 | I36: 110624.3089 | J36: 42202.80799 | K36: 155232 | L36: 890508 | M36: 147442.648 | N36: 1439790 | O36: 175959 | P36: 199303.1546 | Q36: 521046.0044 | R36: 2618855 | S36: 569510.1895 | U36: =[1]Inputs!B25 -> 201494.5438 | V36: =[1]Inputs!C25 -> 447072.1812 | W36: =[1]Inputs!D25 -> 57848 | X36: =[1]Inputs!E25 -> 268447.1646 | Y36: =[1]Inputs!F25 -> 161677.5522 | Z36: =[1]Inputs!G25 -> 86604.99681 | AA36: =[1]Inputs!H25 -> 133085.9 | AB36: =[1]Inputs!I25 -> 41933.72916 | AC36: =[1]Inputs!J25 -> 165472 | AD36: =[1]Inputs!K25 -> 1088531.372 | AE36: =[1]Inputs!L25 -> 194442.0895 | AF36: =[1]Inputs!M25 -> 1787099.84 | AG36: =[1]Inputs!N25 -> 206316.4374 | AH36: =[1]Inputs!O25 -> 261426.1465 | AI36: =[1]Inputs!P25 -> 620045.33 | AJ36: =[1]Inputs!Q25 -> 3075471 | AK36: =[1]Inputs!R25 -> 629322.9926 | AM36: 156778.6951 | AN36: 324967 | AO36: 55053.95459 | AP36: 220520.608 | AQ36: 125598.5524 | AR36: 64392 | AS36: 110624.3089 | AT36: 42202.80799 | AU36: 155232 | AV36: 890508 | AW36: 147442.648 | AX36: 1439790 | AY36: 175959 | AZ36: 199303.1546 | BA36: 521046.0044 | BB36: 2618855 | BC36: 569510.1895
A37: =A24 -> 3 | B37: Opening RAB excluding revaluations | C37: 145352.6386 | D37: 299146 | E37: 51405.49591 | F37: 197005 | G37: 116251.3099 | H37: 61562.159 | I37: 98492.50273 | J37: 28617 | K37: 140998 | L37: 813508.7 | M37: 137117 | N37: 1302563 | O37: 161685 | P37: 174771 | Q37: 462687 | R37: 2379108 | S37: 521133.3345 | U37: =[1]Inputs!B26 -> 170446.47 | V37: =[1]Inputs!C26 -> 361569.5442 | W37: =[1]Inputs!D26 -> 48772 | X37: =[1]Inputs!E26 -> 240111.3019 | Y37: =[1]Inputs!F26 -> 141779.8794 | Z37: =[1]Inputs!G26 -> 77250.2 | AA37: =[1]Inputs!H26 -> 114466.5638 | AB37: =[1]Inputs!I26 -> 37930 | AC37: =[1]Inputs!J26 -> 150203 | AD37: =[1]Inputs!K26 -> 965046.964 | AE37: =[1]Inputs!L26 -> 173737 | AF37: =[1]Inputs!M26 -> 1517689.783 | AG37: =[1]Inputs!N26 -> 166614.8011 | AH37: =[1]Inputs!O26 -> 224217.6316 | AI37: =[1]Inputs!P26 -> 536379 | AJ37: =[1]Inputs!Q26 -> 2695210 | AK37: =[1]Inputs!R26 -> 556622.5202 | AM37: 145352.6386 | AN37: 299146 | AO37: 51405.49591 | AP37: 197005 | AQ37: 116251.3099 | AR37: 61562.159 | AS37: 98492.50273 | AT37: 28617 | AU37: 140998 | AV37: 813508.7 | AW37: 137117 | AX37: 1302563 | AY37: 161685 | AZ37: 174771 | BA37: 462687 | BB37: 2379108 | BC37: 521133.3345
A38: =$A$36+1 -> 3 | B38: Adjusted depreciation | C38: 9044.833523 | D38: 10727 | E38: 2422.72053 | F38: 6459 | G38: 4594.492001 | H38: 2326.458 | I38: 4378.64617 | J38: 1078 | K38: 6184.02697 | L38: 32282.4 | M38: 6400 | N38: 56102 | O38: 8599 | P38: 6297 | Q38: 20012 | R38: 85581 | S38: 25002.70595 | U38: =[1]Inputs!B27 -> 10635.43092 | V38: =[1]Inputs!C27 -> 13630.79869 | W38: =[1]Inputs!D27 -> 1934 | X38: =[1]Inputs!E27 -> 8731.374143 | Y38: =[1]Inputs!F27 -> 5287.94844 | Z38: =[1]Inputs!G27 -> 2844.854 | AA38: =[1]Inputs!H27 -> 5022.32702 | AB38: =[1]Inputs!I27 -> 1354 | AC38: =[1]Inputs!J27 -> 6290 | AD38: =[1]Inputs!K27 -> 36341.389 | AE38: =[1]Inputs!L27 -> 7161 | AF38: =[1]Inputs!M27 -> 60760.81768 | AG38: =[1]Inputs!N27 -> 7730.983111 | AH38: =[1]Inputs!O27 -> 7999.217391 | AI38: =[1]Inputs!P27 -> 25169 | AJ38: =[1]Inputs!Q27 -> 99210 | AK38: =[1]Inputs!R27 -> 23190.27941 | AM38: 9044.833523 | AN38: 10727 | AO38: 2422.72053 | AP38: 6459 | AQ38: 4594.492001 | AR38: 2326.458 | AS38: 4378.64617 | AT38: 1078 | AU38: 6184.02697 | AV38: 32282.4 | AW38: 6400 | AX38: 56102 | AY38: 8599 | AZ38: 6297 | BA38: 20012 | BB38: 85581 | BC38: 25002.70595
A39: 3 | B39: Tax depreciation | C39: 8307.997801 | D39: 14927 | E39: 2462.291061 | F39: 10145 | G39: 6884.509381 | H39: 2173.406 | I39: 3708 | J39: 891 | K39: 3490 | L39: 32886.8 | M39: 7427.587 | N39: 69941 | O39: 4007 | P39: 7367.897964 | Q39: 25109 | R39: 90303 | S39: 28396.70973 | U39: =[1]Inputs!B28 -> 14782.75991 | V39: =[1]Inputs!C28 -> 21650 | W39: =[1]Inputs!D28 -> 2186 | X39: =[1]Inputs!E28 -> 11910.71094 | Y39: =[1]Inputs!F28 -> 6271.29534 | Z39: =[1]Inputs!G28 -> 3313.98 | AA39: =[1]Inputs!H28 -> 5404.500609 | AB39: =[1]Inputs!I28 -> 1297 | AC39: =[1]Inputs!J28 -> 5114 | AD39: =[1]Inputs!K28 -> 32004.275 | AE39: =[1]Inputs!L28 -> 15388 | AF39: =[1]Inputs!M28 -> 79612.31554 | AG39: =[1]Inputs!N28 -> 4330.035972 | AH39: =[1]Inputs!O28 -> 11576.76816 | AI39: =[1]Inputs!P28 -> 30035 | AJ39: =[1]Inputs!Q28 -> 103486 | AK39: =[1]Inputs!R28 -> 28793.11796 | AM39: 8307.997801 | AN39: 14927 | AO39: 2462.291061 | AP39: 10145 | AQ39: 6884.509381 | AR39: 2173.406 | AS39: 3708 | AT39: 891 | AU39: 3490 | AV39: 32886.8 | AW39: 7427.587 | AX39: 69941 | AY39: 4007 | AZ39: 7367.897964 | BA39: 25109 | BB39: 90303 | BC39: 28396.70973
A40: 3 | B40: Opening regulatory tax asset value | C40: 86577.36469 | D40: 163270 | E40: 25808.01647 | F40: 106837 | G40: 72106.66916 | H40: 25280.2579 | I40: 31886.65545 | J40: 9314.944 | K40: 42509.93782 | L40: 270627.684 | M40: 90115 | N40: 896706.035 | O40: 41312 | P40: 85698.4935 | Q40: 266951.682 | R40: 966964 | S40: 345886.8305 | U40: =[1]Inputs!B29 -> 122940.0287 | V40: =[1]Inputs!C29 -> 222185.9147 | W40: =[1]Inputs!D29 -> 24349 | X40: =[1]Inputs!E29 -> 134591.6309 | Y40: =[1]Inputs!F29 -> 70250.53571 | Z40: =[1]Inputs!G29 -> 41317.03 | AA40: =[1]Inputs!H29 -> 51284.963 | AB40: =[1]Inputs!I29 -> 18165 | AC40: =[1]Inputs!J29 -> 63134 | AD40: =[1]Inputs!K29 -> 400019.6316 | AE40: =[1]Inputs!L29 -> 95268 | AF40: =[1]Inputs!M29 -> 1025176.282 | AG40: =[1]Inputs!N29 -> 45756 | AH40: =[1]Inputs!O29 -> 136251.1719 | AI40: =[1]Inputs!P29 -> 313784 | AJ40: =[1]Inputs!Q29 -> 1224826 | AK40: =[1]Inputs!R29 -> 351370.7044 | AM40: 86577.36469 | AN40: 163270 | AO40: 25808.01647 | AP40: 106837 | AQ40: 72106.66916 | AR40: 25280.2579 | AS40: 31886.65545 | AT40: 9314.944 | AU40: 42509.93782 | AV40: 270627.684 | AW40: 90115 | AX40: 896706.035 | AY40: 41312 | AZ40: 85698.4935 | BA40: 266951.682 | BB40: 966964 | BC40: 345886.8305
A41: 3 | B41: Amortisation of initial differences in asset values | C41: 2834.603957 | D41: 3587.244898 | E41: 1286.627995 | F41: 2215.533923 | G41: 1045.900058 | H41: 1333.070536 | I41: 4218.944535 | J41: 704.2117458 | K41: 2753.869874 | L41: 15754.34193 | M41: 1366.888889 | N41: 10748.87086 | O41: 4085.29437 | P41: 3399.086957 | Q41: 5741.516288 | R41: 35098.30556 | S41: 6153.707972 | U41: =[1]Inputs!B30 -> 2756.174785 | V41: =[1]Inputs!C30 -> 4989.952406 | W41: =[1]Inputs!D30 -> 1254.5 | X41: =[1]Inputs!E30 -> 2142.610349 | Y41: =[1]Inputs!F30 -> 1900.57606 | Z41: =[1]Inputs!G30 -> 1268.368421 | AA41: =[1]Inputs!H30 -> 4218.944535 | AB41: =[1]Inputs!I30 -> 693.05 | AC41: =[1]Inputs!J30 -> 3239.163154 | AD41: =[1]Inputs!K30 -> 15323.20205 | AE41: =[1]Inputs!L30 -> 1343.545455 | AF41: =[1]Inputs!M30 -> 10201.18099 | AG41: =[1]Inputs!N30 -> 4085.269864 | AH41: =[1]Inputs!O30 -> 3399.105263 | AI41: =[1]Inputs!P30 -> 5670.1 | AJ41: =[1]Inputs!Q30 -> 34300.67742 | AK41: =[1]Inputs!R30 -> 7150.784348 | AM41: 2834.603957 | AN41: 3587.244898 | AO41: 1286.627995 | AP41: 2215.533923 | AQ41: 1045.900058 | AR41: 1333.070536 | AS41: 4218.944535 | AT41: 704.2117458 | AU41: 2753.869874 | AV41: 15754.34193 | AW41: 1366.888889 | AX41: 10748.87086 | AY41: 4085.29437 | AZ41: 3399.086957 | BA41: 5741.516288 | BB41: 35098.30556 | BC41: 6153.707972
A42: =A80+1 -> 8 | B42: Term credit spread differential allowance | C42: 0 | D42: 0 | E42: 0 | F42: 0 | G42: 0 | H42: 0 | I42: 0 | J42: 0 | K42: 0 | L42: 0 | M42: 0 | N42: 0 | O42: 1.948709971 | P42: 0 | Q42: 0.4620765114 | R42: 518.3295847 | S42: 563.4100427 | U42: =[1]Inputs!B31 -> 0 | V42: =[1]Inputs!C31 -> 0 | W42: =[1]Inputs!D31 -> 0 | X42: =[1]Inputs!E31 -> 0 | Y42: =[1]Inputs!F31 -> 0 | Z42: =[1]Inputs!G31 -> 0 | AA42: =[1]Inputs!H31 -> 0 | AB42: =[1]Inputs!I31 -> 0 | AC42: =[1]Inputs!J31 -> 0 | AD42: =[1]Inputs!K31 -> 788.4552941 | AE42: =[1]Inputs!L31 -> 0 | AF42: =[1]Inputs!M31 -> 1966.526362 | AG42: =[1]Inputs!N31 -> 0 | AH42: =[1]Inputs!O31 -> 0 | AI42: =[1]Inputs!P31 -> 440.1887319 | AJ42: =[1]Inputs!Q31 -> 3983.687394 | AK42: =[1]Inputs!R31 -> 362.4615546 | AM42: 0 | AN42: 0 | AO42: 0 | AP42: 0 | AQ42: 0 | AR42: 0 | AS42: 0 | AT42: 0 | AU42: 0 | AV42: 0 | AW42: 0 | AX42: 0 | AY42: 1.948709971 | AZ42: 0 | BA42: 0.4620765114 | BB42: 518.3295847 | BC42: 563.4100427
A43: =A37 -> 3 | B43: Opening deferred tax balance | C43: -1026.793487 | D43: -2683 | E43: -1326.028793 | F43: -3876.24 | G43: -3312.588673 | H43: -1536.38799 | I43: -2873.311492 | J43: -428.3922743 | K43: -473.4501144 | L43: -20636.53 | M43: -3135 | N43: -23571.72 | O43: -3843.58902 | P43: -2693 | Q43: -14382.88581 | R43: -43155 | S43: -17901.38546 | U43: =[1]Inputs!B32 -> -6546.424746 | V43: =[1]Inputs!C32 -> -18008.43966 | W43: =[1]Inputs!D32 -> -2740 | X43: =[1]Inputs!E32 -> -12614.86729 | Y43: =[1]Inputs!F32 -> -7364 | Z43: =[1]Inputs!G32 -> -3433.962507 | AA43: =[1]Inputs!H32 -> 0 | AB43: =[1]Inputs!I32 -> -1441 | AC43: =[1]Inputs!J32 -> -1612.351921 | AD43: =[1]Inputs!K32 -> -43149.14864 | AE43: =[1]Inputs!L32 -> -12352 | AF43: =[1]Inputs!M32 -> -60532.96154 | AG43: =[1]Inputs!N32 -> -12008 | AH43: =[1]Inputs!O32 -> -10180.72612 | AI43: =[1]Inputs!P32 -> -29786 | AJ43: =[1]Inputs!Q32 -> -83664 | AK43: =[1]Inputs!R32 -> -33852.90099 | AM43: -1026.793487 | AN43: -2683 | AO43: -1326.028793 | AP43: -3876.24 | AQ43: -3312.588673 | AR43: -1536.38799 | AS43: -2873.311492 | AT43: -428.3922743 | AU43: -473.4501144 | AV43: -20636.53 | AW43: -3135 | AX43: -23571.72 | AY43: -3843.58902 | AZ43: -2693 | BA43: -14382.88581 | BB43: -43155 | BC43: -17901.38546
A44: =A22+1 -> 11 | B44: Adjustment factor (for accelerated depreciation) | C44: 1 | D44: 1 | E44: 1 | F44: 1 | G44: 1 | H44: 1 | I44: 1 | J44: 1 | K44: 1 | L44: 1 | M44: 1 | N44: 1 | O44: 1 | P44: 1 | Q44: 1 | R44: 1 | S44: 1 | U44: =[1]Inputs!B33 -> 1 | V44: =[1]Inputs!C33 -> 1 | W44: =[1]Inputs!D33 -> 1 | X44: =[1]Inputs!E33 -> 1 | Y44: =[1]Inputs!F33 -> 1 | Z44: =[1]Inputs!G33 -> 1 | AA44: =[1]Inputs!H33 -> 1 | AB44: =[1]Inputs!I33 -> 1 | AC44: =[1]Inputs!J33 -> 1 | AD44: =[1]Inputs!K33 -> 1 | AE44: =[1]Inputs!L33 -> 1 | AF44: =[1]Inputs!M33 -> 1 | AG44: =[1]Inputs!N33 -> 1 | AH44: =[1]Inputs!O33 -> 1 | AI44: =[1]Inputs!P33 -> 1 | AJ44: =[1]Inputs!Q33 -> 1 | AK44: =[1]Inputs!R33 -> 1 | AM44: 1 | AN44: 1 | AO44: 1 | AP44: 1 | AQ44: 1 | AR44: 1 | AS44: 1 | AT44: 1 | AU44: 1 | AV44: 1 | AW44: 1 | AX44: 1 | AY44: 1 | AZ44: 1 | BA44: 1 | BB44: 1 | BC44: 1
A45: =A42+1 -> 9 | B45: Additional allowance in 1 April 2015 PV terms | C45: 563.2195093 | D45: 0 | E45: 0 | F45: 0 | G45: 0 | H45: 0 | I45: 0 | J45: 0 | K45: 0 | L45: 0 | M45: 61.95290349 | N45: 0 | O45: 101.1145677 | P45: 0 | Q45: 0 | R45: 0 | S45: 0 | U45: =[1]Inputs!B34 -> 0 | V45: =[1]Inputs!C34 -> 0 | W45: =[1]Inputs!D34 -> 0 | X45: =[1]Inputs!E34 -> 0 | Y45: =[1]Inputs!F34 -> 0 | Z45: =[1]Inputs!G34 -> 0 | AA45: =[1]Inputs!H34 -> 0 | AB45: =[1]Inputs!I34 -> 0 | AC45: =[1]Inputs!J34 -> 0 | AD45: =[1]Inputs!K34 -> 0 | AE45: =[1]Inputs!L34 -> 0 | AF45: =[1]Inputs!M34 -> 0 | AG45: =[1]Inputs!N34 -> 0 | AH45: =[1]Inputs!O34 -> 0 | AI45: =[1]Inputs!P34 -> 0 | AJ45: =[1]Inputs!Q34 -> 0 | AK45: =[1]Inputs!R34 -> 0 | AM45: 563.2195093 | AN45: 0 | AO45: 0 | AP45: 0 | AQ45: 0 | AR45: 0 | AS45: 0 | AT45: 0 | AU45: 0 | AV45: 0 | AW45: 61.95290349 | AX45: 0 | AY45: 101.1145677 | AZ45: 0 | BA45: 0 | BB45: 0 | BC45: 0
A46: =A26 -> 14 | B46: Alternative X factor | C46: -0.11 | D46: 0 | E46: -0.07 | F46: 0 | G46: -0.03 | H46: 0 | I46: 0 | J46: 0 | K46: 0 | L46: 0 | M46: 0 | N46: 0 | O46: 0 | P46: -0.07 | Q46: 0 | R46: 0 | S46: 0 | U46: =[1]Inputs!B35 -> 0 | V46: =[1]Inputs!C35 -> 0 | W46: =[1]Inputs!D35 -> 0 | X46: =[1]Inputs!E35 -> 0 | Y46: =[1]Inputs!F35 -> 0 | Z46: =[1]Inputs!G35 -> 0 | AA46: =[1]Inputs!H35 -> 0 | AB46: =[1]Inputs!I35 -> 0 | AC46: =[1]Inputs!J35 -> 0 | AD46: =[1]Inputs!K35 -> 0 | AE46: =[1]Inputs!L35 -> 0 | AF46: =[1]Inputs!M35 -> 0 | AG46: =[1]Inputs!N35 -> 0 | AH46: =[1]Inputs!O35 -> 0 | AI46: =[1]Inputs!P35 -> 0 | AJ46: =[1]Inputs!Q35 -> 0 | AK46: =[1]Inputs!R35 -> 0 | AM46: -0.11 | AN46: 0 | AO46: -0.07 | AP46: 0 | AQ46: -0.03 | AR46: 0 | AS46: 0 | AT46: 0 | AU46: 0 | AV46: 0 | AW46: 0 | AX46: 0 | AY46: 0 | AZ46: -0.07 | BA46: 0 | BB46: 0 | BC46: 0
B47: Operating expenditure | U47: 2015 values plus:
A48: =A72+1 -> 6 | B48: ="Operating expenditure, " & N19 -> Operating expenditure, 2013/14 | C48: =IF($C$5<$A48,AM48,U48) -> 15271.56043 | D48: 22317 | E48: 4333 | F48: 8214 | G48: 7809.87415 | H48: 4814.067 | I48: 7731 | J48: 2232 | K48: 8543 | L48: 50934 | M48: =IF($C$5<$A48,AW48,AE48) -> 7679.596 | N48: 67817.64887 | O48: 10693 | P48: 12617.32594 | Q48: 34853.7856 | R48: 106706 | S48: 29611.04613 | AM48: 15271.56043 | AN48: 22317 | AO48: 4333 | AP48: 8214 | AQ48: 7809.87415 | AR48: 4814.067 | AS48: 7731 | AT48: 2232 | AU48: 8543 | AV48: 50934 | AW48: 7679.596 | AX48: 67817.64887 | AY48: 10693 | AZ48: 12617.32594 | BA48: 34853.7856 | BB48: 106706 | BC48: 29611.04613
A49: =$A$48 -> 6 | B49: Operating expenditure, 2014/15 | C49: 14209.9316 | D49: 21223.49879 | E49: 4340.90464 | F49: 8234.319145 | G49: 7839.332903 | H49: 5257.400281 | I49: 7543.447404 | J49: 2366.771252 | K49: 8798.712851 | L49: 51168.28541 | M49: 7191.930764 | N49: 68411.04165 | O49: 10417.89066 | P49: 13112.3355 | Q49: 34603.45205 | R49: 103926.5115 | S49: 29751.79577 | AM49: 14209.9316 | AN49: 21223.49879 | AO49: 4340.90464 | AP49: 8234.319145 | AQ49: 7839.332903 | AR49: 5257.400281 | AS49: 7543.447404 | AT49: 2366.771252 | AU49: 8798.712851 | AV49: 51168.28541 | AW49: 7191.930764 | AX49: 68411.04165 | AY49: 10417.89066 | AZ49: 13112.3355 | BA49: 34603.45205 | BB49: 103926.5115 | BC49: 29751.79577
A50: 6 | B50: Operating expenditure, 2015/16 | C50: 14721.62113 | D50: 22066.86006 | E50: 4488.344134 | F50: 8561.4606 | G50: 8100.774963 | H50: 5444.163505 | I50: 7780.667126 | J50: 2462.677659 | K50: 9144.412963 | L50: 53114.88425 | M50: 7457.328616 | N50: 70948.05312 | O50: 10710.81759 | P50: 13594.83444 | Q50: 35854.23933 | R50: 108576.8916 | S50: 30899.2206 | U50: =[1]Inputs!B37 -> 19420.27295 | V50: =[1]Inputs!C37 -> 44723.36092 | W50: =[1]Inputs!D37 -> 4226.355437 | X50: =[1]Inputs!E37 -> 11823.138 | Y50: =[1]Inputs!F37 -> 10615.39048 | Z50: =[1]Inputs!G37 -> 5180.711808 | AA50: =[1]Inputs!H37 -> 9885.612004 | AB50: =[1]Inputs!I37 -> 2246.837417 | AC50: =[1]Inputs!J37 -> 11157.71197 | AD50: =[1]Inputs!K37 -> 64153.5484 | AE50: =[1]Inputs!L37 -> 9162.923911 | AF50: =[1]Inputs!M37 -> 93422.96778 | AG50: =[1]Inputs!N37 -> 14911.90269 | AH50: =[1]Inputs!O37 -> 16021.47849 | AI50: =[1]Inputs!P37 -> 41582.38717 | AJ50: =[1]Inputs!Q37 -> 127351.1379 | AK50: =[1]Inputs!R37 -> 35667.65735 | AM50: 14721.62113 | AN50: 22066.86006 | AO50: 4488.344134 | AP50: 8561.4606 | AQ50: 8100.774963 | AR50: 5444.163505 | AS50: 7780.667126 | AT50: 2462.677659 | AU50: 9144.412963 | AV50: 53114.88425 | AW50: 7457.328616 | AX50: 70948.05312 | AY50: 10710.81759 | AZ50: 13594.83444 | BA50: 35854.23933 | BB50: 108576.8916 | BC50: 30899.2206
A51: 6 | B51: Operating expenditure, 2016/17 | C51: 15182.34764 | D51: 22846.17041 | E51: 4620.347102 | F51: 8856.714952 | G51: 8341.41749 | H51: 5609.713195 | I51: 7994.897 | J51: 2550.141432 | K51: 9458.042905 | L51: 54967.77546 | M51: 7695.304275 | N51: 73328.77141 | O51: =IF($C$5<$A51,AY51,AG51) -> 10977.5035 | P51: 14045.84886 | Q51: 36996.18617 | R51: 113032.7584 | S51: 31949.9157 | U51: =[1]Inputs!B38 -> 20012.12028 | V51: =[1]Inputs!C38 -> 46248.5301 | W51: =[1]Inputs!D38 -> 4334.175299 | X51: =[1]Inputs!E38 -> 12215.64195 | Y51: =[1]Inputs!F38 -> 10898.08181 | Z51: =[1]Inputs!G38 -> 5310.586635 | AA51: =[1]Inputs!H38 -> 10170.6927 | AB51: =[1]Inputs!I38 -> 2316.975648 | AC51: =[1]Inputs!J38 -> 11513.0795 | AD51: =[1]Inputs!K38 -> 66487.65443 | AE51: =[1]Inputs!L38 -> 9425.276484 | AF51: =[1]Inputs!M38 -> 96485.78883 | AG51: =[1]Inputs!N38 -> 15303.18716 | AH51: =[1]Inputs!O38 -> 16537.34445 | AI51: =[1]Inputs!P38 -> 42904.14303 | AJ51: =[1]Inputs!Q38 -> 132448.6848 | AK51: =[1]Inputs!R38 -> 36792.11547 | AM51: 15182.34764 | AN51: 22846.17041 | AO51: 4620.347102 | AP51: 8856.714952 | AQ51: 8341.41749 | AR51: 5609.713195 | AS51: 7994.897 | AT51: 2550.141432 | AU51: 9458.042905 | AV51: 54967.77546 | AW51: 7695.304275 | AX51: 73328.77141 | AY51: 10977.5035 | AZ51: 14045.84886 | BA51: 36996.18617 | BB51: 113032.7584 | BC51: 31949.9157
A52: 6 | B52: Operating expenditure, 2017/18 | C52: 15599.29113 | D52: 23565.0798 | E52: 4738.552418 | F52: 9128.095505 | G52: 8557.280878 | H52: 5758.810547 | I52: 8184.496143 | J52: 2630.907359 | K52: 9746.066557 | L52: 56674.00952 | M52: 7911.390151 | N52: 75507.66286 | O52: 11209.05654 | P52: 14457.92501 | Q52: 38032.60446 | R52: 117234.2962 | S52: 32913.54284 | U52: =[1]Inputs!B39 -> 20629.43209 | V52: =[1]Inputs!C39 -> 48129.31552 | W52: =[1]Inputs!D39 -> 4446.350226 | X52: =[1]Inputs!E39 -> 12625.15911 | Y52: =[1]Inputs!F39 -> 11192.33198 | Z52: =[1]Inputs!G39 -> 5445.680406 | AA52: =[1]Inputs!H39 -> 10485.31936 | AB52: =[1]Inputs!I39 -> 2390.165825 | AC52: =[1]Inputs!J39 -> 11880.37654 | AD52: =[1]Inputs!K39 -> 68931.50553 | AE52: =[1]Inputs!L39 -> 9698.649757 | AF52: =[1]Inputs!M39 -> 99415.11327 | AG52: =[1]Inputs!N39 -> 15708.68538 | AH52: =[1]Inputs!O39 -> 17051.66159 | AI52: =[1]Inputs!P39 -> 44325.32603 | AJ52: =[1]Inputs!Q39 -> 137800.8232 | AK52: =[1]Inputs!R39 -> 37965.37991 | AM52: 15599.29113 | AN52: 23565.0798 | AO52: 4738.552418 | AP52: 9128.095505 | AQ52: 8557.280878 | AR52: 5758.810547 | AS52: 8184.496143 | AT52: 2630.907359 | AU52: 9746.066557 | AV52: 56674.00952 | AW52: 7911.390151 | AX52: 75507.66286 | AY52: 11209.05654 | AZ52: 14457.92501 | BA52: 38032.60446 | BB52: 117234.2962 | BC52: 32913.54284
A53: 6 | B53: Operating expenditure, 2018/19 | C53: 16026.3849 | D53: 24304.63962 | E53: 4859.38762 | F53: 9407.029859 | G53: 8778.018483 | H53: 5911.391148 | I53: 8377.919793 | J53: 2714.023323 | K53: 10042.04692 | L53: 58428.63052 | M53: 8132.918752 | N53: 77745.00165 | O53: 11444.61487 | P53: 14880.92715 | Q53: 39094.88869 | R53: 121582.3695 | S53: 33903.49023 | U53: =[1]Inputs!B40 -> 21237.10451 | V53: =[1]Inputs!C40 -> 50194.34228 | W53: =[1]Inputs!D40 -> 4555.125601 | X53: =[1]Inputs!E40 -> 13063.73347 | Y53: =[1]Inputs!F40 -> 11497.23373 | Z53: =[1]Inputs!G40 -> 5585.037299 | AA53: =[1]Inputs!H40 -> 10832.65929 | AB53: =[1]Inputs!I40 -> 2464.998216 | AC53: =[1]Inputs!J40 -> 12252.61888 | AD53: =[1]Inputs!K40 -> 71320.63802 | AE53: =[1]Inputs!L40 -> 9957.784343 | AF53: =[1]Inputs!M40 -> 102609.6705 | AG53: =[1]Inputs!N40 -> 16108.54615 | AH53: =[1]Inputs!O40 -> 17569.3518 | AI53: =[1]Inputs!P40 -> 45716.09645 | AJ53: =[1]Inputs!Q40 -> 142973.171 | AK53: =[1]Inputs!R40 -> 39168.44702 | AM53: 16026.3849 | AN53: 24304.63962 | AO53: 4859.38762 | AP53: 9407.029859 | AQ53: 8778.018483 | AR53: 5911.391148 | AS53: 8377.919793 | AT53: 2714.023323 | AU53: 10042.04692 | AV53: 58428.63052 | AW53: 8132.918752 | AX53: 77745.00165 | AY53: 11444.61487 | AZ53: 14880.92715 | BA53: 39094.88869 | BB53: 121582.3695 | BC53: 33903.49023
A54: =$A$48 -> 6 | B54: Operating expenditure, 2019/20 | C54: 16401.80378 | D54: 24970.93416 | E54: 4964.125222 | F54: 9657.178814 | G54: 8969.795329 | H54: 6044.660845 | I54: 8542.917001 | J54: 2789.002432 | K54: 10307.19432 | L54: 60005.91054 | M54: 8328.508895 | N54: 79740.56708 | O54: 11640.20185 | P54: 15257.40323 | Q54: 40032.18205 | R54: 125606.6569 | S54: 34788.813 | U54: =[1]Inputs!B41 -> 21815.91739 | V54: =[1]Inputs!C41 -> 51957.91286 | W54: =[1]Inputs!D41 -> 4656.581727 | X54: =[1]Inputs!E41 -> 13485.87562 | Y54: =[1]Inputs!F41 -> 11783.55828 | Z54: =[1]Inputs!G41 -> 5715.710443 | AA54: =[1]Inputs!H41 -> 11113.44999 | AB54: =[1]Inputs!I41 -> 2536.716857 | AC54: =[1]Inputs!J41 -> 12609.49819 | AD54: =[1]Inputs!K41 -> 73634.73386 | AE54: =[1]Inputs!L41 -> 10201.98055 | AF54: =[1]Inputs!M41 -> 106186.7639 | AG54: =[1]Inputs!N41 -> 16483.22902 | AH54: =[1]Inputs!O41 -> 18063.17601 | AI54: =[1]Inputs!P41 -> 47028.87762 | AJ54: =[1]Inputs!Q41 -> 148015.8896 | AK54: =[1]Inputs!R41 -> 40320.61647 | AM54: 16401.80378 | AN54: 24970.93416 | AO54: 4964.125222 | AP54: 9657.178814 | AQ54: 8969.795329 | AR54: 6044.660845 | AS54: 8542.917001 | AT54: 2789.002432 | AU54: 10307.19432 | AV54: 60005.91054 | AW54: 8328.508895 | AX54: 79740.56708 | AY54: 11640.20185 | AZ54: 15257.40323 | BA54: 40032.18205 | BB54: 125606.6569 | BC54: 34788.813
B55: Constant price revenue growth | U55: Zeroed
A56: =A16+1 -> 13 | B56: ="Constant price revenue growth, " & N19 -> Constant price revenue growth, 2013/14 | C56: =IF($C$5<$A56,AM56,U56) -> 0.002675944408 | D56: 0.005535558248 | E56: -0.006341551611 | F56: 0.003446041706 | G56: -0.002637151304 | H56: 0.001687457113 | I56: -0.0002253440684 | J56: 0.006123150165 | K56: 0.005028110679 | L56: 0 | M56: =IF($C$5<$A56,AW56,AE56) -> 0.003684692078 | N56: -0.000543011752 | O56: -0.005780116331 | P56: -0.003590068381 | Q56: 0.002795717346 | R56: 0.01031730739 | S56: 0.004460946114 | U56: 0 | V56: 0 | W56: 0 | X56: 0 | Y56: 0 | Z56: 0 | AA56: 0 | AB56: 0 | AC56: 0 | AD56: 0 | AE56: 0 | AF56: 0 | AG56: 0 | AH56: 0 | AI56: 0 | AJ56: 0 | AK56: 0 | AM56: 0.002675944408 | AN56: 0.005535558248 | AO56: -0.006341551611 | AP56: 0.003446041706 | AQ56: -0.002637151304 | AR56: 0.001687457113 | AS56: -0.0002253440684 | AT56: 0.006123150165 | AU56: 0.005028110679 | AV56: 0 | AW56: 0.003684692078 | AX56: -0.000543011752 | AY56: -0.005780116331 | AZ56: -0.003590068381 | BA56: 0.002795717346 | BB56: 0.01031730739 | BC56: 0.004460946114
A57: =$A$56 -> 13 | B57: Constant price revenue growth, 2014/15 | C57: 0.002675944408 | D57: 0.005535558248 | E57: -0.006341551611 | F57: 0.003446041706 | G57: -0.002637151304 | H57: 0.001687457113 | I57: -0.0002253440684 | J57: 0.006123150165 | K57: 0.005028110679 | L57: 0 | M57: 0.003684692078 | N57: -0.000543011752 | O57: -0.005780116331 | P57: -0.003590068381 | Q57: 0.002795717346 | R57: 0.01031730739 | S57: 0.004460946114 | U57: 0 | V57: 0 | W57: 0 | X57: 0 | Y57: 0 | Z57: 0 | AA57: 0 | AB57: 0 | AC57: 0 | AD57: 0 | AE57: 0 | AF57: 0 | AG57: 0 | AH57: 0 | AI57: 0 | AJ57: 0 | AK57: 0 | AM57: 0.002675944408 | AN57: 0.005535558248 | AO57: -0.006341551611 | AP57: 0.003446041706 | AQ57: -0.002637151304 | AR57: 0.001687457113 | AS57: -0.0002253440684 | AT57: 0.006123150165 | AU57: 0.005028110679 | AV57: 0 | AW57: 0.003684692078 | AX57: -0.000543011752 | AY57: -0.005780116331 | AZ57: -0.003590068381 | BA57: 0.002795717346 | BB57: 0.01031730739 | BC57: 0.004460946114
A58: 13 | B58: Constant price revenue growth, 2015/16 | C58: 0.002675944408 | D58: 0.005535558248 | E58: -0.006341551611 | F58: 0.003446041706 | G58: -0.002637151304 | H58: 0.001687457113 | I58: -0.0002253440684 | J58: 0.006123150165 | K58: 0.005028110679 | L58: 0 | M58: 0.003684692078 | N58: -0.000543011752 | O58: -0.005780116331 | P58: -0.003590068381 | Q58: 0.002795717346 | R58: 0.01031730739 | S58: 0.004460946114 | U58: 0 | V58: 0 | W58: 0 | X58: 0 | Y58: 0 | Z58: 0 | AA58: 0 | AB58: 0 | AC58: 0 | AD58: 0 | AE58: 0 | AF58: 0 | AG58: 0 | AH58: 0 | AI58: 0 | AJ58: 0 | AK58: 0 | AM58: 0.002675944408 | AN58: 0.005535558248 | AO58: -0.006341551611 | AP58: 0.003446041706 | AQ58: -0.002637151304 | AR58: 0.001687457113 | AS58: -0.0002253440684 | AT58: 0.006123150165 | AU58: 0.005028110679 | AV58: 0 | AW58: 0.003684692078 | AX58: -0.000543011752 | AY58: -0.005780116331 | AZ58: -0.003590068381 | BA58: 0.002795717346 | BB58: 0.01031730739 | BC58: 0.004460946114
A59: 13 | B59: Constant price revenue growth, 2016/17 | C59: 0.002576432369 | D59: 0.005667850681 | E59: -0.006341551611 | F59: 0.003247879157 | G59: -0.001944049735 | H59: 0.001223398738 | I59: 0.0002018015167 | J59: 0.005849077273 | K59: 0.004713043328 | L59: 0 | M59: 0.003388169276 | N59: 0.0005861251022 | O59: -0.004981761151 | P59: -0.0024329105 | Q59: 0.002993932414 | R59: 0.01097898621 | S59: 0.004471688252 | U59: 0 | V59: 0 | W59: 0 | X59: 0 | Y59: 0 | Z59: 0 | AA59: 0 | AB59: 0 | AC59: 0 | AD59: 0 | AE59: 0 | AF59: 0 | AG59: 0 | AH59: 0 | AI59: 0 | AJ59: 0 | AK59: 0 | AM59: 0.002576432369 | AN59: 0.005667850681 | AO59: -0.006341551611 | AP59: 0.003247879157 | AQ59: -0.001944049735 | AR59: 0.001223398738 | AS59: 0.0002018015167 | AT59: 0.005849077273 | AU59: 0.004713043328 | AV59: 0 | AW59: 0.003388169276 | AX59: 0.0005861251022 | AY59: -0.004981761151 | AZ59: -0.0024329105 | BA59: 0.002993932414 | BB59: 0.01097898621 | BC59: 0.004471688252
A60: 13 | B60: Constant price revenue growth, 2017/18 | C60: 0.002576432369 | D60: 0.005667850681 | E60: -0.006341551611 | F60: 0.003247879157 | G60: -0.001944049735 | H60: 0.001223398738 | I60: 0.0002018015167 | J60: 0.005849077273 | K60: 0.004713043328 | L60: 0 | M60: 0.003388169276 | N60: 0.0005861251022 | O60: -0.004981761151 | P60: -0.0024329105 | Q60: 0.002993932414 | R60: 0.01097898621 | S60: 0.004471688252 | U60: 0 | V60: 0 | W60: 0 | X60: 0 | Y60: 0 | Z60: 0 | AA60: 0 | AB60: 0 | AC60: 0 | AD60: 0 | AE60: 0 | AF60: 0 | AG60: 0 | AH60: 0 | AI60: 0 | AJ60: 0 | AK60: 0 | AM60: 0.002576432369 | AN60: 0.005667850681 | AO60: -0.006341551611 | AP60: 0.003247879157 | AQ60: -0.001944049735 | AR60: 0.001223398738 | AS60: 0.0002018015167 | AT60: 0.005849077273 | AU60: 0.004713043328 | AV60: 0 | AW60: 0.003388169276 | AX60: 0.0005861251022 | AY60: -0.004981761151 | AZ60: -0.0024329105 | BA60: 0.002993932414 | BB60: 0.01097898621 | BC60: 0.004471688252
A61: 13 | B61: Constant price revenue growth, 2018/19 | C61: 0.002576432369 | D61: 0.005667850681 | E61: -0.006341551611 | F61: 0.003247879157 | G61: -0.001944049735 | H61: 0.001223398738 | I61: 0.0002018015167 | J61: 0.005849077273 | K61: 0.004713043328 | L61: 0 | M61: 0.003388169276 | N61: 0.0005861251022 | O61: -0.004981761151 | P61: -0.0024329105 | Q61: 0.002993932414 | R61: 0.01097898621 | S61: 0.004471688252 | U61: 0 | V61: 0 | W61: 0 | X61: 0 | Y61: 0 | Z61: 0 | AA61: 0 | AB61: 0 | AC61: 0 | AD61: 0 | AE61: 0 | AF61: 0 | AG61: 0 | AH61: 0 | AI61: 0 | AJ61: 0 | AK61: 0 | AM61: 0.002576432369 | AN61: 0.005667850681 | AO61: -0.006341551611 | AP61: 0.003247879157 | AQ61: -0.001944049735 | AR61: 0.001223398738 | AS61: 0.0002018015167 | AT61: 0.005849077273 | AU61: 0.004713043328 | AV61: 0 | AW61: 0.003388169276 | AX61: 0.0005861251022 | AY61: -0.004981761151 | AZ61: -0.0024329105 | BA61: 0.002993932414 | BB61: 0.01097898621 | BC61: 0.004471688252
A62: 13 | B62: Constant price revenue growth, 2019/20 | C62: 0.002576432369 | D62: 0.005667850681 | E62: -0.006341551611 | F62: 0.003247879157 | G62: -0.001944049735 | H62: 0.001223398738 | I62: 0.0002018015167 | J62: 0.005849077273 | K62: 0.004713043328 | L62: 0 | M62: 0.003388169276 | N62: 0.0005861251022 | O62: -0.004981761151 | P62: -0.0024329105 | Q62: 0.002993932414 | R62: 0.01097898621 | S62: 0.004471688252 | U62: 0 | V62: 0 | W62: 0 | X62: 0 | Y62: 0 | Z62: 0 | AA62: 0 | AB62: 0 | AC62: 0 | AD62: 0 | AE62: 0 | AF62: 0 | AG62: 0 | AH62: 0 | AI62: 0 | AJ62: 0 | AK62: 0 | AM62: 0.002576432369 | AN62: 0.005667850681 | AO62: -0.006341551611 | AP62: 0.003247879157 | AQ62: -0.001944049735 | AR62: 0.001223398738 | AS62: 0.0002018015167 | AT62: 0.005849077273 | AU62: 0.004713043328 | AV62: 0 | AW62: 0.003388169276 | AX62: 0.0005861251022 | AY62: -0.004981761151 | AZ62: -0.0024329105 | BA62: 0.002993932414 | BB62: 0.01097898621 | BC62: 0.004471688252
B63: Value of commissioned assets | U63: VCA ex AMPs
A64: =A37+1 -> 4 | B64: ="Value of commissioned assets, " & N19 -> Value of commissioned assets, 2013/14 | C64: =IF($C$5<$A64,AM64,U64) -> 14228.64862 | D64: 11832 | E64: 2286 | F64: 16115 | G64: 4819.819381 | H64: 4450.069 | I64: 9083.337035 | J64: 12561.33285 | K64: 5601.59414 | L64: 77224 | M64: =IF($C$5<$A64,AW64,AE64) -> 9490.876 | N64: 98687.17964 | O64: 9425 | P64: 18906.10256 | Q64: 39348.76659 | R64: 149212 | S64: 31580.53291 | U64: =[1]Inputs!B43 -> 17961.77993 | V64: =[1]Inputs!C43 -> 63004.354 | W64: =[1]Inputs!D43 -> 5064 | X64: =[1]Inputs!E43 -> 16375.66566 | Y64: =[1]Inputs!F43 -> 11755.60458 | Z64: =[1]Inputs!G43 -> 4533.37 | AA64: =[1]Inputs!H43 -> 12884.01 | AB64: =[1]Inputs!I43 -> 1659.3482 | AC64: =[1]Inputs!J43 -> 6557 | AD64: =[1]Inputs!K43 -> 63636.968 | AE64: =[1]Inputs!L43 -> 12936.76861 | AF64: =[1]Inputs!M43 -> 185312.7343 | AG64: =[1]Inputs!N43 -> 23462.78369 | AH64: =[1]Inputs!O43 -> 15378.41393 | AI64: =[1]Inputs!P43 -> 53881.408 | AJ64: =[1]Inputs!Q43 -> 203460 | AK64: =[1]Inputs!R43 -> 37191.00171 | AM64: 14228.64862 | AN64: 11832 | AO64: 2286 | AP64: 16115 | AQ64: 4819.819381 | AR64: 4450.069 | AS64: 9083.337035 | AT64: 12561.33285 | AU64: 5601.59414 | AV64: 77224 | AW64: 9490.876 | AX64: 98687.17964 | AY64: 9425 | AZ64: 18906.10256 | BA64: 39348.76659 | BB64: 149212 | BC64: 31580.53291
A65: =$A$64 -> 4 | B65: Value of commissioned assets, 2014/15 | C65: 12882.83751 | D65: 23934.64712 | E65: 3044.087924 | F65: 15357.72125 | G65: 20464.63626 | H65: 11508.12701 | I65: 9534.455725 | J65: 826.7746915 | K65: 16593.80599 | L65: 87576.77527 | M65: 10257.9634 | N65: 109227.6454 | O65: 13561.71694 | P65: 25141.12742 | Q65: 48984.09606 | R65: 162927.3575 | S65: 33380.77505 | U65: =[1]Inputs!B44 -> 14014 | V65: =[1]Inputs!C44 -> 76195.24183 | W65: =[1]Inputs!D44 -> 6913.263609 | X65: =[1]Inputs!E44 -> 21629.30733 | Y65: =[1]Inputs!F44 -> 9803.84829 | Z65: =[1]Inputs!G44 -> 5750.222511 | AA65: =[1]Inputs!H44 -> 8296.868168 | AB65: =[1]Inputs!I44 -> 1552 | AC65: =[1]Inputs!J44 -> 15593 | AD65: =[1]Inputs!K44 -> 66443.232 | AE65: =[1]Inputs!L44 -> 23187.72482 | AF65: =[1]Inputs!M44 -> 180476 | AG65: =[1]Inputs!N44 -> 18922.35535 | AH65: =[1]Inputs!O44 -> 31785.32203 | AI65: =[1]Inputs!P44 -> 50412.92153 | AJ65: =[1]Inputs!Q44 -> 240761 | AK65: =[1]Inputs!R44 -> 52409.99428 | AM65: 12882.83751 | AN65: 23934.64712 | AO65: 3044.087924 | AP65: 15357.72125 | AQ65: 20464.63626 | AR65: 11508.12701 | AS65: 9534.455725 | AT65: 826.7746915 | AU65: 16593.80599 | AV65: 87576.77527 | AW65: 10257.9634 | AX65: 109227.6454 | AY65: 13561.71694 | AZ65: 25141.12742 | BA65: 48984.09606 | BB65: 162927.3575 | BC65: 33380.77505
A66: 4 | B66: Value of commissioned assets, 2015/16 | C66: 9564.482643 | D66: 26256.21724 | E66: 3367.315849 | F66: 16033.80447 | G66: 9892.956222 | H66: 5476.030568 | I66: 8231.471535 | J66: 823.8400499 | K66: 6793.220378 | L66: 82150.6763 | M66: 11238.73288 | N66: 94624.73982 | O66: 14358.4668 | P66: 17151.59253 | Q66: 47734.63517 | R66: 150980.1624 | S66: 27257.41116 | U66: =[1]Inputs!B45 -> 16663.08499 | V66: =[1]Inputs!C45 -> 50947.77351 | W66: =[1]Inputs!D45 -> 6059.7474 | X66: =[1]Inputs!E45 -> 18050.31413 | Y66: =[1]Inputs!F45 -> 9684.977778 | Z66: =[1]Inputs!G45 -> 4655.623511 | AA66: =[1]Inputs!H45 -> 8322.469242 | AB66: =[1]Inputs!I45 -> 1627.474824 | AC66: =[1]Inputs!J45 -> 10289.86037 | AD66: =[1]Inputs!K45 -> 72172.3836 | AE66: =[1]Inputs!L45 -> 13989.58467 | AF66: =[1]Inputs!M45 ->  | AG66: =[1]Inputs!N45 -> 18320.86004 | AH66: =[1]Inputs!O45 -> 14593.15331 | AI66: =[1]Inputs!P45 -> 46746.12475 | AJ66: =[1]Inputs!Q45 -> 211119.9719 | AK66: =[1]Inputs!R45 -> 37748.02201 | AM66: 9564.482643 | AN66: 26256.21724 | AO66: 3367.315849 | AP66: 16033.80447 | AQ66: 9892.956222 | AR66: 5476.030568 | AS66: 8231.471535 | AT66: 823.8400499 | AU66: 6793.220378 | AV66: 82150.6763 | AW66: 11238.73288 | AX66: 94624.73982 | AY66: 14358.4668 | AZ66: 17151.59253 | BA66: 47734.63517 | BB66: 150980.1624 | BC66: 27257.41116
A67: 4 | B67: Value of commissioned assets, 2016/17 | C67: 9433.789324 | D67: 16970.80906 | E67: 3007.605109 | F67: 23358.39882 | G67: 14592.83676 | H67: 3338.191776 | I67: 7417.492985 | J67: 1018.876855 | K67: 8524.921395 | L67: 56147.90986 | M67: 9728.064209 | N67: 100364.3283 | O67: 9993.034995 | P67: 20556.27527 | Q67: 38522.49864 | R67: 156692.8814 | S67: 28408.34119 | U67: =[1]Inputs!B46 -> 16978.39945 | V67: =[1]Inputs!C46 -> 50750.30833 | W67: =[1]Inputs!D46 -> 2773.830772 | X67: =[1]Inputs!E46 -> 17941.49324 | Y67: =[1]Inputs!F46 -> 10136.40106 | Z67: =[1]Inputs!G46 -> 5052.944771 | AA67: =[1]Inputs!H46 -> 6720.079499 | AB67: =[1]Inputs!I46 -> 1709.820373 | AC67: =[1]Inputs!J46 -> 12261.46064 | AD67: =[1]Inputs!K46 -> 63777.11187 | AE67: =[1]Inputs!L46 -> 13504.17305 | AF67: =[1]Inputs!M46 ->  | AG67: =[1]Inputs!N46 -> 16919.22791 | AH67: =[1]Inputs!O46 -> 15127.25397 | AI67: =[1]Inputs!P46 -> 52524.92856 | AJ67: =[1]Inputs!Q46 -> 209600.0063 | AK67: =[1]Inputs!R46 -> 35509.95434 | AM67: 9433.789324 | AN67: 16970.80906 | AO67: 3007.605109 | AP67: 23358.39882 | AQ67: 14592.83676 | AR67: 3338.191776 | AS67: 7417.492985 | AT67: 1018.876855 | AU67: 8524.921395 | AV67: 56147.90986 | AW67: 9728.064209 | AX67: 100364.3283 | AY67: 9993.034995 | AZ67: 20556.27527 | BA67: 38522.49864 | BB67: 156692.8814 | BC67: 28408.34119
A68: 4 | B68: Value of commissioned assets, 2017/18 | C68: 10826.83723 | D68: 15873.94714 | E68: 3224.491208 | F68: 18899.62755 | G68: 8224.041711 | H68: 2897.037824 | I68: 6974.725366 | J68: 1489.990013 | K68: 10739.30505 | L68: 49385.37545 | M68: 10573.50126 | N68: 115022.3328 | O68: 10050.04354 | P68: 17830.15053 | Q68: 37410.93703 | R68: 160728.9345 | S68: 34853.11279 | U68: =[1]Inputs!B47 -> 15377.14096 | V68: =[1]Inputs!C47 -> 48245.58195 | W68: =[1]Inputs!D47 -> 3967.781561 | X68: =[1]Inputs!E47 -> 17796.75912 | Y68: =[1]Inputs!F47 -> 8982.174078 | Z68: =[1]Inputs!G47 -> 5567.574752 | AA68: =[1]Inputs!H47 -> 8075.367255 | AB68: =[1]Inputs!I47 -> 1663.731588 | AC68: =[1]Inputs!J47 -> 9042.364133 | AD68: =[1]Inputs!K47 -> 89623.65441 | AE68: =[1]Inputs!L47 -> 18002.80896 | AF68: =[1]Inputs!M47 ->  | AG68: =[1]Inputs!N47 -> 15873.67665 | AH68: =[1]Inputs!O47 -> 16514.78571 | AI68: =[1]Inputs!P47 -> 50530.60146 | AJ68: =[1]Inputs!Q47 -> 213423.9823 | AK68: =[1]Inputs!R47 -> 37677.09052 | AM68: 10826.83723 | AN68: 15873.94714 | AO68: 3224.491208 | AP68: 18899.62755 | AQ68: 8224.041711 | AR68: 2897.037824 | AS68: 6974.725366 | AT68: 1489.990013 | AU68: 10739.30505 | AV68: 49385.37545 | AW68: 10573.50126 | AX68: 115022.3328 | AY68: 10050.04354 | AZ68: 17830.15053 | BA68: 37410.93703 | BB68: 160728.9345 | BC68: 34853.11279
A69: 4 | B69: Value of commissioned assets, 2018/19 | C69: 8006.435746 | D69: 17293.50685 | E69: 3016.546692 | F69: 18319.39753 | G69: 6679.400295 | H69: 2148.562666 | I69: 6499.38455 | J69: 1594.891489 | K69: 7354.01623 | L69: 38675.87694 | M69: 10734.53401 | N69: 114441.6798 | O69: 9638.945259 | P69: 16338.21022 | Q69: 37365.44531 | R69: 166664.4912 | S69: 31196.83322 | U69: =[1]Inputs!B48 -> 14672.77715 | V69: =[1]Inputs!C48 -> 38772.73852 | W69: =[1]Inputs!D48 -> 2840.710231 | X69: =[1]Inputs!E48 -> 15710.8415 | Y69: =[1]Inputs!F48 -> 9383.363028 | Z69: =[1]Inputs!G48 -> 5578.077014 | AA69: =[1]Inputs!H48 -> 8520.763277 | AB69: =[1]Inputs!I48 -> 1665.534351 | AC69: =[1]Inputs!J48 -> 10071.95114 | AD69: =[1]Inputs!K48 -> 79929.574 | AE69: =[1]Inputs!L48 -> 23071.29684 | AF69: =[1]Inputs!M48 ->  | AG69: =[1]Inputs!N48 -> 16558.30227 | AH69: =[1]Inputs!O48 -> 16264.11707 | AI69: =[1]Inputs!P48 -> 46851.60486 | AJ69: =[1]Inputs!Q48 -> 209518.1839 | AK69: =[1]Inputs!R48 -> 39911.18605 | AM69: 8006.435746 | AN69: 17293.50685 | AO69: 3016.546692 | AP69: 18319.39753 | AQ69: 6679.400295 | AR69: 2148.562666 | AS69: 6499.38455 | AT69: 1594.891489 | AU69: 7354.01623 | AV69: 38675.87694 | AW69: 10734.53401 | AX69: 114441.6798 | AY69: 9638.945259 | AZ69: 16338.21022 | BA69: 37365.44531 | BB69: 166664.4912 | BC69: 31196.83322
A70: 4 | B70: Value of commissioned assets, 2019/20 | C70: 8895.768951 | D70: 13134.16447 | E70: 2820.140331 | F70: 13076.03175 | G70: 7138.793275 | H70: 3077.723167 | I70: 6682.349201 | J70: 1951.968358 | K70: 6713.104383 | L70: 65377.66475 | M70: 10546.22105 | N70: 121831.9492 | O70: 11321.9218 | P70: 18443.54542 | Q70: 34263.29831 | R70: 162527.0563 | S70: 31209.07158 | U70: =[1]Inputs!B49 -> 14150.71115 | V70: =[1]Inputs!C49 -> 43211.49356 | W70: =[1]Inputs!D49 -> 2963.686482 | X70: =[1]Inputs!E49 -> 14722.51895 | Y70: =[1]Inputs!F49 -> 10052.31519 | Z70: =[1]Inputs!G49 -> 5125.786826 | AA70: =[1]Inputs!H49 -> 8567.100545 | AB70: =[1]Inputs!I49 -> 1671.915809 | AC70: =[1]Inputs!J49 -> 8471.990543 | AD70: =[1]Inputs!K49 -> 84444.36524 | AE70: =[1]Inputs!L49 -> 13934.59964 | AF70: =[1]Inputs!M49 ->  | AG70: =[1]Inputs!N49 -> 15250.21014 | AH70: =[1]Inputs!O49 -> 16597.07094 | AI70: =[1]Inputs!P49 -> 48041.41008 | AJ70: =[1]Inputs!Q49 -> 197131.6496 | AK70: =[1]Inputs!R49 -> 42077.36282 | AM70: 8895.768951 | AN70: 13134.16447 | AO70: 2820.140331 | AP70: 13076.03175 | AQ70: 7138.793275 | AR70: 3077.723167 | AS70: 6682.349201 | AT70: 1951.968358 | AU70: 6713.104383 | AV70: 65377.66475 | AW70: 10546.22105 | AX70: 121831.9492 | AY70: 11321.9218 | AZ70: 18443.54542 | BA70: 34263.29831 | BB70: 162527.0563 | BC70: 31209.07158
B71: Disposed assets
A72: =A64+1 -> 5 | B72: ="Value of disposed assets, " & N19 -> Value of disposed assets, 2013/14 | C72: =IF($C$5<$A72,AM72,U72) -> 168 | D72: 129 | E72: 0 | F72: 1614 | G72: 146.0962555 | H72: 214 | I72: 100 | J72: 0 | K72: 274 | L72: 25717 | M72: =IF($C$5<$A72,AW72,AE72) -> 19 | N72: 8275 | O72: 14 | P72: 63 | Q72: 5461 | R72: 8447 | S72: 371 | U72: =[1]Inputs!B51 -> 0 | V72: =[1]Inputs!C51 -> 853.067 | W72: =[1]Inputs!D51 -> 38 | X72: =[1]Inputs!E51 -> 773.1872516 | Y72: =[1]Inputs!F51 -> 162.027095 | Z72: =[1]Inputs!G51 -> 125.5172149 | AA72: =[1]Inputs!H51 -> 142.4 | AB72: =[1]Inputs!I51 -> 0 | AC72: =[1]Inputs!J51 -> 393 | AD72: =[1]Inputs!K51 -> 1377.93637 | AE72: =[1]Inputs!L51 -> 79.50196669 | AF72: =[1]Inputs!M51 -> 12095.95858 | AG72: =[1]Inputs!N51 -> 346.585288 | AH72: =[1]Inputs!O51 -> 15.95 | AI72: =[1]Inputs!P51 -> 1812 | AJ72: =[1]Inputs!Q51 -> 7412 | AK72: =[1]Inputs!R51 -> 0 | AM72: 168 | AN72: 129 | AO72: 0 | AP72: 1614 | AQ72: 146.0962555 | AR72: 214 | AS72: 100 | AT72: 0 | AU72: 274 | AV72: 25717 | AW72: 19 | AX72: 8275 | AY72: 14 | AZ72: 63 | BA72: 5461 | BB72: 8447 | BC72: 371
A73: =$A$72 -> 5 | B73: Value of disposed assets, 2014/15 | C73: 326.9529925 | D73: 234.7904488 | E73: 0 | F73: 1363.244145 | G73: 359.6224043 | H73: 246.8607898 | I73: 336.3032778 | J73: 0 | K73: 376.4130067 | L73: 6551.039112 | M73: 65.984107 | N73: 8205.943466 | O73: 16.39256765 | P73: 32.23039123 | Q73: 1659.99242 | R73: 9355.212795 | S73: 94.27768896 | U73: =[1]Inputs!B52 -> 130.5628549 | V73: =[1]Inputs!C52 -> 291.1814714 | W73: =[1]Inputs!D52 -> 28.18579202 | X73: =[1]Inputs!E52 -> 1081.618105 | Y73: =[1]Inputs!F52 -> 178.4788566 | Z73: =[1]Inputs!G52 -> 122.5443026 | AA73: =[1]Inputs!H52 -> 279.5283851 | AB73: =[1]Inputs!I52 -> 69.6737697 | AC73: =[1]Inputs!J52 -> 549.0391778 | AD73: =[1]Inputs!K52 -> 1719.455398 | AE73: =[1]Inputs!L52 -> 286.7167309 | AF73: =[1]Inputs!M52 -> 11719.77637 | AG73: =[1]Inputs!N52 -> 506.7122106 | AH73: =[1]Inputs!O52 -> 27.48176853 | AI73: =[1]Inputs!P52 -> 2627.610878 | AJ73: =[1]Inputs!Q52 -> 10769.99498 | AK73: =[1]Inputs!R52 -> 3.283449027 | AM73: 326.9529925 | AN73: 234.7904488 | AO73: 0 | AP73: 1363.244145 | AQ73: 359.6224043 | AR73: 246.8607898 | AS73: 336.3032778 | AT73: 0 | AU73: 376.4130067 | AV73: 6551.039112 | AW73: 65.984107 | AX73: 8205.943466 | AY73: 16.39256765 | AZ73: 32.23039123 | BA73: 1659.99242 | BB73: 9355.212795 | BC73: 94.27768896
A74: =$A$72 -> 5 | B74: Value of disposed assets, 2015/16 | C74: 332.6320767 | D74: 238.8686948 | E74: 0 | F74: 1386.923324 | G74: 365.8689473 | H74: 251.1486943 | I74: 342.1447739 | J74: 0 | K74: 382.9511979 | L74: 6664.828873 | M74: 67.13023292 | N74: 8348.478464 | O74: 16.67730208 | P74: 32.79022433 | Q74: 1688.826035 | R74: 9517.710288 | S74: 95.91526668 | U74: =[1]Inputs!B53 -> 133.0435492 | V74: =[1]Inputs!C53 -> 296.7139193 | W74: =[1]Inputs!D53 -> 28.72132207 | X74: =[1]Inputs!E53 -> 1102.168849 | Y74: =[1]Inputs!F53 -> 181.8699549 | Z74: =[1]Inputs!G53 -> 124.8726444 | AA74: =[1]Inputs!H53 -> 284.8394244 | AB74: =[1]Inputs!I53 -> 70.99757132 | AC74: =[1]Inputs!J53 -> 559.4709222 | AD74: =[1]Inputs!K53 -> 1752.125051 | AE74: =[1]Inputs!L53 -> 292.1643488 | AF74: =[1]Inputs!M53 -> 11942.45212 | AG74: =[1]Inputs!N53 -> 516.3397426 | AH74: =[1]Inputs!O53 -> 28.00392213 | AI74: =[1]Inputs!P53 -> 2677.535484 | AJ74: =[1]Inputs!Q53 -> 10974.62489 | AK74: =[1]Inputs!R53 -> 3.345834558 | AM74: 332.6320767 | AN74: 238.8686948 | AO74: 0 | AP74: 1386.923324 | AQ74: 365.8689473 | AR74: 251.1486943 | AS74: 342.1447739 | AT74: 0 | AU74: 382.9511979 | AV74: 6664.828873 | AW74: 67.13023292 | AX74: 8348.478464 | AY74: 16.67730208 | AZ74: 32.79022433 | BA74: 1688.826035 | BB74: 9517.710288 | BC74: 95.91526668
A75: 5 | B75: Value of disposed assets, 2016/17 | C75: 339.6633239 | D75: 243.9179517 | E75: 0 | F75: 1416.240403 | G75: 373.6027625 | H75: 256.4575285 | I75: 349.3771024 | J75: 0 | K75: 391.0461013 | L75: 6805.711435 | M75: 68.54924598 | N75: 8524.950367 | O75: 17.02983041 | P75: 33.48335103 | Q75: 1724.524797 | R75: 9718.89766 | S75: 97.94274386 | U75: =[1]Inputs!B54 -> 135.7044202 | V75: =[1]Inputs!C54 -> 302.6481977 | W75: =[1]Inputs!D54 -> 29.29574851 | X75: =[1]Inputs!E54 -> 1124.212226 | Y75: =[1]Inputs!F54 -> 185.507354 | Z75: =[1]Inputs!G54 -> 127.3700973 | AA75: =[1]Inputs!H54 -> 290.5362129 | AB75: =[1]Inputs!I54 -> 72.41752275 | AC75: =[1]Inputs!J54 -> 570.6603406 | AD75: =[1]Inputs!K54 -> 1787.167552 | AE75: =[1]Inputs!L54 -> 298.0076358 | AF75: =[1]Inputs!M54 -> 12181.30116 | AG75: =[1]Inputs!N54 -> 526.6665374 | AH75: =[1]Inputs!O54 -> 28.56400058 | AI75: =[1]Inputs!P54 -> 2731.086194 | AJ75: =[1]Inputs!Q54 -> 11194.11739 | AK75: =[1]Inputs!R54 -> 3.412751249 | AM75: 339.6633239 | AN75: 243.9179517 | AO75: 0 | AP75: 1416.240403 | AQ75: 373.6027625 | AR75: 256.4575285 | AS75: 349.3771024 | AT75: 0 | AU75: 391.0461013 | AV75: 6805.711435 | AW75: 68.54924598 | AX75: 8524.950367 | AY75: 17.02983041 | AZ75: 33.48335103 | BA75: 1724.524797 | BB75: 9718.89766 | BC75: 97.94274386
A76: 5 | B76: Value of disposed assets, 2017/18 | C76: 347.0236046 | D76: 249.2034932 | E76: 0 | F76: 1446.9294 | G76: 381.6984884 | H76: 262.0147943 | I76: 356.9478743 | J76: 0 | K76: 399.519813 | L76: 6953.186723 | M76: 70.03466302 | N76: 8709.680431 | O76: 17.39885563 | P76: 34.20891321 | Q76: 1761.894114 | R76: 9929.499776 | S76: 100.0650987 | U76: =[1]Inputs!B55 -> 138.4185086 | V76: =[1]Inputs!C55 -> 308.7011617 | W76: =[1]Inputs!D55 -> 29.88166348 | X76: =[1]Inputs!E55 -> 1146.696471 | Y76: =[1]Inputs!F55 -> 189.2175011 | Z76: =[1]Inputs!G55 -> 129.9174992 | AA76: =[1]Inputs!H55 -> 296.3469372 | AB76: =[1]Inputs!I55 -> 73.8658732 | AC76: =[1]Inputs!J55 -> 582.0735474 | AD76: =[1]Inputs!K55 -> 1822.910903 | AE76: =[1]Inputs!L55 -> 303.9677885 | AF76: =[1]Inputs!M55 -> 12424.92718 | AG76: =[1]Inputs!N55 -> 537.1998682 | AH76: =[1]Inputs!O55 -> 29.13528059 | AI76: =[1]Inputs!P55 -> 2785.707918 | AJ76: =[1]Inputs!Q55 -> 11417.99973 | AK76: =[1]Inputs!R55 -> 3.481006274 | AM76: 347.0236046 | AN76: 249.2034932 | AO76: 0 | AP76: 1446.9294 | AQ76: 381.6984884 | AR76: 262.0147943 | AS76: 356.9478743 | AT76: 0 | AU76: 399.519813 | AV76: 6953.186723 | AW76: 70.03466302 | AX76: 8709.680431 | AY76: 17.39885563 | AZ76: 34.20891321 | BA76: 1761.894114 | BB76: 9929.499776 | BC76: 100.0650987
A77: 5 | B77: Value of disposed assets, 2018/19 | C77: 354.3502774 | D77: 254.4649003 | E77: 0 | F77: 1477.478268 | G77: 389.7572484 | H77: 267.5466851 | I77: 364.4840772 | J77: 0 | K77: 407.9548327 | L77: 7099.988621 | M77: 71.51329748 | N77: 8893.566996 | O77: 17.76619584 | P77: 34.93116239 | Q77: 1799.092799 | R77: 10139.14026 | S77: 102.1777625 | U77: =[1]Inputs!B56 -> 141.1868787 | V77: =[1]Inputs!C56 -> 314.8751849 | W77: =[1]Inputs!D56 -> 30.47929675 | X77: =[1]Inputs!E56 -> 1169.6304 | Y77: =[1]Inputs!F56 -> 193.0018511 | Z77: =[1]Inputs!G56 -> 132.5158492 | AA77: =[1]Inputs!H56 -> 302.2738759 | AB77: =[1]Inputs!I56 -> 75.34319067 | AC77: =[1]Inputs!J56 -> 593.7150184 | AD77: =[1]Inputs!K56 -> 1859.369121 | AE77: =[1]Inputs!L56 -> 310.0471442 | AF77: =[1]Inputs!M56 -> 12673.42573 | AG77: =[1]Inputs!N56 -> 547.9438655 | AH77: =[1]Inputs!O56 -> 29.7179862 | AI77: =[1]Inputs!P56 -> 2841.422076 | AJ77: =[1]Inputs!Q56 -> 11646.35973 | AK77: =[1]Inputs!R56 -> 3.5506264 | AM77: 354.3502774 | AN77: 254.4649003 | AO77: 0 | AP77: 1477.478268 | AQ77: 389.7572484 | AR77: 267.5466851 | AS77: 364.4840772 | AT77: 0 | AU77: 407.9548327 | AV77: 7099.988621 | AW77: 71.51329748 | AX77: 8893.566996 | AY77: 17.76619584 | AZ77: 34.93116239 | BA77: 1799.092799 | BB77: 10139.14026 | BC77: 102.1777625
A78: 5 | B78: Value of disposed assets, 2019/20 | C78: 361.6344602 | D78: 259.6957946 | E78: 0 | F78: 1507.849972 | G78: 397.7692727 | H78: 273.0464944 | I78: 371.9765749 | J78: 0 | K78: 416.3409347 | L78: 7245.939163 | M78: 72.98335681 | N78: 9076.387137 | O78: 18.1314057 | P78: 35.64922299 | Q78: 1836.075755 | R78: 10347.56496 | S78: 104.2781743 | U78: =[1]Inputs!B57 -> 144.0106163 | V78: =[1]Inputs!C57 -> 321.1726886 | W78: =[1]Inputs!D57 -> 31.08888268 | X78: =[1]Inputs!E57 -> 1193.023008 | Y78: =[1]Inputs!F57 -> 196.8618881 | Z78: =[1]Inputs!G57 -> 135.1661662 | AA78: =[1]Inputs!H57 -> 308.3193534 | AB78: =[1]Inputs!I57 -> 76.85005448 | AC78: =[1]Inputs!J57 -> 605.5893187 | AD78: =[1]Inputs!K57 -> 1896.556503 | AE78: =[1]Inputs!L57 -> 316.2480871 | AF78: =[1]Inputs!M57 -> 12926.89424 | AG78: =[1]Inputs!N57 -> 558.9027428 | AH78: =[1]Inputs!O57 -> 30.31234592 | AI78: =[1]Inputs!P57 -> 2898.250518 | AJ78: =[1]Inputs!Q57 -> 11879.28692 | AK78: =[1]Inputs!R57 -> 3.621638928 | AM78: 361.6344602 | AN78: 259.6957946 | AO78: 0 | AP78: 1507.849972 | AQ78: 397.7692727 | AR78: 273.0464944 | AS78: 371.9765749 | AT78: 0 | AU78: 416.3409347 | AV78: 7245.939163 | AW78: 72.98335681 | AX78: 9076.387137 | AY78: 18.1314057 | AZ78: 35.64922299 | BA78: 1836.075755 | BB78: 10347.56496 | BC78: 104.2781743
B79: Other regulated income | U79: Zeroed
A80: =A48+1 -> 7 | B80: ="Other regulated income, " & N19 -> Other regulated income, 2013/14 | C80: =IF($C$5<$A80,AM80,U80) -> -141 | D80: 2862 | E80: 122 | F80: 642 | G80: 104 | H80: -127 | I80: 346 | J80: 51 | K80: 59 | L80: -3812 | M80: =IF($C$5<$A80,AW80,AE80) -> 540 | N80: -7879 | O80: 11 | P80: 545 | Q80: -3185 | R80: -4235 | S80: 191 | U80: 0 | V80: 0 | W80: 0 | X80: 0 | Y80: 0 | Z80: 0 | AA80: 0 | AB80: 0 | AC80: 0 | AD80: 0 | AE80: 0 | AF80: 0 | AG80: 0 | AH80: 0 | AI80: 0 | AJ80: 0 | AK80: 0 | AM80: -141 | AN80: 2862 | AO80: 122 | AP80: 642 | AQ80: 104 | AR80: -127 | AS80: 346 | AT80: 51 | AU80: 59 | AV80: -3812 | AW80: 540 | AX80: -7879 | AY80: 11 | AZ80: 545 | BA80: -3185 | BB80: -4235 | BC80: 191
A81: =$A$80 -> 7 | B81: Other regulated income, 2014/15 | C81: -277.3269603 | D81: 1955.990712 | E81: 120.4851393 | F81: -70.58103404 | G81: -79.47374045 | H81: -95.72203404 | I81: 102.989346 | J81: 87.4526818 | K81: 422.483036 | L81: 6173.207913 | M81: 553.215387 | N81: -7882.586422 | O81: 9.151828823 | P81: 355.1556179 | Q81: -507.629406 | R81: -785.1401378 | S81: 425.2561056 | U81: 0 | V81: 0 | W81: 0 | X81: 0 | Y81: 0 | Z81: 0 | AA81: 0 | AB81: 0 | AC81: 0 | AD81: 0 | AE81: 0 | AF81: 0 | AG81: 0 | AH81: 0 | AI81: 0 | AJ81: 0 | AK81: 0 | AM81: -277.3269603 | AN81: 1955.990712 | AO81: 120.4851393 | AP81: -70.58103404 | AQ81: -79.47374045 | AR81: -95.72203404 | AS81: 102.989346 | AT81: 87.4526818 | AU81: 422.483036 | AV81: 6173.207913 | AW81: 553.215387 | AX81: -7882.586422 | AY81: 9.151828823 | AZ81: 355.1556179 | BA81: -507.629406 | BB81: -785.1401378 | BC81: 425.2561056
A82: =$A$80 -> 7 | B82: Other regulated income, 2015/16 | C82: -282.1440539 | D82: 1989.965737 | E82: 122.5779332 | F82: -71.80700734 | G82: -80.85417763 | H82: -97.38469964 | I82: 104.7782428 | J82: 88.97171101 | K82: 429.821451 | L82: 6280.43485 | M82: 562.8245873 | N82: -8019.504796 | O82: 9.310793592 | P82: 361.324574 | Q82: -516.4467902 | R82: -798.7778077 | S82: 432.642688 | U82: 0 | V82: 0 | W82: 0 | X82: 0 | Y82: 0 | Z82: 0 | AA82: 0 | AB82: 0 | AC82: 0 | AD82: 0 | AE82: 0 | AF82: 0 | AG82: 0 | AH82: 0 | AI82: 0 | AJ82: 0 | AK82: 0 | AM82: -282.1440539 | AN82: 1989.965737 | AO82: 122.5779332 | AP82: -71.80700734 | AQ82: -80.85417763 | AR82: -97.38469964 | AS82: 104.7782428 | AT82: 88.97171101 | AU82: 429.821451 | AV82: 6280.43485 | AW82: 562.8245873 | AX82: -8019.504796 | AY82: 9.310793592 | AZ82: 361.324574 | BA82: -516.4467902 | BB82: -798.7778077 | BC82: 432.642688
A83: 7 | B83: Other regulated income, 2016/17 | C83: -288.1080746 | D83: 2032.030054 | E83: 125.1690115 | F83: -73.32487904 | G83: -82.56329033 | H83: -99.44323801 | I83: 106.9930675 | J83: 90.85241384 | K83: 438.9071077 | L83: 6413.192009 | M83: 574.7216924 | N83: -8189.022784 | O83: 9.507607115 | P83: 368.9623293 | Q83: -527.3635516 | R83: -815.6625418 | S83: 441.7879806 | U83: 0 | V83: 0 | W83: 0 | X83: 0 | Y83: 0 | Z83: 0 | AA83: 0 | AB83: 0 | AC83: 0 | AD83: 0 | AE83: 0 | AF83: 0 | AG83: 0 | AH83: 0 | AI83: 0 | AJ83: 0 | AK83: 0 | AM83: -288.1080746 | AN83: 2032.030054 | AO83: 125.1690115 | AP83: -73.32487904 | AQ83: -82.56329033 | AR83: -99.44323801 | AS83: 106.9930675 | AT83: 90.85241384 | AU83: 438.9071077 | AV83: 6413.192009 | AW83: 574.7216924 | AX83: -8189.022784 | AY83: 9.507607115 | AZ83: 368.9623293 | BA83: -527.3635516 | BB83: -815.6625418 | BC83: 441.7879806
A84: 7 | B84: Other regulated income, 2017/18 | C84: -294.3511869 | D84: 2076.062807 | E84: 127.8813416 | F84: -74.91378091 | G84: -84.35238249 | H84: -101.5981075 | I84: 109.3115368 | J84: 92.82112586 | K84: 448.4179359 | L84: 6552.161659 | M84: 587.1755333 | N84: -8366.473518 | O84: 9.713630704 | P84: 376.9575001 | Q84: -538.7911727 | R84: -833.3374123 | S84: 451.3612354 | U84: 0 | V84: 0 | W84: 0 | X84: 0 | Y84: 0 | Z84: 0 | AA84: 0 | AB84: 0 | AC84: 0 | AD84: 0 | AE84: 0 | AF84: 0 | AG84: 0 | AH84: 0 | AI84: 0 | AJ84: 0 | AK84: 0 | AM84: -294.3511869 | AN84: 2076.062807 | AO84: 127.8813416 | AP84: -74.91378091 | AQ84: -84.35238249 | AR84: -101.5981075 | AS84: 109.3115368 | AT84: 92.82112586 | AU84: 448.4179359 | AV84: 6552.161659 | AW84: 587.1755333 | AX84: -8366.473518 | AY84: 9.713630704 | AZ84: 376.9575001 | BA84: -538.7911727 | BB84: -833.3374123 | BC84: 451.3612354
A85: 7 | B85: Other regulated income, 2018/19 | C85: -300.5657925 | D85: 2119.894503 | E85: 130.5812869 | F85: -76.49542767 | G85: -86.13330546 | H85: -103.7431377 | I85: 111.6194198 | J85: 94.78084851 | K85: 457.8853365 | L85: 6690.496758 | M85: 599.5725084 | N85: -8543.113992 | O85: 9.918713565 | P85: 384.9161641 | Q85: -550.1666139 | R85: -850.9315773 | S85: 460.8907776 | U85: 0 | V85: 0 | W85: 0 | X85: 0 | Y85: 0 | Z85: 0 | AA85: 0 | AB85: 0 | AC85: 0 | AD85: 0 | AE85: 0 | AF85: 0 | AG85: 0 | AH85: 0 | AI85: 0 | AJ85: 0 | AK85: 0 | AM85: -300.5657925 | AN85: 2119.894503 | AO85: 130.5812869 | AP85: -76.49542767 | AQ85: -86.13330546 | AR85: -103.7431377 | AS85: 111.6194198 | AT85: 94.78084851 | AU85: 457.8853365 | AV85: 6690.496758 | AW85: 599.5725084 | AX85: -8543.113992 | AY85: 9.918713565 | AZ85: 384.9161641 | BA85: -550.1666139 | BB85: -850.9315773 | BC85: 460.8907776
A86: 7 | B86: Other regulated income, 2019/20 | C86: -306.7443574 | D86: 2163.472002 | E86: 133.2655742 | F86: -78.0679019 | G86: -87.90390021 | H86: -105.875728 | I86: 113.9139185 | J86: 96.72920602 | K86: 467.2978323 | L86: 6828.029602 | M86: 611.8975891 | N86: -8718.730064 | O86: 10.12260708 | P86: 392.8286729 | Q86: -561.4760849 | R86: -868.4237074 | S86: 470.3650546 | U86: 0 | V86: 0 | W86: 0 | X86: 0 | Y86: 0 | Z86: 0 | AA86: 0 | AB86: 0 | AC86: 0 | AD86: 0 | AE86: 0 | AF86: 0 | AG86: 0 | AH86: 0 | AI86: 0 | AJ86: 0 | AK86: 0 | AM86: -306.7443574 | AN86: 2163.472002 | AO86: 133.2655742 | AP86: -78.0679019 | AQ86: -87.90390021 | AR86: -105.875728 | AS86: 113.9139185 | AT86: 96.72920602 | AU86: 467.2978323 | AV86: 6828.029602 | AW86: 611.8975891 | AX86: -8718.730064 | AY86: 10.12260708 | AZ86: 392.8286729 | BA86: -561.4760849 | BB86: -868.4237074 | BC86: 470.3650546
B87: Allowable notional revenue
B88: Allowable notional revenue 2014/2015 | C88: =IF($C$5<$A88,AM88,U88) -> 31278.35088 | D88: 57665.066 | E88: 9928.87278 | F88: 21449.537 | G88: 29790.56014 | H88: 13121 | I88: 21308.973 | J88: 6884.494938 | K88: 29374.553 | L88: 0 | M88: =IF($C$5<$A88,AW88,AE88) -> 25230 | N88: 244422 | O88: 38054 | P88: 33930 | Q88: 101327.41 | R88: 395990 | S88: 104846.1601 | U88: 31278.35088 | V88: 57665.066 | W88: 9928.87278 | X88: 21449.537 | Y88: 29790.56014 | Z88: 13121 | AA88: 21308.973 | AB88: 6884.494938 | AC88: 29374.553 | AD88: 0 | AE88: 25230 | AF88: 244422 | AG88: 38054 | AH88: 33930 | AI88: 101327.41 | AJ88: 395990 | AK88: 104846.1601 | AM88: 31278.35088 | AN88: 57665.066 | AO88: 9928.87278 | AP88: 29790.56014 | AQ88: 21449.537 | AR88: 13121 | AS88: 21308.973 | AT88: 6884.494938 | AU88: 29374.553 | AV88: 0 | AW88: 25230 | AX88: 244422 | AY88: 38054 | AZ88: 33930 | BA88: 101327.41 | BB88: 395990 | BC88: 104846.1601
B89: Pass-through costs 2014/15 | C89: 302.105 | D89: 1137.583 | E89: 88 | F89: 365 | G89: 358 | H89: 193 | I89: 304.7 | J89: 84 | K89: 240 | L89: 0 | M89: 235 | N89: 3076 | O89: 342 | P89: 5824 | Q89: 1271 | R89: 11551 | S89: 2907 | U89: 302.105 | V89: 1137.583 | W89: 88 | X89: 365 | Y89: 358 | Z89: 193 | AA89: 304.7 | AB89: 84 | AC89: 240 | AD89: 0 | AE89: 235 | AF89: 3076 | AG89: 342 | AH89: 5824 | AI89: 1271 | AJ89: 11551 | AK89: 2907 | AM89: 302.105 | AN89: 1137.583 | AO89: 88 | AP89: 358 | AQ89: 365 | AR89: 193 | AS89: 304.7 | AT89: 84 | AU89: 240 | AV89: 0 | AW89: 235 | AX89: 3076 | AY89: 342 | AZ89: 5824 | BA89: 1271 | BB89: 11551 | BC89: 2907
B90: Claw-back
A91: 1 | B91: Claw-back 2014/15 | C91: =IF($C$5<$A91,AM91,U91) -> 0 | D91: 415.933 | E91: 0 | F91: 1143.734982 | G91: 34.377 | H91: 762 | I91: -661.997 | J91: 474.9692774 | K91: 2793 | L91: 0 | M91: =IF($C$5<$A91,AW91,AE91) -> 1099 | N91: 6001 | O91: 0 | P91: 0 | Q91: 0 | R91: -15780 | S91: 8050.85401 | U91: 0 | V91: 0 | W91: 0 | X91: 0 | Y91: 0 | Z91: 0 | AA91: 0 | AB91: 0 | AC91: 0 | AD91: 0 | AE91: 0 | AF91: 0 | AG91: 0 | AH91: 0 | AI91: 0 | AJ91: 0 | AK91: 0 | AM91: 0 | AN91: 415.933 | AO91: 0 | AP91: 1143.734982 | AQ91: 34.377 | AR91: 762 | AS91: -661.997 | AT91: 474.9692774 | AU91: 2793 | AV91: 0 | AW91: 1099 | AX91: 6001 | AY91: 0 | AZ91: 0 | BA91: 0 | BB91: -15780 | BC91: 8050.85401
A92: 1 | B92: Claw-back 2015/16 | C92: 4983.653576 | D92: 0 | E92: 627.8500642 | F92: 0 | G92: 0 | H92: 0 | I92: 0 | J92: 0 | K92: 0 | L92: 0 | M92: 0 | N92: 0 | O92: 0 | P92: 2132.183522 | Q92: 2009.417147 | R92: 0 | S92: 0 | U92: 0 | V92: 0 | W92: 0 | X92: 0 | Y92: 0 | Z92: 0 | AA92: 0 | AB92: 0 | AC92: 0 | AD92: 0 | AE92: 0 | AF92: 0 | AG92: 0 | AH92: 0 | AI92: 0 | AJ92: 0 | AK92: 0 | AM92: 4983.653576 | AN92: 0 | AO92: 627.8500642 | AP92: 0 | AQ92: 0 | AR92: 0 | AS92: 0 | AT92: 0 | AU92: 0 | AV92: 0 | AW92: 0 | AX92: 0 | AY92: 0 | AZ92: 2132.183522 | BA92: 2009.417147 | BB92: 0 | BC92: 0
B95: Estimated 2019/20 allowable revenue ex Revenue change model
C96: =[2]Outputs!B5 -> Alpine Energy | D96: =[2]Outputs!C5 -> Aurora Energy | E96: =[2]Outputs!D5 -> Centralines | F96: =[2]Outputs!E5 -> EA Networks | G96: =[2]Outputs!F5 -> Eastland Network | H96: =[2]Outputs!G5 -> Electricity Invercargill | I96: =[2]Outputs!H5 -> Horizon Energy | J96: =[2]Outputs!I5 -> Nelson Electricity | K96: =[2]Outputs!J5 -> Network Tasman | L96: =[2]Outputs!L5 -> OtagoNet | M96: =[2]Outputs!M5 -> The Lines Company | N96: =[2]Outputs!N5 -> Top Energy | O96: =[2]Outputs!O5 -> Unison Networks | P96: =[2]Outputs!P5 -> Vector Lines
B97: Estimated 2019/20 allowable revenue | C97: =[2]Outputs!B7 -> 49719.82703 | D97: =[2]Outputs!C7 -> 67031.77007 | E97: =[2]Outputs!D7 -> 14465.45298 | F97: =[2]Outputs!E7 -> 37120.37321 | G97: =[2]Outputs!F7 -> 27873.52195 | H97: =[2]Outputs!G7 -> 13951.54334 | I97: =[2]Outputs!H7 -> 23616.33857 | J97: =[2]Outputs!I7 -> 6803.157236 | K97: =[2]Outputs!J7 -> 28269.63342 | L97: =[2]Outputs!L7 -> 27205.40425 | M97: =[2]Outputs!M7 -> 40848.16814 | N97: =[2]Outputs!N7 -> 48585.63677 | O97: =[2]Outputs!O7 -> 112883.5122 | P97: =[2]Outputs!P7 -> 417635.917

Sheet EDB data
A1: Inputs for the selected distributor | H1: =EDB_Name -> Total for selected EDBs
A2: Data from the Inputs sheet that relates to the selected distributor. The distributor's name is user-selected in cell C4.
A3: Distributor | C3: Scenario
A4: Name | C4: =Waterfall!D3 -> Total for selected EDBs
A5: Distributor number | C5: =Reconciliation!C6 -> 
A6: Distributor number (for output data table) | C6: =HLOOKUP(EDB_Name,Inputs!$C$28:$S$29,2,FALSE) -> 
A8: General data
A9: Non business-specific single inputs | B9: Value
A10: =Inputs!B22 -> Vanilla WACC (67th percentile) | B10: =Inputs!C22 -> 0.0719
A11: =Inputs!B23 -> Cost of debt | B11: =Inputs!C23 -> 0.0609
A12: =Inputs!B24 -> Leverage | B12: =Inputs!C24 -> 0.44
A13: =Inputs!B25 -> Years of remaining life for newly commissioned assets | B13: =Inputs!C25 -> 44 | C13: years
A14: =Inputs!B26 -> Industry-wide X factor | B14: =Inputs!C26 -> 0
A15: =Inputs!B18 -> Days in a year | B15: =Inputs!C18 -> 365 | C15: days
A16: =Inputs!B19 -> Days from mid-year to year-end | B16: =Inputs!C19 -> 182 | C16: days
A17: =Inputs!B20 -> Days from revenue date to year-end | B17: =Inputs!C20 -> 148 | C17: days
A18: =Inputs!B21 -> Last day of year 1 of the DPP period | B18: =Inputs!C21 -> 2021-03-31
A19: General time-series data
B20: =Inputs!D12 -> 2013/14 | C20: =Inputs!E12 -> 2014/15 | D20: =Inputs!F12 -> 2015/16 | E20: =Inputs!G12 -> 2016/17 | F20: =Inputs!H12 -> 2017/18 | G20: =Inputs!I12 -> 2018/19 | H20: =Inputs!J12 -> 2019/20
A21: =Inputs!B13 -> Year in modelling period | B21: =Inputs!D13 -> 1 | C21: =Inputs!E13 -> 2 | D21: =Inputs!F13 -> 3 | E21: =Inputs!G13 -> 4 | F21: =Inputs!H13 -> 5 | G21: =Inputs!I13 -> 6 | H21: =Inputs!J13 -> 7
A22: =Inputs!B14 -> Year in regulatory period | D22: =Inputs!F14 -> 1 | E22: =Inputs!G14 -> 2 | F22: =Inputs!H14 -> 3 | G22: =Inputs!I14 -> 4 | H22: =Inputs!J14 -> 5
A23: =Inputs!B15 -> Forecast changes in CPI used for revaluations | B23: =Inputs!D15 -> 0.01533219761 | C23: =Inputs!E15 -> 0.01426174497 | D23: =Inputs!F15 -> 0.01736972705 | E23: =Inputs!G15 -> 0.02113821138 | F23: =Inputs!H15 -> 0.02166934189 | G23: =Inputs!I15 -> 0.0211128946 | H23: =Inputs!J15 -> 0.0205564473
A24: =Inputs!B16 -> Forecast changes in the CPI element of the price path | B24: =Inputs!D16 -> 0 | C24: =Inputs!E16 -> 0 | D24: =Inputs!F16 -> 0.01529961751 | E24: =Inputs!G16 -> 0.01506906656 | F24: =Inputs!H16 -> 0.01773195876 | G24: =Inputs!I16 -> 0.02106969206 | H24: =Inputs!J16 -> 0.02152879479
A25: =Inputs!B17 -> Company tax rate | B25: =Inputs!D17 -> 0.28 | C25: =Inputs!E17 -> 0.28 | D25: =Inputs!F17 -> 0.28 | E25: =Inputs!G17 -> 0.28 | F25: =Inputs!H17 -> 0.28 | G25: =Inputs!I17 -> 0.28 | H25: =Inputs!J17 -> 0.28
A26: Business-specific data
A27: Initial conditions
A28: =Inputs!B31 -> Opening RAB | B28: =INDEX(Indiv_Data,MATCH(A28,Inputs!B:B,0),$C$5) -> 
A29: =Inputs!B32 -> Lost assets | B29: =INDEX(Indiv_Data,MATCH(A29,Inputs!B:B,0),$C$5) -> 
A30: =Inputs!B33 -> Found assets | B30: =INDEX(Indiv_Data,MATCH(A30,Inputs!B:B,0),$C$5) -> 
A31: =Inputs!B34 -> Total depreciation | B31: =INDEX(Indiv_Data,MATCH(A31,Inputs!B:B,0),$C$5) -> 
A32: =Inputs!B35 -> Revaluations | B32: =INDEX(Indiv_Data,MATCH(A32,Inputs!B:B,0),$C$5) -> 
A33: =Inputs!B36 -> Closing RAB | B33: =INDEX(Indiv_Data,MATCH(A33,Inputs!B:B,0),$C$5) -> 
A34: =Inputs!B37 -> Opening RAB excluding revaluations | B34: =INDEX(Indiv_Data,MATCH(A34,Inputs!B:B,0),$C$5) -> 
A35: =Inputs!B38 -> Adjusted depreciation | B35: =INDEX(Indiv_Data,MATCH(A35,Inputs!B:B,0),$C$5) -> 
A36: =Inputs!B39 -> Tax depreciation | B36: =INDEX(Indiv_Data,MATCH(A36,Inputs!B:B,0),$C$5) -> 
A37: =Inputs!B40 -> Opening regulatory tax asset value | B37: =INDEX(Indiv_Data,MATCH(A37,Inputs!B:B,0),$C$5) -> 
A38: =Inputs!B41 -> Amortisation of initial differences in asset values | B38: =INDEX(Indiv_Data,MATCH(A38,Inputs!B:B,0),$C$5) -> 
A39: =Inputs!B42 -> Term credit spread differential allowance | B39: =INDEX(Indiv_Data,MATCH(A39,Inputs!B:B,0),$C$5) -> 
A40: =Inputs!B43 -> Opening deferred tax balance | B40: =INDEX(Indiv_Data,MATCH(A40,Inputs!B:B,0),$C$5) -> 
A41: =Inputs!B44 -> Adjustment factor (for accelerated depreciation) | B41: =INDEX(Indiv_Data,MATCH(A41,Inputs!B:B,0),$C$5) -> 
A42: =Inputs!B45 -> Additional allowance in 1 April 2015 PV terms | B42: =INDEX(Indiv_Data,MATCH(A42,Inputs!B:B,0),$C$5) -> 
A43: =Inputs!B46 -> Alternative X factor | B43: =IF(ISNUMBER(INDEX(Indiv_Data,MATCH(A43,Inputs!B:B,0),$C$5)),INDEX(Indiv_Data,MATCH(A43,Inputs!B:B,0),$C$5),"") -> 
A45: Operating expenditure
A46: =Inputs!B48 -> Operating expenditure, 2013/14 | B46: =INDEX(Indiv_Data,MATCH(A46,Inputs!B:B,0),$C$5) -> 
A47: =Inputs!B49 -> Operating expenditure, 2014/15 | B47: =INDEX(Indiv_Data,MATCH(A47,Inputs!B:B,0),$C$5) -> 
A48: =Inputs!B50 -> Operating expenditure, 2015/16 | B48: =INDEX(Indiv_Data,MATCH(A48,Inputs!B:B,0),$C$5) -> 
A49: =Inputs!B51 -> Operating expenditure, 2016/17 | B49: =INDEX(Indiv_Data,MATCH(A49,Inputs!B:B,0),$C$5) -> 
A50: =Inputs!B52 -> Operating expenditure, 2017/18 | B50: =INDEX(Indiv_Data,MATCH(A50,Inputs!B:B,0),$C$5) -> 
A51: =Inputs!B53 -> Operating expenditure, 2018/19 | B51: =INDEX(Indiv_Data,MATCH(A51,Inputs!B:B,0),$C$5) -> 
A52: =Inputs!B54 -> Operating expenditure, 2019/20 | B52: =INDEX(Indiv_Data,MATCH(A52,Inputs!B:B,0),$C$5) -> 
A54: Constant price revenue growth
A55: =Inputs!B56 -> Constant price revenue growth, 2013/14 | B55: =INDEX(Indiv_Data,MATCH(A55,Inputs!B:B,0),$C$5) -> 
A56: =Inputs!B57 -> Constant price revenue growth, 2014/15 | B56: =INDEX(Indiv_Data,MATCH(A56,Inputs!B:B,0),$C$5) -> 
A57: =Inputs!B58 -> Constant price revenue growth, 2015/16 | B57: =INDEX(Indiv_Data,MATCH(A57,Inputs!B:B,0),$C$5) -> 
A58: =Inputs!B59 -> Constant price revenue growth, 2016/17 | B58: =INDEX(Indiv_Data,MATCH(A58,Inputs!B:B,0),$C$5) -> 
A59: =Inputs!B60 -> Constant price revenue growth, 2017/18 | B59: =INDEX(Indiv_Data,MATCH(A59,Inputs!B:B,0),$C$5) -> 
A60: =Inputs!B61 -> Constant price revenue growth, 2018/19 | B60: =INDEX(Indiv_Data,MATCH(A60,Inputs!B:B,0),$C$5) -> 
A61: =Inputs!B62 -> Constant price revenue growth, 2019/20 | B61: =INDEX(Indiv_Data,MATCH(A61,Inputs!B:B,0),$C$5) -> 
A63: Value of commissioned assets
A64: =Inputs!B64 -> Value of commissioned assets, 2013/14 | B64: =INDEX(Indiv_Data,MATCH(A64,Inputs!B:B,0),$C$5) -> 
A65: =Inputs!B65 -> Value of commissioned assets, 2014/15 | B65: =INDEX(Indiv_Data,MATCH(A65,Inputs!B:B,0),$C$5) -> 
A66: =Inputs!B66 -> Value of commissioned assets, 2015/16 | B66: =INDEX(Indiv_Data,MATCH(A66,Inputs!B:B,0),$C$5) -> 
A67: =Inputs!B67 -> Value of commissioned assets, 2016/17 | B67: =INDEX(Indiv_Data,MATCH(A67,Inputs!B:B,0),$C$5) -> 
A68: =Inputs!B68 -> Value of commissioned assets, 2017/18 | B68: =INDEX(Indiv_Data,MATCH(A68,Inputs!B:B,0),$C$5) -> 
A69: =Inputs!B69 -> Value of commissioned assets, 2018/19 | B69: =INDEX(Indiv_Data,MATCH(A69,Inputs!B:B,0),$C$5) -> 
A70: =Inputs!B70 -> Value of commissioned assets, 2019/20 | B70: =INDEX(Indiv_Data,MATCH(A70,Inputs!B:B,0),$C$5) -> 
A72: Disposed assets
A73: =Inputs!B72 -> Value of disposed assets, 2013/14 | B73: =INDEX(Indiv_Data,MATCH(A73,Inputs!B:B,0),$C$5) -> 
A74: =Inputs!B73 -> Value of disposed assets, 2014/15 | B74: =INDEX(Indiv_Data,MATCH(A74,Inputs!B:B,0),$C$5) -> 
A75: =Inputs!B74 -> Value of disposed assets, 2015/16 | B75: =INDEX(Indiv_Data,MATCH(A75,Inputs!B:B,0),$C$5) -> 
A76: =Inputs!B75 -> Value of disposed assets, 2016/17 | B76: =INDEX(Indiv_Data,MATCH(A76,Inputs!B:B,0),$C$5) -> 
A77: =Inputs!B76 -> Value of disposed assets, 2017/18 | B77: =INDEX(Indiv_Data,MATCH(A77,Inputs!B:B,0),$C$5) -> 
A78: =Inputs!B77 -> Value of disposed assets, 2018/19 | B78: =INDEX(Indiv_Data,MATCH(A78,Inputs!B:B,0),$C$5) -> 
A79: =Inputs!B78 -> Value of disposed assets, 2019/20 | B79: =INDEX(Indiv_Data,MATCH(A79,Inputs!B:B,0),$C$5) -> 
A81: Other regulated income
A82: =Inputs!B80 -> Other regulated income, 2013/14 | B82: =INDEX(Indiv_Data,MATCH(A82,Inputs!B:B,0),$C$5) -> 
A83: =Inputs!B81 -> Other regulated income, 2014/15 | B83: =INDEX(Indiv_Data,MATCH(A83,Inputs!B:B,0),$C$5) -> 
A84: =Inputs!B82 -> Other regulated income, 2015/16 | B84: =INDEX(Indiv_Data,MATCH(A84,Inputs!B:B,0),$C$5) -> 
A85: =Inputs!B83 -> Other regulated income, 2016/17 | B85: =INDEX(Indiv_Data,MATCH(A85,Inputs!B:B,0),$C$5) -> 
A86: =Inputs!B84 -> Other regulated income, 2017/18 | B86: =INDEX(Indiv_Data,MATCH(A86,Inputs!B:B,0),$C$5) -> 
A87: =Inputs!B85 -> Other regulated income, 2018/19 | B87: =INDEX(Indiv_Data,MATCH(A87,Inputs!B:B,0),$C$5) -> 
A88: =Inputs!B86 -> Other regulated income, 2019/20 | B88: =INDEX(Indiv_Data,MATCH(A88,Inputs!B:B,0),$C$5) -> 

Sheet TIMING
A1: Intra-year timing
A2: Derivation of the five timing factors TFopex, TFtax, TFVCA, TFori and TFrev.
A3: Inputs
B4: From | C4: Value
A5: Last day of year 1 of the DPP period | B5: EDB data | C5: ='EDB data'!B18 -> 2021-03-31
A6: Days in a year | B6: EDB data | C6: ='EDB data'!B15 -> 365
A7: Days from mid-year to year-end | B7: EDB data | C7: ='EDB data'!B16 -> 182
A8: Days from revenue date to year-end | B8: EDB data | C8: ='EDB data'!B17 -> 148
A9: Vanilla WACC (67th percentile) | B9: EDB data | C9: =WACC -> 0.0719
A10: Calculations
C11: Value
A12: Mid-year date | C12: =EOMONTH(C5,-6) -> 2020-09-30
A13: Revenue date | C13: =C5-C8 -> 2020-11-03 | D13: As demonstrated below, 12 equal monthly transactions on the 20th of the following month can be approximated by a single payment on the revenue date.
A14: Operating expenditure date | C14: =C12 -> 2020-09-30 | D14: i.e. mid-year
A15: Tax date | C15: =C12 -> 2020-09-30 | D15: i.e. mid-year
A16: Asset commissioning date | C16: =C12 -> 2020-09-30 | D16: i.e. mid-year
A17: Interest date | C17: =C12 -> 2020-09-30 | D17: i.e. mid-year
A18: Asset disposal date | C18: =C12 -> 2020-09-30 | D18: i.e. mid-year
A19: TF for mid-year cash flows | C19: =(1+$C$9)^(C7/C6) -> 1.035227567 | D19: Intra-year timing factors: discount from mid year to end of year values
A20: TFrev | C20: =(1+$C$9)^(C8/C6) -> 1.028553621 | D20: Intra-year timing factor: discount from revenue date to end of year values
A21: Outputs
C22: Value
A23: TFopex | C23: =$C$19 -> 1.035227567
A24: TFtax | C24: =$C$19 -> 1.035227567
A25: TFVCA | C25: 1.035227567
A26: TFori | C26: 1.035227567
A27: TFrev | C27: =$C$20 -> 1.028553621
A28: Check for timing of revenue receipt
A29: Demonstration that a 4 November receipt date for all revenues in a year ending 31 March is almost identical to
A30: receiving 12 equal revenue amounts on the 20th of the month following the provision of service.
A31: Monthly cash flows
A32: Dates of receipt of revenues | C32: =EDATE(C5,-12) -> 2020-03-31 | D32: =EOMONTH(C32,1)+20 -> 2020-05-20 | E32: =EDATE(D32,1) -> 2020-06-20 | F32: =EDATE(E32,1) -> 2020-07-20 | G32: 2020-08-20 | H32: 2020-09-20 | I32: 2020-10-20 | J32: 2020-11-20 | K32: 2020-12-20 | L32: 2021-01-20 | M32: 2021-02-20 | N32: =EDATE(M32,1) -> 2021-03-20 | O32: =EDATE(N32,1) -> 2021-04-20
A33: Indexed amount of revenue | C33: 0 | D33: 1 | E33: 1 | F33: 1 | G33: 1 | H33: 1 | I33: 1 | J33: 1 | K33: 1 | L33: 1 | M33: 1 | N33: 1 | O33: 1
A35: Equivalent single cash flow
A36: Dates of receipt of revenues | C36: =C32 -> 2020-03-31 | D36: =C13 -> 2020-11-03
A37: Indexed amount of revenue | C37: 0 | D37: 12
A39: Present value | C39: Value
A40: ="PV as at "&TEXT(C5,"dd mmm yy")&" of the series of unit amounts" -> PV as at 31 Mar 21 of the series of unit amounts | C40: =XNPV(WACC,C33:O33,C32:O32) -> 11.51448457
A41: PV of the equivalent single amount | C41: =XNPV(WACC,C37:D37,C36:D36) -> 11.51473407
A42: ="Difference in PV for a date of " & TEXT(D36,"d mmm") -> Difference in PV for a date of 3 Nov | C42: =C40-C41 -> -0.0002495012307
A43: Percentage difference | C43: =C42/C40 -> -2.166846716e-05

Sheet RAB
A1: Regulatory asset base | J1: =EDB_Name -> Total for selected EDBs
A2: Calculations involving the roll-forward of asset values.
A3: Inputs
B4: From | C4: Value | D4: =Inputs!D$12 -> 2013/14 | E4: =Inputs!E$12 -> 2014/15 | F4: =Inputs!F$12 -> 2015/16 | G4: =Inputs!G$12 -> 2016/17 | H4: =Inputs!H$12 -> 2017/18 | I4: =Inputs!I$12 -> 2018/19 | J4: =Inputs!J$12 -> 2019/20
A5: Opening RAB | B5: EDB data | C5: ='EDB data'!B28 -> 
A6: Total depreciation | B6: EDB data | C6: ='EDB data'!B31 -> 
A7: Revaluations | B7: EDB data | C7: ='EDB data'!B32 -> 
A8: Closing RAB | B8: EDB data | C8: ='EDB data'!B33 -> 
A9: Disposed assets | B9: EDB data | D9: ='EDB data'!$B73 ->  | E9: ='EDB data'!$B74 ->  | F9: ='EDB data'!$B75 ->  | G9: ='EDB data'!$B76 ->  | H9: ='EDB data'!$B77 ->  | I9: ='EDB data'!$B78 ->  | J9: ='EDB data'!$B79 -> 
A10: Value of commissioned assets | B10: EDB data | D10: ='EDB data'!$B64 ->  | E10: ='EDB data'!$B65 ->  | F10: ='EDB data'!$B66 ->  | G10: ='EDB data'!$B67 ->  | H10: ='EDB data'!$B68 ->  | I10: ='EDB data'!$B69 ->  | J10: ='EDB data'!$B70 -> 
A11: Remaining life of newly commissioned assets | B11: EDB data | C11: ='EDB data'!B13 -> 44
A12: Forecast changes in CPI used for revaluations | B12: EDB data | D12: ='EDB data'!B23 -> 0.01533219761 | E12: ='EDB data'!C23 -> 0.01426174497 | F12: ='EDB data'!D23 -> 0.01736972705 | G12: ='EDB data'!E23 -> 0.02113821138 | H12: ='EDB data'!F23 -> 0.02166934189 | I12: ='EDB data'!G23 -> 0.0211128946 | J12: ='EDB data'!H23 -> 0.0205564473
A13: Adjustment factor (for accelerated depreciation) | B13: EDB data | C13: ='EDB data'!B41 -> 
A14: Calculations
A16: Roll forward of existing assets
D17: =Inputs!D$12 -> 2013/14 | E17: =Inputs!E$12 -> 2014/15 | F17: =Inputs!F$12 -> 2015/16 | G17: =Inputs!G$12 -> 2016/17 | H17: =Inputs!H$12 -> 2017/18 | I17: =Inputs!I$12 -> 2018/19 | J17: =Inputs!J$12 -> 2019/20
A18: Remaining asset life of existing assets | E18: =100%*C5/C6-1 ->  | F18: =C13*C5/C6-2 ->  | G18: =F18-1 -> 
A19: Opening RAB value of existing assets | E19: =D23 ->  | F19: =E23 ->  | G19: =F23 ->  | H19: =G23 ->  | I19: =H23 ->  | J19: =I23 -> 
A20: Disposed assets | E20: =E9 -> 
A21: Revaluation of existing assets | E21: =(E19*0.999-E20)*E28 -> 
A22: Depreciation of existing assets | E22: =E19/E18 -> 
A23: Closing RAB value of existing assets | D23: =C8 ->  | E23: =E19-E20+E21-E22 -> 
A25: Individual roll forward of additional assets
D26: =Inputs!D$12 -> 2013/14 | E26: =Inputs!E$12 -> 2014/15 | F26: =Inputs!F$12 -> 2015/16 | G26: =Inputs!G$12 -> 2016/17 | H26: =Inputs!H$12 -> 2017/18 | I26: =Inputs!I$12 -> 2018/19 | J26: =Inputs!J$12 -> 2019/20
A27: Year in modelling period | D27: 1 | E27: =D27+1 -> 2 | F27: =E27+1 -> 3 | G27: 4 | H27: 5 | I27: =H27+1 -> 6 | J27: =I27+1 -> 7
A28: Revaluation rate | D28: =D12 -> 0.01533219761 | E28: 0.01426174497 | F28: 0.01736972705 | G28: 0.02113821138 | H28: 0.02166934189 | I28: 0.0211128946 | J28: 0.0205564473
A29: Commissioned assets | D29: =D$10 -> 
A30: Assets commissioned in 2014/15:
A31: Year asset is added during modelling period | C31: =E27 -> 2
A32: Opening RAB | D32: 0 | E32: =D36 -> 0
A33: Years of remaining life | D33: =$C$11+$C31 -> 46 | E33: =D33-1 -> 45 | F33: =E33-1 -> 44 | G33: 43 | H33: =G33-1 -> 42 | I33: =H33-1 -> 41 | J33: =I33-1 -> 40
A34: Revaluation of assets | D34: =D32*D$28 -> 0 | E34: 0
A35: Depreciation of assets | D35: =D32/D33 -> 0 | E35: 0
A36: Closing RAB | D36: =D32+D34-D35+IF($C31=D$27,D$29,0) -> 0
A37: Assets commissioned in 2015/16:
A38: Year asset is added during modelling period | C38: =F27 -> 3
A39: Opening RAB | D39: 0 | E39: =D43 -> 0 | F39: 0
A40: Years of remaining life | D40: =$C$11+$C38 -> 47 | E40: =D40-1 -> 46 | F40: 45 | G40: 44 | H40: 43 | I40: 42 | J40: 41
A41: Revaluation of assets | D41: =D39*D$28 -> 0 | E41: 0 | F41: 0
A42: Depreciation of assets | D42: =D39/D40 -> 0 | E42: 0 | F42: 0
A43: Closing RAB | D43: =D39+D41-D42+IF($C38=D$27,D$29,0) -> 0 | E43: 0
A44: Assets commissioned in 2016/17:
A45: Year asset is added during modelling period | C45: =G27 -> 4
A46: Opening RAB | D46: 0 | E46: =D50 -> 0 | F46: 0 | G46: 0
A47: Years of remaining life | D47: =$C$11+$C45 -> 48 | E47: =D47-1 -> 47 | F47: 46 | G47: 45 | H47: 44 | I47: 43 | J47: 42
A48: Revaluation of assets | D48: =D46*D$28 -> 0 | E48: 0 | F48: 0 | G48: 0
A49: Depreciation of assets | D49: =D46/D47 -> 0 | E49: 0 | F49: 0 | G49: 0
A50: Closing RAB | D50: =D46+D48-D49+IF($C45=D$27,D$29,0) -> 0 | E50: 0 | F50: 0
A51: Assets commissioned in 2017/18:
A52: Year asset is added during modelling period | C52: =H27 -> 5
A53: Opening RAB | D53: 0 | E53: =D57 -> 0 | F53: 0 | G53: 0 | H53: 0
A54: Years of remaining life | D54: =$C$11+$C52 -> 49 | E54: =D54-1 -> 48 | F54: 47 | G54: 46 | H54: 45 | I54: 44 | J54: 43
A55: Revaluation of assets | D55: =D53*D$28 -> 0 | E55: 0 | F55: 0 | G55: 0 | H55: 0
A56: Depreciation of assets | D56: =D53/D54 -> 0 | E56: 0 | F56: 0 | G56: 0 | H56: 0
A57: Closing RAB | D57: =D53+D55-D56+IF($C52=D$27,D$29,0) -> 0 | E57: 0 | F57: 0 | G57: 0
A58: Assets commissioned in 2018/19:
A59: Year asset is added during modelling period | C59: =I27 -> 6
A60: Opening RAB | D60: 0 | E60: =D64 -> 0 | F60: 0 | G60: 0 | H60: 0 | I60: 0
A61: Years of remaining life | D61: =$C$11+$C59 -> 50 | E61: =D61-1 -> 49 | F61: 48 | G61: 47 | H61: 46 | I61: 45 | J61: 44
A62: Revaluation of assets | D62: =D60*D$28 -> 0 | E62: 0 | F62: 0 | G62: 0 | H62: 0 | I62: 0
A63: Depreciation of assets | D63: =D60/D61 -> 0 | E63: 0 | F63: 0 | G63: 0 | H63: 0 | I63: 0
A64: Closing RAB | D64: =D60+D62-D63+IF($C59=D$27,D$29,0) -> 0 | E64: 0 | F64: 0 | G64: 0 | H64: 0
A65: Assets commissioned in 2019/20:
A66: Year asset is added during modelling period | C66: =J27 -> 7
A67: Opening RAB | D67: 0 | E67: =D71 -> 0 | F67: 0 | G67: 0 | H67: 0 | I67: 0 | J67: 0
A68: Years of remaining life | D68: =$C$11+$C66 -> 51 | E68: =D68-1 -> 50 | F68: =E68-1 -> 49 | G68: 48 | H68: =G68-1 -> 47 | I68: =H68-1 -> 46 | J68: =I68-1 -> 45
A69: Revaluation of assets | D69: =D67*D$28 -> 0 | E69: 0 | F69: 0 | G69: 0 | H69: 0 | I69: 0 | J69: 0
A70: Depreciation of assets | D70: =D67/D68 -> 0 | E70: 0 | F70: 0 | G70: 0 | H70: 0 | I70: 0 | J70: 0
A71: Closing RAB | D71: =D67+D69-D70+IF($C66=D$27,D$29,0) -> 0 | E71: 0 | F71: 0 | G71: 0 | H71: 0 | I71: 0
A73: Aggregate roll forward of additional assets
A75: Opening RAB of commissioned additional assets | D75: =D32+D39+D46+D53+D60+D67 -> 0 | E75: 0 | F75: =F32+F39+F46+F53+F60+F67 -> 
A76: Revaluation of commissioned additional assets | D76: =D34+D41+D48+D55+D62+D69 -> 0 | E76: 0 | F76: =F34+F41+F48+F55+F62+F69 -> 
A77: Depreciation of commissioned additional assets | D77: 0 | E77: 0 | F77: =F35+F42+F49+F56+F63+F70 -> 
A78: Closing RAB of commissioned additional assets | D78: 0 | F78: =F36+F43+F50+F57+F64+F71 -> 
A80: Combined roll forward of existing and additional assets
D82: =Inputs!D$12 -> 2013/14 | E82: =Inputs!E$12 -> 2014/15 | F82: =Inputs!F$12 -> 2015/16 | G82: =Inputs!G$12 -> 2016/17 | H82: =Inputs!H$12 -> 2017/18 | I82: =Inputs!I$12 -> 2018/19 | J82: =Inputs!J$12 -> 2019/20
A83: Aggregate opening RAB value | D83: =C5 ->  | E83: =E19+E75 -> 
A84: Total revaluation | D84: =C7 ->  | E84: =E21+E76 -> 
A85: Total depreciation | D85: =C6 -> 
A86: Aggregate closing RAB value | D86: =D23+D78 -> 
A87: Check that closing value is as expected. Should = 0 | E87: =E83+E29+E84-E85-E20-E86 ->  | F87: =F83+F29+F84-F85-F20-F86 -> 
A88: Outputs
D90: =Inputs!D$12 -> 2013/14 | E90: =Inputs!E$12 -> 2014/15 | F90: =Inputs!F$12 -> 2015/16 | G90: =Inputs!G$12 -> 2016/17 | H90: =Inputs!H$12 -> 2017/18 | I90: =Inputs!I$12 -> 2018/19 | J90: =Inputs!J$12 -> 2019/20
A91: Remaining asset life of existing assets | E91: =E18 -> 
A92: Total depreciation | D92: =D85 -> 
A93: Aggregate opening RAB value | D93: =D83 ->  | E93: =E83 -> 
A94: Total revaluation | D94: =D84 ->  | E94: =E84 -> 
A95: Aggregate closing RAB value | D95: =D86 ->  | E95: =E86 -> 

Sheet TAX
A1: Tax calculations | J1: =EDB_Name -> Total for selected EDBs
A2: Calculations involving the roll-forward of adjusted depreciation regulatory asset values, deferred tax and tax adjustments.
A3: Inputs
B4: Source | C4: Value | D4: =Inputs!D$12 -> 2013/14 | E4: =Inputs!E$12 -> 2014/15 | F4: =Inputs!F$12 -> 2015/16 | G4: =Inputs!G$12 -> 2016/17 | H4: =Inputs!H$12 -> 2017/18 | I4: =Inputs!I$12 -> 2018/19 | J4: =Inputs!J$12 -> 2019/20
A5: Year in modelling period | B5: EDB data | D5: ='EDB data'!B21 -> 1 | E5: ='EDB data'!C21 -> 2 | F5: ='EDB data'!D21 -> 3 | G5: ='EDB data'!E21 -> 4 | H5: ='EDB data'!F21 -> 5 | I5: ='EDB data'!G21 -> 6 | J5: ='EDB data'!H21 -> 7
A6: Tax rate | B6: EDB data | D6: ='EDB data'!B25 -> 0.28 | E6: ='EDB data'!C25 -> 0.28 | F6: ='EDB data'!D25 -> 0.28 | G6: ='EDB data'!E25 -> 0.28 | H6: ='EDB data'!F25 -> 0.28 | I6: ='EDB data'!G25 -> 0.28 | J6: ='EDB data'!H25 -> 0.28
A7: Value of commissioned assets | B7: EDB data | D7: ='EDB data'!$B64 ->  | E7: ='EDB data'!$B65 ->  | F7: ='EDB data'!$B66 ->  | G7: ='EDB data'!$B67 ->  | H7: ='EDB data'!$B68 ->  | I7: ='EDB data'!$B69 ->  | J7: ='EDB data'!$B70 -> 
A8: Remaining life of newly commissioned assets | B8: EDB data | D8: ='EDB data'!B13 -> 44
A9: Amortisation of initial differences in asset values | B9: EDB data | D9: ='EDB data'!B38 -> 
A10: Lost assets | B10: EDB data | D10: ='EDB data'!B29 -> 
A11: Found assets | B11: EDB data | D11: ='EDB data'!B30 -> 
A12: Disposed assets | B12: EDB data | D12: ='EDB data'!$B73 ->  | E12: ='EDB data'!$B74 ->  | F12: ='EDB data'!$B75 ->  | G12: ='EDB data'!$B76 ->  | H12: ='EDB data'!$B77 ->  | I12: ='EDB data'!$B78 ->  | J12: ='EDB data'!$B79 -> 
A13: Opening RAB excluding revaluations | B13: EDB data | D13: ='EDB data'!B34 -> 
A14: Adjusted depreciation | B14: EDB data | D14: ='EDB data'!B35 -> 
A15: Tax depreciation | B15: EDB data | D15: ='EDB data'!B36 -> 
A16: Opening regulatory tax asset value | B16: EDB data | D16: ='EDB data'!B37 -> 
A17: Opening deferred tax balance | B17: EDB data | D17: ='EDB data'!B40 -> 
A18: Cost of debt | B18: EDB data | D18: ='EDB data'!B11 -> 0.0609
A19: Leverage | B19: EDB data | D19: ='EDB data'!B12 -> 0.44
A20: Remaining asset life of existing assets | B20: RAB | E20: =RAB!E91 ->  | F20: =RAB!F91 ->  | G20: =RAB!G91 ->  | H20: =RAB!H91 ->  | I20: =RAB!I91 ->  | J20: =RAB!J91 -> 
A21: Total depreciation | B21: RAB | D21: =RAB!D92 ->  | E21: =RAB!E92 ->  | F21: =RAB!F92 ->  | G21: =RAB!G92 ->  | H21: =RAB!H92 ->  | I21: =RAB!I92 ->  | J21: =RAB!J92 -> 
A22: Term credit spread differential allowance | B22: BBAR | D22: =BBAR!D58 ->  | E22: =BBAR!E58 ->  | F22: =BBAR!F58 ->  | G22: =BBAR!G58 ->  | H22: =BBAR!H58 ->  | I22: =BBAR!I58 ->  | J22: =BBAR!J58 -> 
A23: Opening investment value | B23: BBAR | D23: =BBAR!D56 ->  | E23: =BBAR!E56 ->  | F23: =BBAR!F56 ->  | G23: =BBAR!G56 ->  | H23: =BBAR!H56 ->  | I23: =BBAR!I56 ->  | J23: =BBAR!J56 -> 
A24: Calculations
A25: Adjusted RAB & depreciation of assets commissioned
C26: Value | D26: =Inputs!D$12 -> 2013/14 | E26: =Inputs!E$12 -> 2014/15 | F26: =Inputs!F$12 -> 2015/16 | G26: =Inputs!G$12 -> 2016/17 | H26: =Inputs!H$12 -> 2017/18 | I26: =Inputs!I$12 -> 2018/19 | J26: =Inputs!J$12 -> 2019/20
A27: Commissioned assets | D27: =D7 -> 
A28: Assets commissioned in 2014/15: | C28: =E5 -> 2
A29: Opening RAB, adjusted depreciation | D29: 0 | E29: =D32 -> 0
A30: Years of remaining life | D30: =$D$8+$C28 -> 46 | E30: =D30-1 -> 45 | F30: 44 | G30: 43 | H30: 42 | I30: 41 | J30: 40
A31: Adjusted depreciation | D31: =D29/D30 -> 0 | E31: 0
A32: Closing RAB, adjusted depreciation | D32: =D29-D31+IF($C28=D$5,D$27,0) -> 0
A33: Assets commissioned in 2015/16: | C33: =F5 -> 3
A34: Opening RAB, adjusted depreciation | D34: 0 | E34: =D37 -> 0 | F34: 0
A35: Years of remaining life | D35: =$D$8+$C33 -> 47 | E35: =D35-1 -> 46 | F35: 45 | G35: 44 | H35: 43 | I35: 42 | J35: 41
A36: Adjusted depreciation | D36: =D34/D35 -> 0 | E36: 0 | F36: 0
A37: Closing RAB, adjusted depreciation | D37: =D34-D36+IF($C33=D$5,D$27,0) -> 0 | E37: 0
A38: Assets commissioned in 2016/17: | C38: =G5 -> 4
A39: Opening RAB, adjusted depreciation | D39: 0 | E39: =D42 -> 0 | F39: 0 | G39: 0
A40: Years of remaining life | D40: =$D$8+$C38 -> 48 | E40: =D40-1 -> 47 | F40: 46 | G40: 45 | H40: 44 | I40: 43 | J40: 42
A41: Adjusted depreciation | D41: =D39/D40 -> 0 | E41: 0 | F41: 0 | G41: 0
A42: Closing RAB, adjusted depreciation | D42: =D39-D41+IF($C38=D$5,D$27,0) -> 0 | E42: 0 | F42: 0
A43: Assets commissioned in 2017/18: | C43: =H5 -> 5
A44: Opening RAB, adjusted depreciation | D44: 0 | E44: =D47 -> 0 | F44: 0 | G44: 0 | H44: 0
A45: Years of remaining life | D45: =$D$8+$C43 -> 49 | E45: =D45-1 -> 48 | F45: 47 | G45: 46 | H45: 45 | I45: 44 | J45: 43
A46: Adjusted depreciation | D46: =D44/D45 -> 0 | E46: 0 | F46: 0 | G46: 0 | H46: 0
A47: Closing RAB, adjusted depreciation | D47: =D44-D46+IF($C43=D$5,D$27,0) -> 0 | E47: 0 | F47: 0 | G47: 0
A48: Assets commissioned in 2018/19: | C48: =I5 -> 6
A49: Opening RAB, adjusted depreciation | D49: 0 | E49: =D52 -> 0 | F49: 0 | G49: 0 | H49: 0 | I49: 0
A50: Years of remaining life | D50: =$D$8+$C48 -> 50 | E50: =D50-1 -> 49 | F50: 48 | G50: 47 | H50: 46 | I50: 45 | J50: 44
A51: Adjusted depreciation | D51: =D49/D50 -> 0 | E51: 0 | F51: 0 | G51: 0 | H51: 0 | I51: 0
A52: Closing RAB, adjusted depreciation | D52: =D49-D51+IF($C48=D$5,D$27,0) -> 0 | E52: 0 | F52: 0 | G52: 0 | H52: 0
A53: Assets commissioned in 2019/20: | C53: =J5 -> 7
A54: Opening RAB, adjusted depreciation | D54: 0 | E54: =D57 -> 0 | F54: =E57 -> 0 | G54: 0 | H54: =G57 -> 0 | I54: =H57 -> 0 | J54: =I57 -> 0
A55: Years of remaining life | D55: =$D$8+$C53 -> 51 | E55: =D55-1 -> 50 | F55: =E55-1 -> 49 | G55: 48 | H55: =G55-1 -> 47 | I55: =H55-1 -> 46 | J55: =I55-1 -> 45
A56: Adjusted depreciation | D56: =D54/D55 -> 0 | E56: 0 | F56: 0 | G56: 0 | H56: 0 | I56: 0 | J56: 0
A57: Closing RAB, adjusted depreciation | D57: =D54-D56+IF($C53=D$5,D$27,0) -> 0 | E57: 0 | F57: 0 | G57: 0 | H57: 0 | I57: 0
A58: Total assets commissioned
A59: Total adjusted depreciation of commissioned assets | D59: =D31+D36+D41+D46+D51+D56 -> 0 | E59: 0
A60: Adjusted depreciation of existing assets
C61: Value | D61: =Inputs!D$12 -> 2013/14 | E61: =Inputs!E$12 -> 2014/15 | F61: =Inputs!F$12 -> 2015/16 | G61: =Inputs!G$12 -> 2016/17 | H61: =Inputs!H$12 -> 2017/18 | I61: =Inputs!I$12 -> 2018/19 | J61: =Inputs!J$12 -> 2019/20
A62: Opening RAB value of existing assets, adjusted depreciation | D62: =D13 ->  | E62: =D68 ->  | F62: =E68 ->  | G62: =F68 ->  | H62: =G68 ->  | I62: =H68 ->  | J62: =I68 -> 
A63: Disposed assets | D63: =D12 -> 
A64: Base year lost assets | D64: =D10 -> 
A65: Base year found assets | D65: =D11 -> 
A66: Adjusted depreciation of existing assets | D66: =D14 ->  | E66: =E62/E20 -> 
A67: Base year commissioned assets | D67: =D7 -> 
A68: Closing RAB value of existing assets, adjusted depreciation | D68: =D62-D63-D64+D65-D66+D67 ->  | E68: =E62-E63-E66 ->  | G68: =G62-G63-G66 ->  | H68: =H62-H63-H66 ->  | I68: =I62-I63-I66 ->  | J68: =J62-J63-J66 -> 
A69: Regulatory tax asset value
C70: Value | D70: =Inputs!D$12 -> 2013/14 | E70: =Inputs!E$12 -> 2014/15 | F70: =Inputs!F$12 -> 2015/16 | G70: =Inputs!G$12 -> 2016/17 | H70: =Inputs!H$12 -> 2017/18 | I70: =Inputs!I$12 -> 2018/19 | J70: =Inputs!J$12 -> 2019/20
A71: Average DV rate | C71: =D15/D16 -> 
A72: Opening regulatory tax asset value | D72: =D16 ->  | E72: =D75 ->  | F72: =E75 ->  | G72: =F75 ->  | H72: =G75 ->  | I72: =H75 ->  | J72: =I75 -> 
A73: Tax depreciation | D73: =D15 ->  | E73: =E72*$C71 ->  | F73: =F72*$C71 ->  | G73: =G72*$C71 ->  | H73: =H72*$C71 ->  | I73: =I72*$C71 ->  | J73: =J72*$C71 -> 
A74: Value of commissioned assets | D74: =D7 -> 
A75: Closing regulatory tax asset value | D75: =D72-D73+D74 -> 
A76: Depreciation temporary differences
C77: Value | D77: =Inputs!D$12 -> 2013/14 | E77: =Inputs!E$12 -> 2014/15 | F77: =Inputs!F$12 -> 2015/16 | G77: =Inputs!G$12 -> 2016/17 | H77: =Inputs!H$12 -> 2017/18 | I77: =Inputs!I$12 -> 2018/19 | J77: =Inputs!J$12 -> 2019/20
A78: Total adjusted depreciation of assets | D78: =D59+D66 -> 
A79: Tax depreciation | D79: =D73 -> 
A80: Depreciation temporary differences | D80: =D78-D79 -> 
A81: Deductions for regulatory tax purposes
A82: Amortisation of initial differences in asset values | D82: =D9 ->  | E82: =D82 ->  | F82: =E82 -> 
A83: Notional deductible interest | D83: =(D23*$D$19*$D$18+D22)/(1+$D$18)^0.5 -> 
A84: Amortisation of revaluations | D84: =D21-D78 -> 
A85: Regulatory tax adjustments | D85: =D82+D84-D83 ->  | E85: =E82+E84-E83 -> 
A87: Deferred tax asset value
C88: Value | D88: =Inputs!D$12 -> 2013/14 | E88: =Inputs!E$12 -> 2014/15 | F88: =Inputs!F$12 -> 2015/16 | G88: =Inputs!G$12 -> 2016/17 | H88: =Inputs!H$12 -> 2017/18 | I88: =Inputs!I$12 -> 2018/19 | J88: =Inputs!J$12 -> 2019/20
A89: Opening deferred tax | D89: =D17 ->  | E89: =D92 ->  | F89: =E92 ->  | G89: =F92 ->  | H89: =G92 ->  | I89: =H92 ->  | J89: =I92 -> 
A90: Depreciation temporary differences | D90: =D80 -> 
A91: Amortisation of initial differences in asset values | D91: =D82 -> 
A92: Closing deferred tax | D92: =D89+(D90-D91)*D6 -> 
A93: Outputs
C94: Value | D94: =Inputs!D$12 -> 2013/14 | E94: =Inputs!E$12 -> 2014/15 | F94: =Inputs!F$12 -> 2015/16 | G94: =Inputs!G$12 -> 2016/17 | H94: =Inputs!H$12 -> 2017/18 | I94: =Inputs!I$12 -> 2018/19 | J94: =Inputs!J$12 -> 2019/20
A95: Total adjusted depreciation of commissioned assets | D95: =D59 -> 0 | E95: 0
A96: Opening deferred tax | D96: =D89 ->  | E96: =E89 -> 
A97: Closing deferred tax | D97: =D92 ->  | E97: =E92 -> 
A98: Regulatory tax adjustments | D98: =D85 ->  | E98: =E85 -> 

Sheet BBAR
A1: Building blocks allowable revenue | J1: =EDB_Name -> Total for selected EDBs
A2: Derivation of BBAR present value, opening investment value, and TCSD allowance.
A3: Inputs
B4: Source | C4: Value | D4: =Inputs!D$12 -> 2013/14 | E4: =Inputs!E$12 -> 2014/15 | F4: =Inputs!F$12 -> 2015/16 | G4: =Inputs!G$12 -> 2016/17 | H4: =Inputs!H$12 -> 2017/18 | I4: =Inputs!I$12 -> 2018/19 | J4: =Inputs!J$12 -> 2019/20
A5: Year in regulatory period | B5: EDB data | F5: ='EDB data'!D22 -> 1 | G5: ='EDB data'!E22 -> 2 | H5: ='EDB data'!F22 -> 3 | I5: ='EDB data'!G22 -> 4 | J5: ='EDB data'!H22 -> 5
A6: Tax rate | B6: EDB data | D6: ='EDB data'!B25 -> 0.28 | E6: ='EDB data'!C25 -> 0.28 | F6: ='EDB data'!D25 -> 0.28 | G6: ='EDB data'!E25 -> 0.28 | H6: ='EDB data'!F25 -> 0.28 | I6: ='EDB data'!G25 -> 0.28 | J6: ='EDB data'!H25 -> 0.28
A7: Other regulated income | B7: EDB data | D7: ='EDB data'!$B82 ->  | E7: ='EDB data'!$B83 ->  | F7: ='EDB data'!$B84 ->  | G7: ='EDB data'!$B85 ->  | H7: ='EDB data'!$B86 ->  | I7: ='EDB data'!$B87 ->  | J7: ='EDB data'!$B88 -> 
A8: Term credit spread differential allowance | B8: EDB data | D8: ='EDB data'!B39 -> 
A9: Value of commissioned assets | B9: EDB data | D9: ='EDB data'!$B64 ->  | E9: ='EDB data'!$B65 ->  | F9: ='EDB data'!$B66 ->  | G9: ='EDB data'!$B67 ->  | H9: ='EDB data'!$B68 ->  | I9: ='EDB data'!$B69 ->  | J9: ='EDB data'!$B70 -> 
A10: Operating expenditure | B10: EDB data | D10: ='EDB data'!$B46 ->  | E10: ='EDB data'!$B47 ->  | F10: ='EDB data'!$B48 ->  | G10: ='EDB data'!$B49 ->  | H10: ='EDB data'!$B50 ->  | I10: ='EDB data'!$B51 ->  | J10: ='EDB data'!$B52 -> 
A11: Vanilla WACC (67th percentile) | B11: EDB data | C11: =WACC -> 0.0719
A12: TFopex | B12: TIMING | C12: =TIMING!C23 -> 1.035227567
A13: TFtax | B13: TIMING | C13: =TIMING!C24 -> 1.035227567
A14: TFVCA | B14: TIMING | C14: =TIMING!C25 -> 1.035227567
A15: TFori | B15: TIMING | C15: =TIMING!C26 -> 1.035227567
A16: TFrev | B16: TIMING | C16: =TIMING!C27 -> 1.028553621
A17: Aggregate opening RAB value | B17: RAB | D17: =RAB!D93 ->  | E17: =RAB!E93 ->  | F17: =RAB!F93 ->  | G17: =RAB!G93 ->  | H17: =RAB!H93 ->  | I17: =RAB!I93 ->  | J17: =RAB!J93 -> 
A18: Total revaluation | B18: RAB | D18: =RAB!D94 ->  | E18: =RAB!E94 ->  | F18: =RAB!F94 ->  | G18: =RAB!G94 ->  | H18: =RAB!H94 ->  | I18: =RAB!I94 ->  | J18: =RAB!J94 -> 
A19: Total depreciation | B19: RAB | D19: =RAB!D92 ->  | E19: =RAB!E92 ->  | F19: =RAB!F92 ->  | G19: =RAB!G92 ->  | H19: =RAB!H92 ->  | I19: =RAB!I92 ->  | J19: =RAB!J92 -> 
A20: Opening deferred tax | B20: TAX | D20: =TAX!D96 ->  | E20: =TAX!E96 ->  | F20: =TAX!F96 ->  | G20: =TAX!G96 ->  | H20: =TAX!H96 ->  | I20: =TAX!I96 ->  | J20: =TAX!J96 -> 
A21: Closing deferred tax | B21: TAX | D21: =TAX!D97 ->  | E21: =TAX!E97 ->  | F21: =TAX!F97 ->  | G21: =TAX!G97 ->  | H21: =TAX!H97 ->  | I21: =TAX!I97 ->  | J21: =TAX!J97 -> 
A22: Regulatory tax adjustments | B22: TAX | D22: =TAX!D98 ->  | E22: =TAX!E98 ->  | F22: =TAX!F98 ->  | G22: =TAX!G98 ->  | H22: =TAX!H98 ->  | I22: =TAX!I98 ->  | J22: =TAX!J98 -> 
A23: Calculations
A24: Term credit spread differential allowance
D25: =Inputs!D$12 -> 2013/14 | E25: =Inputs!E$12 -> 2014/15 | F25: =Inputs!F$12 -> 2015/16 | G25: =Inputs!G$12 -> 2016/17 | H25: =Inputs!H$12 -> 2017/18 | I25: =Inputs!I$12 -> 2018/19 | J25: =Inputs!J$12 -> 2019/20
A26: Asset base scaling factor | D26: =D17/$D$17 -> 
A27: Term credit spread differential allowance | D27: =IF(D8>0,D8,0) ->  | E27: =$D27*E26 -> 
A28: Return on capital
D29: =Inputs!D$12 -> 2013/14 | E29: =Inputs!E$12 -> 2014/15 | F29: =Inputs!F$12 -> 2015/16 | G29: =Inputs!G$12 -> 2016/17 | H29: =Inputs!H$12 -> 2017/18 | I29: =Inputs!I$12 -> 2018/19 | J29: =Inputs!J$12 -> 2019/20
A30: Opening investment value | D30: =D17+D20 -> 
A31: Value of commissioned assets | D31: =D9 -> 
A32: Term credit spread differential allowance | D32: =D27 -> 
A33: Total revaluation | D33: =D18 ->  | E33: =E18 -> 
A34: Return on capital | D34: =D30*$C$11+D31*($C$14-1)+D32-D33 ->  | E34: =E30*$C$11+E31*($C$14-1)+E32-E33 -> 
A35: Operating expenditure
D36: =Inputs!D$12 -> 2013/14 | E36: =Inputs!E$12 -> 2014/15 | F36: =Inputs!F$12 -> 2015/16 | G36: =Inputs!G$12 -> 2016/17 | H36: =Inputs!H$12 -> 2017/18 | I36: =Inputs!I$12 -> 2018/19 | J36: =Inputs!J$12 -> 2019/20
A37: Operating expenditure | D37: =D10 -> 
A38: Operating expenditure allowance | D38: =D37*$C$12 -> 
A39: Building block allowable revenue before tax (BBAR before tax)
D40: =Inputs!D$12 -> 2013/14 | E40: =Inputs!E$12 -> 2014/15 | F40: =Inputs!F$12 -> 2015/16 | G40: =Inputs!G$12 -> 2016/17 | H40: =Inputs!H$12 -> 2017/18 | I40: =Inputs!I$12 -> 2018/19 | J40: =Inputs!J$12 -> 2019/20
A41: Increase in deferred tax asset, ΔDT | D41: =D21-D20 -> 
A42: BBAR before tax in revenue date terms, calculation not referencing tax | D42: =(D34+D19+D38+((D7-D37-D19+D22)*D6+D41)*$C13-D41-D7*$C15)/($C16-D6*$C13) ->  | E42: =(E34+E19+E38+((E7-E37-E19+E22)*E6+E41)*$C13-E41-E7*$C15)/($C16-E6*$C13) -> 
A43: Regulatory tax allowance before considering possibility of tax losses | D43: =(D42+D7-D37-D19+D22)*D6 ->  | E43: =(E42+E7-E37-E19+E22)*E6 -> 
A44: Regulatory tax allowance | D44: =IF(D43<0,#N/A,D43) -> 
A45: BBAR before tax in year-end terms, direct simple calculation | D45: =D34+D19+D38+(D44+D41)*$C$13-D41-D7*$C$15 -> 
A46: BBAR before tax in revenue date terms | D46: =D45/$C$16 -> 
A47: Difference between the two BBAR calculations (should = 0) | D47: =D42-D46 -> 
A48: Present value of the building block allowable revenue before tax
C49: Value | D49: =Inputs!D$12 -> 2013/14 | E49: =Inputs!E$12 -> 2014/15 | F49: =Inputs!F$12 -> 2015/16 | G49: =Inputs!G$12 -> 2016/17 | H49: =Inputs!H$12 -> 2017/18 | I49: =Inputs!I$12 -> 2018/19 | J49: =Inputs!J$12 -> 2019/20
A50: Number of years to discount the year-end values to start of the present value period | F50: =F5 -> 1 | G50: =G5 -> 2 | H50: =H5 -> 3 | I50: =I5 -> 4 | J50: =J5 -> 5
A51: BBAR before tax in year-end terms, i.e. Rev * TFrev | F51: =F45 ->  | G51: =G45 ->  | H51: =H45 ->  | I51: =I45 ->  | J51: =J45 -> 
A52: PV at 1 Apr 2015 of BBAR before tax for each year | F52: =F51/(1+WACC)^F$50 ->  | G52: =G51/(1+WACC)^G$50 ->  | H52: =H51/(1+WACC)^H$50 ->  | I52: =I51/(1+WACC)^I$50 ->  | J52: =J51/(1+WACC)^J$50 -> 
A53: PV at 1 Apr 2015 of BBAR before tax over the regulatory period | C53: =SUM(F52:J52) -> 
A54: Outputs
C55: Value | D55: =Inputs!D$12 -> 2013/14 | E55: =Inputs!E$12 -> 2014/15 | F55: =Inputs!F$12 -> 2015/16 | G55: =Inputs!G$12 -> 2016/17 | H55: =Inputs!H$12 -> 2017/18 | I55: =Inputs!I$12 -> 2018/19 | J55: =Inputs!J$12 -> 2019/20
A56: Opening investment value | D56: =D30 -> 
A57: PV at 1 Apr 2015 of BBAR before tax over the regulatory period | C57: =C53 -> 
A58: Term credit spread differential allowance | D58: =D27 ->  | E58: =E27 -> 
A59: BBAR before tax in revenue date terms, calculation not referencing tax | D59: =D42 ->  | E59: =E42 -> 

Sheet REV
A1: Revenue growth index | H1: =EDB_Name -> Total for selected EDBs
A2: Derivation of the normalised profile of the maximum allowable revenue before tax values.
A3: Inputs
B4: Source | C4: Value | D4: =Inputs!F$12 -> 2015/16 | E4: =Inputs!G$12 -> 2016/17 | F4: =Inputs!H$12 -> 2017/18 | G4: =Inputs!I$12 -> 2018/19 | H4: =Inputs!J$12 -> 2019/20
A5: Constant price revenue growth | B5: EDB data | D5: ='EDB data'!$B57 ->  | E5: ='EDB data'!$B58 ->  | F5: ='EDB data'!$B59 ->  | G5: ='EDB data'!$B60 ->  | H5: ='EDB data'!$B61 -> 
A6: Industry-wide X factor | B6: EDB data | C6: ='EDB data'!B14 -> 0
A7: Alternative X factor | B7: EDB data | C7: ='EDB data'!B43 -> 
A8: Forecast changes in the CPI element of the price path | B8: EDB data | D8: ='EDB data'!D24 -> 0.01529961751 | E8: ='EDB data'!E24 -> 0.01506906656 | F8: ='EDB data'!F24 -> 0.01773195876 | G8: ='EDB data'!G24 -> 0.02106969206 | H8: ='EDB data'!H24 -> 0.02152879479
A9: Calculations
A10: ="Index of price path with industry-wide X factor of "&TEXT(C6,"#0.0%") -> Index of price path with industry-wide X factor of 0.0%
C11: Value | D11: =Inputs!F$12 -> 2015/16 | E11: =Inputs!G$12 -> 2016/17 | F11: =Inputs!H$12 -> 2017/18 | G11: =Inputs!I$12 -> 2018/19 | H11: =Inputs!J$12 -> 2019/20
A12: X value applied | C12: =C6 -> 0
A13: Index of price path | D13: 1 | E13: =D13*(1+E$8)*(1-$C$6) -> 1.015069067 | F13: =E13*(1+F$8)*(1-$C$6) -> 1.033068229 | G13: =F13*(1+G$8)*(1-$C$6) -> 1.054834659 | H13: =G13*(1+H$8)*(1-$C$6) -> 1.077543978
A14: Index of constant price growth | D14: 1 | E14: =D14*(1+E$5) ->  | F14: =E14*(1+F$5) -> 
A15: Indexed maximum allowable revenue before tax | D15: 1 | E15: =E13*E14 ->  | F15: =F13*F14 ->  | G15: =G13*G14 ->  | H15: =H13*H14 -> 
A16: ="CPI minus X revenues with applicable X factor (" & IF(ISNUMBER(C7),"alternate X factor of " & TEXT(C7,"#0.0%"), "industry-wide X factor of " & TEXT(C6,"#0.0%"))&")" -> CPI minus X revenues with applicable X factor (industry-wide X factor of 0.0%)
C17: Value | D17: =Inputs!F$12 -> 2015/16 | E17: =Inputs!G$12 -> 2016/17 | F17: =Inputs!H$12 -> 2017/18 | G17: =Inputs!I$12 -> 2018/19 | H17: =Inputs!J$12 -> 2019/20
A18: X value applied | C18: =IF(ISNUMBER(C7),C7,C6) -> 0
A19: Index of price path | D19: 1 | E19: =D19*(1+E$8)*(1-$C$18) -> 1.015069067 | F19: =E19*(1+F$8)*(1-$C$18) -> 1.033068229 | G19: =F19*(1+G$8)*(1-$C$18) -> 1.054834659 | H19: =G19*(1+H$8)*(1-$C$18) -> 1.077543978
A20: Index of constant price growth | D20: 1 | E20: =D20*(1+E$5) ->  | F20: =E20*(1+F$5) -> 
A21: Indexed maximum allowable revenue before tax | D21: 1 | E21: =E19*E20 ->  | F21: =F19*F20 ->  | G21: =G19*G20 ->  | H21: =H19*H20 -> 
A23: This data block calculates maximum allowable revenues for the regulatory period for the 2014/15 X value that has been applied. These
A24: Maximum allowable revenues are set PV equivalent to the corresponding maximum allowable revenues for the industry-wide X CPI - X revenues.
A25: Outputs
C26: Misc. | D26: =Inputs!F$12 -> 2015/16 | E26: =Inputs!G$12 -> 2016/17 | F26: =Inputs!H$12 -> 2017/18 | G26: =Inputs!I$12 -> 2018/19 | H26: =Inputs!J$12 -> 2019/20
A27: Indexed maximum allowable revenue before tax—industry wide X factor | D27: =D15 -> 1 | E27: =E15 ->  | F27: =F15 ->  | G27: =G15 ->  | H27: =H15 -> 
A28: Indexed maximum allowable revenue before tax—applicable X factor | D28: =D21 -> 1 | E28: =E21 -> 

Sheet MAR
A1: Maximum allowable revenue | H1: =EDB_Name -> Total for selected EDBs
A2: Derivation of starting prices.
A3: Inputs
B4: Source | C4: Value | D4: =Inputs!F$12 -> 2015/16 | E4: =Inputs!G$12 -> 2016/17 | F4: =Inputs!H$12 -> 2017/18 | G4: =Inputs!I$12 -> 2018/19 | H4: =Inputs!J$12 -> 2019/20
A5: Year in regulatory period | B5: EDB data | D5: ='EDB data'!D22 -> 1 | E5: ='EDB data'!E22 -> 2 | F5: ='EDB data'!F22 -> 3 | G5: ='EDB data'!G22 -> 4 | H5: ='EDB data'!H22 -> 5
A6: Industry-wide X factor | B6: EDB data | C6: ='EDB data'!B14 -> 0
A7: Additional allowance in 1 April 2015 PV terms | B7: EDB data | C7: ='EDB data'!B42 -> 
A8: Alternative X factor | B8: EDB data | C8: ='EDB data'!B43 -> 
A9: Vanilla WACC (67th percentile) | B9: EDB data | C9: =WACC -> 0.0719
A10: TFrev | B10: TIMING | C10: =TIMING!C27 -> 1.028553621
A11: Constant price revenue growth 2015 | B11: EDB data | C11: ='EDB data'!B56 -> 
A12: Constant price revenue growth 2016 | B12: EDB data | C12: ='EDB data'!B57 -> 
A13: PV at 1 Apr 2015 of BBAR before tax over the regulatory period | B13: BBAR | C13: =BBAR!C57 -> 
A14: Indexed maximum allowable revenue before tax—industry wide X factor | B14: REV | D14: =REV!D27 -> 1 | E14: =REV!E27 ->  | F14: =REV!F27 ->  | G14: =REV!G27 ->  | H14: =REV!H27 -> 
A15: Indexed maximum allowable revenue before tax—applicable X factor | B15: REV | D15: =REV!D28 -> 1 | E15: =REV!E28 ->  | F15: =REV!F28 ->  | G15: =REV!G28 ->  | H15: =REV!H28 -> 
A16: Calculations
A17: ="CPI minus X revenues with industry-wide X factor of "&TEXT(C6,"#0.0%") -> CPI minus X revenues with industry-wide X factor of 0.0%
C18: PV at 1-Apr-15 | D18: =Inputs!F$12 -> 2015/16 | E18: =Inputs!G$12 -> 2016/17 | F18: =Inputs!H$12 -> 2017/18 | G18: =Inputs!I$12 -> 2018/19 | H18: =Inputs!J$12 -> 2019/20
A19: PV at 1 Apr 2015 of BBAR before tax over the regulatory period | C19: =C13 -> 
A20: Additional allowance | C20: =C7 -> 
A21: PV at 1 Apr 2015 of maximum allowable revenue before tax | C21: =C19+C20 -> 
A22: Indexed maximum allowable revenue before tax | D22: =D14 -> 1 | E22: =E14 ->  | F22: =F14 ->  | G22: =G14 ->  | H22: =H14 -> 
A23: Present value of indexed maximum allowable revenue for each year | D23: =D22/(1+$C$9)^D$5 -> 0.9329228473 | E23: =E22/(1+$C$9)^E$5 ->  | F23: =F22/(1+$C$9)^F$5 ->  | G23: =G22/(1+$C$9)^G$5 ->  | H23: =H22/(1+$C$9)^H$5 -> 
A24: Present value of indexed revenue | C24: =SUM(D23:H23) -> 
A25: Maximum allowable revenue before tax in first year of the regulatory period | C25: =C21/C24 -> 
A26: Maximum allowable revenue before tax in year-end terms | D26: =$C25*D22 ->  | E26: =$C25*E22 ->  | F26: =$C25*F22 ->  | G26: =$C25*G22 ->  | H26: =$C25*H22 -> 
A27: Maximum allowable revenue before tax in revenue-date terms | D27: =D26/$C$10 ->  | E27: =E26/$C$10 ->  | F27: =F26/$C$10 ->  | G27: =G26/$C$10 ->  | H27: =H26/$C$10 -> 
A28: PV at 1 Apr 2015 of maximum allowable revenue before tax in year-end terms in each year | D28: =D26/(1+$C$9)^D5 ->  | E28: =E26/(1+$C$9)^E5 ->  | F28: =F26/(1+$C$9)^F5 ->  | G28: =G26/(1+$C$9)^G5 ->  | H28: =H26/(1+$C$9)^H5 -> 
A29: PV at 1 Apr 2015 of maximum allowable revenue before tax | C29: =SUM(D28:H28) -> 
A30: Error check for PV equivalence (should = 0) | C30: =C21-C29 -> 
A31: ΔD | C31: =(1+$C$11)*(1+$C$12) -> 
A32: ANR 2016 (industry-wide X-factor) | C32: =C29/C31 -> 
A33: ="CPI minus X revenues with applicable X factor (" & IF(ISNUMBER(C8),"alternate X factor of " & TEXT(C8,"#0.0%"), "industry-wide X factor of " & TEXT(C6,"#0.0%"))&")" -> CPI minus X revenues with applicable X factor (industry-wide X factor of 0.0%)
C34: PV at 1-Apr-15 | D34: 2015/16 | E34: 2016/17 | F34: 2017/18 | G34: 2018/19 | H34: 2019/20
A35: PV at 1 Apr 2015 of BBAR before tax over the regulatory period | C35: =C13 -> 
A36: Additional allowance | C36: =C7 -> 
A37: PV at 1 Apr 2015 of maximum allowable revenue before tax | C37: =C35+C36 -> 
A38: Indexed maximum allowable revenue before tax | D38: =D15 -> 1 | E38: =E15 ->  | F38: =F15 ->  | G38: =G15 ->  | H38: =H15 -> 
A39: Present value of indexed maximum allowable revenue for each year | D39: =D38/(1+$C$9)^D$5 -> 0.9329228473 | E39: =E38/(1+$C$9)^E$5 ->  | F39: =F38/(1+$C$9)^F$5 ->  | G39: =G38/(1+$C$9)^G$5 ->  | H39: =H38/(1+$C$9)^H$5 -> 
A40: Present value of indexed revenue | C40: =SUM(D39:H39) -> 
A41: Maximum allowable revenue before tax in first year of the regulatory period | C41: =C37/C40 -> 
A42: Maximum allowable revenue before tax in year-end terms | D42: =$C41*D38 ->  | F42: =$C41*F38 ->  | G42: =$C41*G38 ->  | H42: =$C41*H38 -> 
A43: Maximum allowable revenue before tax in revenue-date terms | D43: =D42/$C$10 ->  | E43: =E42/$C$10 ->  | F43: =F42/$C$10 -> 
A44: PV at 1 Apr 2015 of maximum allowable revenue before tax in year-end terms in each year | D44: =D42/(1+$C$9)^D$5 ->  | E44: =E42/(1+$C$9)^E$5 ->  | F44: =F42/(1+$C$9)^F$5 ->  | G44: =G42/(1+$C$9)^G$5 ->  | H44: =H42/(1+$C$9)^H$5 -> 
A45: PV at 1 Apr 2015 of maximum allowable revenue before tax | C45: =SUM(D44:H44) -> 
A46: Difference from PV equivalence (incentives etc.) | C46: =C37-C45 -> 
A47: ΔD | C47: =(1+$C$11)*(1+$C$12) -> 
A48: ANR 2016 (applicable X-factor) | C48: =D44/C47 -> 
A50: This data block uses the applicable 2014/15 X factor to calculate the maximum allowable revenues for the regulatory period. These allowed
A51: revenues are PV-equivalent to the corresponding revenues calculated with the industry-wide X factor in the previous data block.
A52: Outputs
D53: =Inputs!F$12 -> 2015/16 | E53: =Inputs!G$12 -> 2016/17 | F53: =Inputs!H$12 -> 2017/18 | G53: =Inputs!I$12 -> 2018/19 | H53: =Inputs!J$12 -> 2019/20
A54: Maximum allowable revenue before tax in revenue-date terms for industry wide X factor | D54: =D27 ->  | E54: =E27 -> 
A55: Maximum allowable revenue before tax in revenue-date terms for applicable X factor | D55: =D43 ->  | E55: =E43 -> 
A56: Starting price for industry-wide X factor | D56: =D27 -> 
A57: Starting price for applicable X factor | D57: =D43 -> 
A58: PV at 1 Apr 2015 of MAR before tax over the regulatory period (industry X ) | D58: =C21 -> 
A59: PV at 1 Apr 2015 of MAR before tax over the regulatory period (Applicable X) | D59: =C37 -> 
A60: ΔD | D60: =C47 -> 
A61: ANR 2016 (applicable X-factor) | D61: =C48 -> 

Sheet Reconciliation
A1: Reconciliation with financial models outputs
A2: Reconciliation of this waterfall model outputs with 2015 and 2020 financial model outputs | F2: How this sheet operates | K2: Mode is set by Cell C5 on the Waterfall chart. | P2: ="Currently, mode = " & Waterfall!D5 -> Currently, mode = 0
F3: When the mode is set to 14, the panel with a blue fill colour below (see Cell W11) should be filled with zeros.
A4: Distributor | C4: Scenario | F4: When the mode is set to 0, the panel with a tan fill colour below (see Cell C40) should be filled with zeros.
A5: Name | C5: =EDB_Name -> Total for selected EDBs
A6: Distributor number | C6: ='EDB data'!C6 ->  | G6: Block below with this fill colour is for data table with first argument set to C5, second argument blank.
B8: Active EDB outputs | C8: =Inputs!C28 -> Alpine Energy | D8: =Inputs!D28 -> Aurora Energy | E8: =Inputs!E28 -> Centralines | F8: =Inputs!F28 -> EA Networks | G8: =Inputs!G28 -> Eastland Network | H8: =Inputs!H28 -> Electricity Invercargill | I8: =Inputs!I28 -> Horizon Energy | J8: =Inputs!J28 -> Nelson Electricity | K8: =Inputs!K28 -> Network Tasman | L8: =Inputs!L28 -> Orion | M8: =Inputs!M28 -> OtagoNet | N8: =Inputs!N28 -> Powerco | O8: =Inputs!O28 -> The Lines Company | P8: =Inputs!P28 -> Top Energy | Q8: =Inputs!Q28 -> Unison Networks | R8: =Inputs!R28 -> Vector Lines | S8: =Inputs!S28 -> Wellington Electricity | W8: Reconciliation of this waterfall model with the 2020 financial model outputs is achieved when the blue coloured panel below indicates zero values. This requires the "mode" setting at cell D5 on the Waterfall sheet to be set to 14. Powerco is not represented in this panel as it is not featured in the outputs of the DPP3 financial model.
A9: Distributor number | B9: =C6 ->  | C9: =Inputs!C29 -> 1 | D9: =Inputs!D29 -> 2 | E9: =Inputs!E29 -> 3 | F9: =Inputs!F29 -> 4 | G9: =Inputs!G29 -> 5 | H9: =Inputs!H29 -> 6 | I9: =Inputs!I29 -> 7 | J9: =Inputs!J29 -> 8 | K9: =Inputs!K29 -> 9 | L9: =Inputs!L29 -> 10 | M9: =Inputs!M29 -> 11 | N9: =Inputs!N29 -> 12 | O9: =Inputs!O29 -> 13 | P9: =Inputs!P29 -> 14 | Q9: =Inputs!Q29 -> 15 | R9: =Inputs!R29 -> 16 | S9: =Inputs!S29 -> 17
A10: Outputs | C10: 0 | D10: 0 | E10: 0 | F10: 0 | G10: 0 | H10: 0 | I10: 0 | J10: 0 | K10: 0 | L10: 0 | M10: 0 | N10: 0 | O10: 0 | P10: 0 | Q10: 0 | R10: 0 | S10: 0 | W10: Alpine Energy | X10: Aurora Energy | Y10: Centralines | Z10: EA Networks | AA10: Eastland Network | AB10: Electricity Invercargill | AC10: Horizon Energy | AD10: Nelson Electricity | AE10: Network Tasman | AF10: Orion | AG10: OtagoNet | AH10: The Lines Company | AI10: Top Energy | AJ10: Unison Networks | AK10: Vector Lines | AL10: Wellington Electricity | AO10: Alpine Energy | AP10: Aurora Energy | AQ10: Centralines | AR10: EA Networks | AS10: Eastland Network | AT10: Electricity Invercargill | AU10: Horizon Energy | AV10: Nelson Electricity | AW10: Network Tasman | AX10: Orion | AY10: OtagoNet | AZ10: The Lines Company | BA10: Top Energy | BB10: Unison Networks | BC10: Vector Lines | BD10: Wellington Electricity
A11: PV at 1 Apr 2020 of BBAR | B11: =BBAR!C57 ->  | C11: 163099.0198 | D11: 247691.7372 | E11: 48814.56879 | F11: 144179.6933 | G11: 103952.6872 | H11: 58957.10534 | I11: 95547.21115 | J11: 29921.80788 | K11: 122903.6847 | L11: 665741.9032 | M11: 108078.0521 | N11: 1087074.297 | O11: 148967.8663 | P11: 168714.3866 | Q11: 436524.6314 | R11: 1749930.119 | S11: 432008.2578 | W11: =C11-AO11 -> -34564.63857 | X11: =D11-AP11 -> -157040.1539 | Y11: =E11-AQ11 -> 5405.386811 | Z11: -9950.177509 | AA11: -7401.58529 | AB11: 2152.486387 | AC11: -15268.03957 | AD11: 4425.13031 | AE11: 315.8282091 | AF11: -68778.5631 | AG11: -11390.39337 | AH11: =O11-AZ11 -> -11877.78726 | AI11: =P11-BA11 -> -7455.235409 | AJ11: =Q11-BB11 -> -26991.85596 | AK11: -51443.61577 | AL11: 8403.266674 | AO11: =[1]Outputs!C9 -> 197663.6584 | AP11: =[1]Outputs!D9 -> 404731.891 | AQ11: =[1]Outputs!E9 -> 43409.18198 | AR11: =[1]Outputs!F9 -> 154129.8709 | AS11: =[1]Outputs!G9 -> 111354.2725 | AT11: =[1]Outputs!H9 -> 56804.61896 | AU11: =[1]Outputs!I9 -> 110815.2507 | AV11: =[1]Outputs!J9 -> 25496.67758 | AW11: =[1]Outputs!K9 -> 122587.8565 | AX11: =[1]Outputs!L9 -> 734520.4663 | AY11: =[1]Outputs!M9 -> 119468.4454 | AZ11: =[1]Outputs!O9 -> 160845.6536 | BA11: =[1]Outputs!P9 -> 176169.622 | BB11: =[1]Outputs!Q9 -> 463516.4873 | BC11: =[1]Outputs!R9 -> 1801373.735 | BD11: =[1]Outputs!S9 -> 423604.9911
A12: Starting price for industry-wide X factor | B12: =MAR!D56 ->  | C12: 37559.9229 | D12: 56511.66603 | E12: 11394.05771 | F12: 33046.58332 | G12: 24062.42743 | H12: 13565.26038 | I12: 22026.85063 | J12: 6824.407415 | K12: 28091.76336 | L12: 153534.7496 | M12: 24779.53509 | N12: 250424.4396 | O12: 34705.26322 | P12: 39089.38949 | Q12: 100101.5151 | R12: 395244.8061 | S12: 98788.23029 | W12: =C12-AO12 -> -5092.671182 | X12: -30822.87591 | Y12: 2027.064134 | Z12: -212.1293395 | AA12: 33.99132583 | AB12: 1307.749949 | AC12: -1885.273362 | AD12: 1322.64018 | AE12: 1639.303018 | AF12: -4962.788853 | AG12: -999.8072031 | AH12: =O12-AZ12 -> -2.605838128 | AI12: =P12-BA12 -> 1074.857937 | AJ12: 82.21594414 | AK12: 6537.729873 | AL12: 7381.181128 | AO12: =[1]Outputs!C10 -> 42652.59408 | AP12: =[1]Outputs!D10 -> 87334.54193 | AQ12: =[1]Outputs!E10 -> 9366.993578 | AR12: =[1]Outputs!F10 -> 33258.71266 | AS12: =[1]Outputs!G10 -> 24028.4361 | AT12: =[1]Outputs!H10 -> 12257.51043 | AU12: =[1]Outputs!I10 -> 23912.12399 | AV12: =[1]Outputs!J10 -> 5501.767235 | AW12: =[1]Outputs!K10 -> 26452.46034 | AX12: =[1]Outputs!L10 -> 158497.5385 | AY12: =[1]Outputs!M10 -> 25779.3423 | AZ12: =[1]Outputs!O10 -> 34707.86906 | BA12: =[1]Outputs!P10 -> 38014.53155 | BB12: =[1]Outputs!Q10 -> 100019.2992 | BC12: =[1]Outputs!R10 -> 388707.0762 | BD12: =[1]Outputs!S10 -> 91407.04917
A13: Starting price for applicable X factor | B13: =MAR!D57 ->  | C13: 30458.39221 | D13: 56511.66603 | E13: 9983.311486 | F13: 33046.58332 | G13: 22731.95846 | H13: 13565.26038 | I13: 22026.85063 | J13: 6824.407415 | K13: 28091.76336 | L13: 153534.7496 | M13: 24779.53509 | N13: 250424.4396 | O13: 34705.26322 | P13: 34231.36848 | Q13: 100101.5151 | R13: 395244.8061 | S13: 98788.23029 | W13: -12194.20187 | X13: -30822.87591 | Y13: 616.3179077 | Z13: -212.1293395 | AA13: -1296.477644 | AB13: 1307.749949 | AC13: -1885.273362 | AD13: 1322.64018 | AE13: 1639.303018 | AF13: -4962.788853 | AG13: -999.8072031 | AH13: -2.605838128 | AI13: -3783.163067 | AJ13: 82.21594414 | AK13: 6537.729873 | AL13: 7381.181128 | AO13: =[1]Outputs!C11 -> 42652.59408 | AP13: =[1]Outputs!D11 -> 87334.54193 | AQ13: =[1]Outputs!E11 -> 9366.993578 | AR13: =[1]Outputs!F11 -> 33258.71266 | AS13: =[1]Outputs!G11 -> 24028.4361 | AT13: =[1]Outputs!H11 -> 12257.51043 | AU13: =[1]Outputs!I11 -> 23912.12399 | AV13: =[1]Outputs!J11 -> 5501.767235 | AW13: =[1]Outputs!K11 -> 26452.46034 | AX13: =[1]Outputs!L11 -> 158497.5385 | AY13: =[1]Outputs!M11 -> 25779.3423 | AZ13: =[1]Outputs!O11 -> 34707.86906 | BA13: =[1]Outputs!P11 -> 38014.53155 | BB13: =[1]Outputs!Q11 -> 100019.2992 | BC13: =[1]Outputs!R11 -> 388707.0762 | BD13: =[1]Outputs!S11 -> 91407.04917
A14: PV at 1 Apr 2020 of MAR before tax over the regulatory period (Applicable X) | B14: =MAR!D59 ->  | C14: 163662.2393 | D14: 247691.7372 | E14: 48814.56879 | F14: 144179.6933 | G14: 103952.6872 | H14: 58957.10534 | I14: 95547.21115 | J14: 29921.80788 | K14: 122903.6847 | L14: 665741.9032 | M14: 108140.005 | N14: 1087074.297 | O14: 149068.9809 | P14: 168714.3866 | Q14: 436524.6314 | R14: 1749930.119 | S14: 432008.2578 | W14: -34001.41906 | X14: -157040.1539 | Y14: 5405.386811 | Z14: -9950.177509 | AA14: -7401.58529 | AB14: 2152.486387 | AC14: -15268.03957 | AD14: 4425.13031 | AE14: 315.8282091 | AF14: -68778.5631 | AG14: -11328.44047 | AH14: -11776.6727 | AI14: -7455.235409 | AJ14: -26991.85596 | AK14: -51443.61577 | AL14: 8403.266674 | AO14: =[1]Outputs!C12 -> 197663.6584 | AP14: =[1]Outputs!D12 -> 404731.891 | AQ14: =[1]Outputs!E12 -> 43409.18198 | AR14: =[1]Outputs!F12 -> 154129.8709 | AS14: =[1]Outputs!G12 -> 111354.2725 | AT14: =[1]Outputs!H12 -> 56804.61896 | AU14: =[1]Outputs!I12 -> 110815.2507 | AV14: =[1]Outputs!J12 -> 25496.67758 | AW14: =[1]Outputs!K12 -> 122587.8565 | AX14: =[1]Outputs!L12 -> 734520.4663 | AY14: =[1]Outputs!M12 -> 119468.4454 | AZ14: =[1]Outputs!O12 -> 160845.6536 | BA14: =[1]Outputs!P12 -> 176169.622 | BB14: =[1]Outputs!Q12 -> 463516.4873 | BC14: =[1]Outputs!R12 -> 1801373.735 | BD14: =[1]Outputs!S12 -> 423604.9911
A15: MAR (industry-wide X factor), first year of reg period | B15: =MAR!D54 ->  | C15: 37559.9229 | D15: 56511.66603 | E15: 11394.05771 | F15: 33046.58332 | G15: 24062.42743 | H15: 13565.26038 | I15: 22026.85063 | J15: 6824.407415 | K15: 28091.76336 | L15: 153534.7496 | M15: 24779.53509 | N15: 250424.4396 | O15: 34705.26322 | P15: 39089.38949 | Q15: 100101.5151 | R15: 395244.8061 | S15: 98788.23029 | W15: -5092.671182 | X15: -30822.87591 | Y15: 2027.064134 | Z15: -212.1293395 | AA15: 33.99132583 | AB15: 1307.749949 | AC15: -1885.273362 | AD15: 1322.64018 | AE15: 1639.303018 | AF15: -4962.788853 | AG15: -999.8072031 | AH15: -2.605838128 | AI15: 1074.857937 | AJ15: 82.21594414 | AK15: 6537.729873 | AL15: 7381.181128 | AO15: =[1]Outputs!C13 -> 42652.59408 | AP15: =[1]Outputs!D13 -> 87334.54193 | AQ15: =[1]Outputs!E13 -> 9366.993578 | AR15: =[1]Outputs!F13 -> 33258.71266 | AS15: =[1]Outputs!G13 -> 24028.4361 | AT15: =[1]Outputs!H13 -> 12257.51043 | AU15: =[1]Outputs!I13 -> 23912.12399 | AV15: =[1]Outputs!J13 -> 5501.767235 | AW15: =[1]Outputs!K13 -> 26452.46034 | AX15: =[1]Outputs!L13 -> 158497.5385 | AY15: =[1]Outputs!M13 -> 25779.3423 | AZ15: =[1]Outputs!O13 -> 34707.86906 | BA15: =[1]Outputs!P13 -> 38014.53155 | BB15: =[1]Outputs!Q13 -> 100019.2992 | BC15: =[1]Outputs!R13 -> 388707.0762 | BD15: =[1]Outputs!S13 -> 91407.04917
A16: MAR (industry-wide X factor), second year of reg period | B16: =MAR!E54 ->  | C16: 38224.14473 | D16: 57688.37038 | E16: 11492.41069 | F16: 33653.51318 | G16: 24377.54228 | H16: 13786.522 | I16: 22363.28674 | J16: 6967.762855 | K16: 28649.47282 | L16: 155848.375 | M16: 25238.16198 | N16: 254347.0941 | O16: 35052.74047 | P16: 39581.89603 | Q16: 101914.1649 | R16: 405605.5542 | S16: 100725.2836 | W16: -5260.265137 | X16: -31349.37979 | Y16: 1942.740931 | Z16: -253.8147098 | AA16: -119.4991329 | AB16: 1289.964192 | AC16: -2015.174232 | AD16: 1358.699525 | AE16: 1681.133565 | AF16: -5740.20065 | AG16: -1043.93201 | AH16: -332.0054297 | AI16: 826.0007289 | AJ16: -55.72216884 | AK16: 9317.86801 | AL16: 7535.603729 | AO16: =[1]Outputs!C14 -> 43484.40986 | AP16: =[1]Outputs!D14 -> 89037.75018 | AQ16: =[1]Outputs!E14 -> 9549.66976 | AR16: =[1]Outputs!F14 -> 33907.32789 | AS16: =[1]Outputs!G14 -> 24497.04141 | AT16: =[1]Outputs!H14 -> 12496.55781 | AU16: =[1]Outputs!I14 -> 24378.46097 | AV16: =[1]Outputs!J14 -> 5609.06333 | AW16: =[1]Outputs!K14 -> 26968.33926 | AX16: =[1]Outputs!L14 -> 161588.5756 | AY16: =[1]Outputs!M14 -> 26282.09399 | AZ16: =[1]Outputs!O14 -> 35384.7459 | BA16: =[1]Outputs!P14 -> 38755.8953 | BB16: =[1]Outputs!Q14 -> 101969.887 | BC16: =[1]Outputs!R14 -> 396287.6862 | BD16: =[1]Outputs!S14 -> 93189.67991
A17: MAR (industry-wide X factor), third year of reg period | B17: =MAR!F54 ->  | C17: 39002.16188 | D17: 59044.06506 | E17: 11622.02163 | F17: 34361.49658 | G17: 24761.57236 | H17: 14048.14952 | I17: 22764.42459 | J17: 7132.792588 | K17: 29294.90458 | L17: 158611.8719 | M17: 25772.71147 | N17: 259008.8889 | O17: 35496.57341 | P17: 40185.75379 | Q17: 104031.8372 | R17: 417329.8358 | S17: 102969.739 | W17: -5362.722874 | X17: -31796.52673 | Y17: 1878.989591 | Z17: -232.3888845 | AA17: -231.4865904 | AB17: 1298.56068 | AC17: -2107.6529 | AD17: 1410.156613 | AE17: 1780.508797 | AF17: -6248.558701 | AG17: -1041.543906 | AH17: -604.6449161 | AI17: 645.1268392 | AJ17: -2.742116663 | AK17: 13018.09317 | AL17: 7893.148926 | AO17: =[1]Outputs!C15 -> 44364.88476 | AP17: =[1]Outputs!D15 -> 90840.5918 | AQ17: =[1]Outputs!E15 -> 9743.032037 | AR17: =[1]Outputs!F15 -> 34593.88546 | AS17: =[1]Outputs!G15 -> 24993.05895 | AT17: =[1]Outputs!H15 -> 12749.58884 | AU17: =[1]Outputs!I15 -> 24872.07749 | AV17: =[1]Outputs!J15 -> 5722.635975 | AW17: =[1]Outputs!K15 -> 27514.39578 | AX17: =[1]Outputs!L15 -> 164860.4306 | AY17: =[1]Outputs!M15 -> 26814.25537 | AZ17: =[1]Outputs!O15 -> 36101.21832 | BA17: =[1]Outputs!P15 -> 39540.62695 | BB17: =[1]Outputs!Q15 -> 104034.5793 | BC17: =[1]Outputs!R15 -> 404311.7426 | BD17: =[1]Outputs!S15 -> 95076.59005
A18: MAR (industry-wide X factor), fourth year of reg period | B18: =MAR!G54 ->  | C18: 39926.52908 | D18: 60629.80931 | E18: 11791.63952 | F18: 35199.43614 | G18: 25234.13909 | H18: 14361.68831 | I18: 23248.75469 | J18: 7325.677619 | K18: 30053.1164 | L18: 161953.7752 | M18: 26404.89673 | N18: 264621.1367 | O18: 36063.91396 | P18: 40932.62696 | Q18: 106541.7827 | R18: 430801.2438 | S18: 105609.4297 | W18: -5325.653378 | X18: -32027.59432 | Y18: 1853.746846 | Z18: -86.32703408 | AA18: -258.7810402 | AB18: 1357.10769 | AC18: -2120.764347 | AD18: 1488.588924 | AE18: 1988.432708 | AF18: -6203.864015 | AG18: -945.6437564 | AH18: -759.3287306 | AI18: 601.1874664 | AJ18: 426.5118172 | AK18: 18403.26631 | AL18: 8631.307898 | AO18: =[1]Outputs!C16 -> 45252.18245 | AP18: =[1]Outputs!D16 -> 92657.40363 | AQ18: =[1]Outputs!E16 -> 9937.892677 | AR18: =[1]Outputs!F16 -> 35285.76317 | AS18: =[1]Outputs!G16 -> 25492.92013 | AT18: =[1]Outputs!H16 -> 13004.58062 | AU18: =[1]Outputs!I16 -> 25369.51904 | AV18: =[1]Outputs!J16 -> 5837.088694 | AW18: =[1]Outputs!K16 -> 28064.68369 | AX18: =[1]Outputs!L16 -> 168157.6392 | AY18: =[1]Outputs!M16 -> 27350.54048 | AZ18: =[1]Outputs!O16 -> 36823.24269 | BA18: =[1]Outputs!P16 -> 40331.43949 | BB18: =[1]Outputs!Q16 -> 106115.2709 | BC18: =[1]Outputs!R16 -> 412397.9775 | BD18: =[1]Outputs!S16 -> 96978.12185
A19: MAR (industry-wide X factor), fifth year of reg period | B19: =MAR!H54 ->  | C19: 40891.18175 | D19: 62286.13491 | E19: 11969.11216 | F19: 36074.02234 | G19: 25727.28715 | H19: 14688.82649 | I19: 23754.065 | J19: 7527.161559 | K19: 30844.81479 | L19: 165440.4448 | M19: 27064.75265 | N19: 270476.5511 | O19: 36656.79685 | P19: 41712.12771 | Q19: 109161.345 | R19: 444907.4623 | S19: 108365.493 | W19: -5266.04435 | X19: -32224.4168 | Y19: 1832.461624 | Z19: 82.54390224 | AA19: -275.4913877 | AB19: 1424.154252 | AC19: -2122.844419 | AD19: 1573.331091 | AE19: 2218.837424 | AF19: -6080.347208 | AG19: -832.7986455 | AH19: -902.9106892 | AI19: 574.0594306 | AJ19: 923.7687037 | AK19: 24261.5253 | AL19: 9447.808674 | AO19: =[1]Outputs!C17 -> 46157.2261 | AP19: =[1]Outputs!D17 -> 94510.5517 | AQ19: =[1]Outputs!E17 -> 10136.65053 | AR19: =[1]Outputs!F17 -> 35991.47844 | AS19: =[1]Outputs!G17 -> 26002.77854 | AT19: =[1]Outputs!H17 -> 13264.67223 | AU19: =[1]Outputs!I17 -> 25876.90942 | AV19: =[1]Outputs!J17 -> 5953.830468 | AW19: =[1]Outputs!K17 -> 28625.97737 | AX19: =[1]Outputs!L17 -> 171520.792 | AY19: =[1]Outputs!M17 -> 27897.55129 | AZ19: =[1]Outputs!O17 -> 37559.70754 | BA19: =[1]Outputs!P17 -> 41138.06828 | BB19: =[1]Outputs!Q17 -> 108237.5763 | BC19: =[1]Outputs!R17 -> 420645.937 | BD19: =[1]Outputs!S17 -> 98917.68429
A20: MAR (applicable X factor), first year of reg period | B20: =MAR!D55 ->  | C20: 30458.39221 | D20: 56511.66603 | E20: 9983.311486 | F20: 33046.58332 | G20: 22731.95846 | H20: 13565.26038 | I20: 22026.85063 | J20: 6824.407415 | K20: 28091.76336 | L20: 153534.7496 | M20: 24779.53509 | N20: 250424.4396 | O20: 34705.26322 | P20: 34231.36848 | Q20: 100101.5151 | R20: 395244.8061 | S20: 98788.23029 | W20: -12194.20187 | X20: -30822.87591 | Y20: 616.3179077 | Z20: -212.1293395 | AA20: -1296.477644 | AB20: 1307.749949 | AC20: -1885.273362 | AD20: 1322.64018 | AE20: 1639.303018 | AF20: -4962.788853 | AG20: -999.8072031 | AH20: -2.605838128 | AI20: -3783.163067 | AJ20: 82.21594414 | AK20: 6537.729873 | AL20: 7381.181128 | AO20: =[1]Outputs!C18 -> 42652.59408 | AP20: =[1]Outputs!D18 -> 87334.54193 | AQ20: =[1]Outputs!E18 -> 9366.993578 | AR20: =[1]Outputs!F18 -> 33258.71266 | AS20: =[1]Outputs!G18 -> 24028.4361 | AT20: =[1]Outputs!H18 -> 12257.51043 | AU20: =[1]Outputs!I18 -> 23912.12399 | AV20: =[1]Outputs!J18 -> 5501.767235 | AW20: =[1]Outputs!K18 -> 26452.46034 | AX20: =[1]Outputs!L18 -> 158497.5385 | AY20: =[1]Outputs!M18 -> 25779.3423 | AZ20: =[1]Outputs!O18 -> 34707.86906 | BA20: =[1]Outputs!P18 -> 38014.53155 | BB20: =[1]Outputs!Q18 -> 100019.2992 | BC20: =[1]Outputs!R18 -> 388707.0762 | BD20: =[1]Outputs!S18 -> 91407.04917
A21: MAR (applicable X factor), second year of reg period | B21: =MAR!E55 ->  | C21: 34406.70138 | D21: 57688.37038 | E21: 10774.35106 | F21: 33653.51318 | G21: 23720.53936 | H21: 13786.522 | I21: 22363.28674 | J21: 6967.762855 | K21: 28649.47282 | L21: 155848.375 | M21: 25238.16198 | N21: 254347.0941 | O21: 35052.74047 | P21: 37089.05307 | Q21: 101914.1649 | R21: 405605.5542 | S21: 100725.2836 | W21: -9077.708485 | X21: -31349.37979 | Y21: 1224.681296 | Z21: -253.8147098 | AA21: -776.5020589 | AB21: 1289.964192 | AC21: -2015.174232 | AD21: 1358.699525 | AE21: 1681.133565 | AF21: -5740.20065 | AG21: -1043.93201 | AH21: -332.0054297 | AI21: -1666.842234 | AJ21: -55.72216884 | AK21: 9317.86801 | AL21: 7535.603729 | AO21: =[1]Outputs!C19 -> 43484.40986 | AP21: =[1]Outputs!D19 -> 89037.75018 | AQ21: =[1]Outputs!E19 -> 9549.66976 | AR21: =[1]Outputs!F19 -> 33907.32789 | AS21: =[1]Outputs!G19 -> 24497.04141 | AT21: =[1]Outputs!H19 -> 12496.55781 | AU21: =[1]Outputs!I19 -> 24378.46097 | AV21: =[1]Outputs!J19 -> 5609.06333 | AW21: =[1]Outputs!K19 -> 26968.33926 | AX21: =[1]Outputs!L19 -> 161588.5756 | AY21: =[1]Outputs!M19 -> 26282.09399 | AZ21: =[1]Outputs!O19 -> 35384.7459 | BA21: =[1]Outputs!P19 -> 38755.8953 | BB21: =[1]Outputs!Q19 -> 101969.887 | BC21: =[1]Outputs!R19 -> 396287.6862 | BD21: =[1]Outputs!S19 -> 93189.67991
A22: MAR (applicable X factor), third year of reg period | B22: =MAR!F55 ->  | C22: 38968.78998 | D22: 59044.06506 | E22: 11658.57421 | F22: 34361.49658 | G22: 24817.04596 | H22: 14048.14952 | I22: 22764.42459 | J22: 7132.792588 | K22: 29294.90458 | L22: 158611.8719 | M22: 25772.71147 | N22: 259008.8889 | O22: 35496.57341 | P22: 40290.72186 | Q22: 104031.8372 | R22: 417329.8358 | S22: 102969.739 | W22: -5396.094774 | X22: -31796.52673 | Y22: 1915.542171 | Z22: -232.3888845 | AA22: -176.0129892 | AB22: 1298.56068 | AC22: -2107.6529 | AD22: 1410.156613 | AE22: 1780.508797 | AF22: -6248.558701 | AG22: -1041.543906 | AH22: -604.6449161 | AI22: 750.094911 | AJ22: -2.742116663 | AK22: 13018.09317 | AL22: 7893.148926 | AO22: =[1]Outputs!C20 -> 44364.88476 | AP22: =[1]Outputs!D20 -> 90840.5918 | AQ22: =[1]Outputs!E20 -> 9743.032037 | AR22: =[1]Outputs!F20 -> 34593.88546 | AS22: =[1]Outputs!G20 -> 24993.05895 | AT22: =[1]Outputs!H20 -> 12749.58884 | AU22: =[1]Outputs!I20 -> 24872.07749 | AV22: =[1]Outputs!J20 -> 5722.635975 | AW22: =[1]Outputs!K20 -> 27514.39578 | AX22: =[1]Outputs!L20 -> 164860.4306 | AY22: =[1]Outputs!M20 -> 26814.25537 | AZ22: =[1]Outputs!O20 -> 36101.21832 | BA22: =[1]Outputs!P20 -> 39540.62695 | BB22: =[1]Outputs!Q20 -> 104034.5793 | BC22: =[1]Outputs!R20 -> 404311.7426 | BD22: =[1]Outputs!S20 -> 95076.59005
A23: MAR (applicable X factor), fourth year of reg period | B23: =MAR!G55 ->  | C23: 44280.52653 | D23: 60629.80931 | E23: 12656.73636 | F23: 35199.43614 | G23: 26049.39153 | H23: 14361.68831 | I23: 23248.75469 | J23: 7325.677619 | K23: 30053.1164 | L23: 161953.7752 | M23: 26404.89673 | N23: 264621.1367 | O23: 36063.91396 | P23: 43912.31413 | Q23: 106541.7827 | R23: 430801.2438 | S23: 105609.4297 | W23: -971.6559192 | X23: -32027.59432 | Y23: 2718.843684 | Z23: -86.32703408 | AA23: 556.4713987 | AB23: 1357.10769 | AC23: -2120.764347 | AD23: 1488.588924 | AE23: 1988.432708 | AF23: -6203.864015 | AG23: -945.6437564 | AH23: -759.3287306 | AI23: 3580.874639 | AJ23: 426.5118172 | AK23: 18403.26631 | AL23: 8631.307898 | AO23: =[1]Outputs!C21 -> 45252.18245 | AP23: =[1]Outputs!D21 -> 92657.40363 | AQ23: =[1]Outputs!E21 -> 9937.892677 | AR23: =[1]Outputs!F21 -> 35285.76317 | AS23: =[1]Outputs!G21 -> 25492.92013 | AT23: =[1]Outputs!H21 -> 13004.58062 | AU23: =[1]Outputs!I21 -> 25369.51904 | AV23: =[1]Outputs!J21 -> 5837.088694 | AW23: =[1]Outputs!K21 -> 28064.68369 | AX23: =[1]Outputs!L21 -> 168157.6392 | AY23: =[1]Outputs!M21 -> 27350.54048 | AZ23: =[1]Outputs!O21 -> 36823.24269 | BA23: =[1]Outputs!P21 -> 40331.43949 | BB23: =[1]Outputs!Q21 -> 106115.2709 | BC23: =[1]Outputs!R21 -> 412397.9775 | BD23: =[1]Outputs!S21 -> 96978.12185
A24: MAR (applicable X factor), fifth year of reg period | B24: =MAR!H55 ->  | C24: 50338.91604 | D24: 62286.13491 | E24: 13746.53537 | F24: 36074.02234 | G24: 27355.22614 | H24: 14688.82649 | I24: 23754.065 | J24: 7527.161559 | K24: 30844.81479 | L24: 165440.4448 | M24: 27064.75265 | N24: 270476.5511 | O24: 36656.79685 | P24: 47880.95768 | Q24: 109161.345 | R24: 444907.4623 | S24: 108365.493 | W24: 4181.689941 | X24: -32224.4168 | Y24: 3609.884842 | Z24: 82.54390224 | AA24: 1352.447601 | AB24: 1424.154252 | AC24: -2122.844419 | AD24: 1573.331091 | AE24: 2218.837424 | AF24: -6080.347208 | AG24: -832.7986455 | AH24: -902.9106892 | AI24: 6742.889396 | AJ24: 923.7687037 | AK24: 24261.5253 | AL24: 9447.808674 | AO24: =[1]Outputs!C22 -> 46157.2261 | AP24: =[1]Outputs!D22 -> 94510.5517 | AQ24: =[1]Outputs!E22 -> 10136.65053 | AR24: =[1]Outputs!F22 -> 35991.47844 | AS24: =[1]Outputs!G22 -> 26002.77854 | AT24: =[1]Outputs!H22 -> 13264.67223 | AU24: =[1]Outputs!I22 -> 25876.90942 | AV24: =[1]Outputs!J22 -> 5953.830468 | AW24: =[1]Outputs!K22 -> 28625.97737 | AX24: =[1]Outputs!L22 -> 171520.792 | AY24: =[1]Outputs!M22 -> 27897.55129 | AZ24: =[1]Outputs!O22 -> 37559.70754 | BA24: =[1]Outputs!P22 -> 41138.06828 | BB24: =[1]Outputs!Q22 -> 108237.5763 | BC24: =[1]Outputs!R22 -> 420645.937 | BD24: =[1]Outputs!S22 -> 98917.68429
A25: BBAR before tax, first year of reg period | B25: =BBAR!F59 ->  | C25: 37686.55007 | D25: 56742.25911 | E25: 11258.66487 | F25: 32304.51082 | G25: 23603.7491 | H25: 13673.25846 | I25: 22108.11457 | J25: 7005.914968 | K25: 28328.59077 | L25: 153568.7927 | M25: 24616.80347 | N25: 247958.6453 | O25: 34381.36842 | P25: 37798.66999 | Q25: 99427.23543 | R25: 399748.3961 | S25: 99633.73932 | W25: -4059.095934 | X25: -26421.63497 | Y25: 2035.586816 | Z25: -56.45554026 | AA25: 46.86813252 | AB25: 1641.425566 | AC25: -1553.518049 | AD25: 1565.781772 | AE25: 2419.411008 | AF25: 392.0798231 | AG25: -352.8858988 | AH25: 563.9648811 | AI25: 620.9114854 | AJ25: 2325.761962 | AK25: 24043.78432 | AL25: 10285.12045 | AO25: =[1]Outputs!C23 -> 41745.646 | AP25: =[1]Outputs!D23 -> 83163.89409 | AQ25: =[1]Outputs!E23 -> 9223.078052 | AR25: =[1]Outputs!F23 -> 32360.96636 | AS25: =[1]Outputs!G23 -> 23556.88097 | AT25: =[1]Outputs!H23 -> 12031.8329 | AU25: =[1]Outputs!I23 -> 23661.63262 | AV25: =[1]Outputs!J23 -> 5440.133196 | AW25: =[1]Outputs!K23 -> 25909.17976 | AX25: =[1]Outputs!L23 -> 153176.7129 | AY25: =[1]Outputs!M23 -> 24969.68937 | AZ25: =[1]Outputs!O23 -> 33817.40354 | BA25: =[1]Outputs!P23 -> 37177.75851 | BB25: =[1]Outputs!Q23 -> 97101.47347 | BC25: =[1]Outputs!R23 -> 375704.6118 | BD25: =[1]Outputs!S23 -> 89348.61887
A26: BBAR before tax, second year of reg period | B26: =BBAR!G59 ->  | C26: 37813.71262 | D26: 57115.8418 | E26: 11288.88193 | F26: 32754.80249 | G26: 23961.81198 | H26: 13713.90803 | I26: 22146.43307 | J26: 6915.435878 | K26: 28270.92205 | L26: 154192.1659 | M26: 24740.60779 | N26: 248570.7654 | O26: 34496.50448 | P26: 38463.07339 | Q26: 100416.833 | R26: 400165.2395 | S26: 99360.96877 | W26: -5117.142014 | X26: -29468.83899 | Y26: 1832.794915 | Z26: -520.0748085 | AA26: -190.6684179 | AB26: 1414.05055 | AC26: -1973.226233 | AD26: 1370.292966 | AE26: 1651.402675 | AF26: -3538.221499 | AG26: -847.6723722 | AH26: -341.0792054 | AI26: 368.370089 | AJ26: 347.1728281 | AK26: 12618.46856 | AL26: 7760.728455 | AO26: =[1]Outputs!C24 -> 42930.85464 | AP26: =[1]Outputs!D24 -> 86584.68079 | AQ26: =[1]Outputs!E24 -> 9456.087012 | AR26: =[1]Outputs!F24 -> 33274.87729 | AS26: =[1]Outputs!G24 -> 24152.4804 | AT26: =[1]Outputs!H24 -> 12299.85748 | AU26: =[1]Outputs!I24 -> 24119.6593 | AV26: =[1]Outputs!J24 -> 5545.142912 | AW26: =[1]Outputs!K24 -> 26619.51937 | AX26: =[1]Outputs!L24 -> 157730.3874 | AY26: =[1]Outputs!M24 -> 25588.28016 | AZ26: =[1]Outputs!O24 -> 34837.58369 | BA26: =[1]Outputs!P24 -> 38094.7033 | BB26: =[1]Outputs!Q24 -> 100069.6601 | BC26: =[1]Outputs!R24 -> 387546.771 | BD26: =[1]Outputs!S24 -> 91600.24032
A27: BBAR before tax, third year of reg period | B27: =BBAR!H59 ->  | C27: 38749.75874 | D27: 58684.84202 | E27: 11573.85335 | F27: 34265.57129 | G27: 24809.11479 | H27: 13996.39332 | I27: 22660.86044 | J27: 7050.151231 | K27: 29140.58858 | L27: 157902.9963 | M27: 25563.5739 | N27: 256942.6814 | O27: 35309.25561 | P27: 40094.74625 | Q27: 103553.5118 | R27: 413439.8824 | S27: 102167.9002 | W27: -5663.084654 | X27: -32349.50763 | Y27: =E27-AQ27 -> 1820.967804 | Z27: =F27-AR27 -> -344.3918292 | AA27: =G27-AS27 -> -170.0701973 | AB27: =H27-AT27 -> 1266.725097 | AC27: =I27-AU27 -> -2154.98762 | AD27: =J27-AV27 -> 1334.598929 | AE27: =K27-AW27 -> 1601.184583 | AF27: =L27-AX27 -> -6739.08594 | AG27: =M27-AY27 -> -1105.588488 | AH27: -814.4909944 | AI27: 605.0376859 | AJ27: =Q27-BB27 -> -591.8607391 | AK27: =R27-BC27 -> 9038.709887 | AL27: =S27-BD27 -> 7262.70932 | AO27: =[1]Outputs!C25 -> 44412.8434 | AP27: =[1]Outputs!D25 -> 91034.34966 | AQ27: =[1]Outputs!E25 -> 9752.88555 | AR27: =[1]Outputs!F25 -> 34609.96312 | AS27: =[1]Outputs!G25 -> 24979.18498 | AT27: =[1]Outputs!H25 -> 12729.66822 | AU27: =[1]Outputs!I25 -> 24815.84806 | AV27: =[1]Outputs!J25 -> 5715.552302 | AW27: =[1]Outputs!K25 -> 27539.40399 | AX27: =[1]Outputs!L25 -> 164642.0823 | AY27: =[1]Outputs!M25 -> 26669.16239 | AZ27: =[1]Outputs!O25 -> 36123.74661 | BA27: =[1]Outputs!P25 -> 39489.70856 | BB27: =[1]Outputs!Q25 -> 104145.3725 | BC27: =[1]Outputs!R25 -> 404401.1725 | BD27: =[1]Outputs!S25 -> 94905.19093
A28: BBAR before tax, fourth year of reg period | B28: =BBAR!I59 ->  | C28: 39850.44093 | D28: 60876.86923 | E28: 11948.13601 | F28: 35993.6376 | G28: 25622.21423 | H28: 14352.63622 | I28: 23327.28455 | J28: 7272.173998 | K28: 30182.37628 | L28: 162463.8964 | M28: 26677.55651 | N28: 268179.9455 | O28: 36396.49168 | P28: 41949.98696 | Q28: 107589.7303 | R28: 431595.9182 | S28: 105956.6625 | W28: -5986.642036 | X28: -34460.06316 | Y28: 1909.116904 | Z28: 84.65986306 | AA28: -184.5241667 | AB28: 1176.331232 | AC28: -2261.147264 | AD28: 1385.095518 | AE28: 1756.439229 | AF28: -9309.615599 | AG28: -1320.417322 | AH28: -1003.299743 | AI28: 1031.452452 | AJ28: -436.8145221 | AK28: 10562.33045 | AL28: 7582.639324 | AO28: =[1]Outputs!C26 -> 45837.08296 | AP28: =[1]Outputs!D26 -> 95336.93239 | AQ28: =[1]Outputs!E26 -> 10039.0191 | AR28: =[1]Outputs!F26 -> 35908.97773 | AS28: =[1]Outputs!G26 -> 25806.7384 | AT28: =[1]Outputs!H26 -> 13176.30499 | AU28: =[1]Outputs!I26 -> 25588.43181 | AV28: =[1]Outputs!J26 -> 5887.07848 | AW28: =[1]Outputs!K26 -> 28425.93705 | AX28: =[1]Outputs!L26 -> 171773.512 | AY28: =[1]Outputs!M26 -> 27997.97383 | AZ28: =[1]Outputs!O26 -> 37399.79142 | BA28: =[1]Outputs!P26 -> 40918.53451 | BB28: =[1]Outputs!Q26 -> 108026.5448 | BC28: =[1]Outputs!R26 -> 421033.5877 | BD28: =[1]Outputs!S26 -> 98374.02316
A29: BBAR before tax, fifth year of reg period | B29: =BBAR!J59 ->  | C29: 40826.20192 | D29: 62834.74966 | E29: 12286.10583 | F29: 37419.40066 | G29: 26374.2055 | H29: 14704.85404 | I29: 23948.67461 | J29: 7504.295606 | K29: 31037.13804 | L29: 167702.9359 | M29: 27755.15381 | N29: 279405.0593 | O29: 37489.05235 | P29: 43808.02363 | Q29: 111321.8538 | R29: 449279.9452 | S29: 109478.6633 | W29: -6384.373574 | X29: -36453.85065 | Y29: 1986.887441 | Z29: 300.5653039 | AA29: -273.4228798 | AB29: 1103.205392 | AC29: -2356.250366 | AD29: 1448.20617 | AE29: 1767.79773 | AF29: -11049.38882 | AG29: -1385.498771 | AH29: -1133.527202 | AI29: 1471.610908 | AJ29: -457.6814805 | AK29: 12219.89263 | AL29: 7554.487765 | AO29: =[1]Outputs!C27 -> 47210.57549 | AP29: =[1]Outputs!D27 -> 99288.60031 | AQ29: =[1]Outputs!E27 -> 10299.21839 | AR29: =[1]Outputs!F27 -> 37118.83536 | AS29: =[1]Outputs!G27 -> 26647.62838 | AT29: =[1]Outputs!H27 -> 13601.64865 | AU29: =[1]Outputs!I27 -> 26304.92497 | AV29: =[1]Outputs!J27 -> 6056.089436 | AW29: =[1]Outputs!K27 -> 29269.34031 | AX29: =[1]Outputs!L27 -> 178752.3247 | AY29: =[1]Outputs!M27 -> 29140.65258 | AZ29: =[1]Outputs!O27 -> 38622.57955 | BA29: =[1]Outputs!P27 -> 42336.41272 | BB29: =[1]Outputs!Q27 -> 111779.5353 | BC29: =[1]Outputs!R27 -> 437060.0526 | BD29: =[1]Outputs!S27 -> 101924.1756
A30: Closing RAB, first year of reg period | B30: =RAB!F95 ->  | C30: 161761.7556 | D30: 360210.8278 | E30: 57680.18433 | F30: 240561.0992 | G30: 148118.4506 | H30: 77602.86593 | I30: 120698.9527 | J30: 41745.1932 | K30: 168303.6496 | L30: 999926.7359 | M30: 159098.8227 | N30: 1540185.481 | O30: 189870.4149 | P30: 230926.956 | Q30: 582770.4555 | R30: 2798661.376 | S30: 589754.7243 | W30: -49299.71422 | X30: -193183.9237 | Y30: -10548.90107 | Z30: -54170.92617 | AA30: -25015.99107 | AB30: -15482.30874 | AC30: -18470.56209 | AD30: -1627.36224 | AE30: -13429.19457 | AF30: -173875.2553 | AG30: -61828.68357 | AH30: -40484.65788 | AI30: -66074.00328 | AJ30: -89137.31966 | AK30: -577932.2109 | AL30: -94736.05331 | AO30: =[1]Outputs!C28 -> 211061.4698 | AP30: =[1]Outputs!D28 -> 553394.7515 | AQ30: =[1]Outputs!E28 -> 68229.0854 | AR30: =[1]Outputs!F28 -> 294732.0254 | AS30: =[1]Outputs!G28 -> 173134.4417 | AT30: =[1]Outputs!H28 -> 93085.17467 | AU30: =[1]Outputs!I28 -> 139169.5147 | AV30: =[1]Outputs!J28 -> 43372.55544 | AW30: =[1]Outputs!K28 -> 181732.8442 | AX30: =[1]Outputs!L28 -> 1173801.991 | AY30: =[1]Outputs!M28 -> 220927.5062 | AZ30: =[1]Outputs!O28 -> 230355.0728 | BA30: =[1]Outputs!P28 -> 297000.9593 | BB30: =[1]Outputs!Q28 -> 671907.7752 | BC30: =[1]Outputs!R28 -> 3376593.587 | BD30: =[1]Outputs!S28 -> 684490.7776
A31: Closing RAB, second year of reg period | B31: =RAB!G95 ->  | C31: 162740.6042 | D31: 370855.9722 | E31: 58950.66895 | F31: 259045.8891 | G31: 159200.6029 | H31: 79273.84242 | I31: 124604.3942 | J31: 41854.81975 | K31: 172156.0205 | L31: 1028843.775 | M31: 164334.8062 | N31: 1593316.73 | O31: 193296.2097 | P31: 246807.8816 | Q31: 605394.4069 | R31: 2897609.479 | S31: 599557.5244 | W31: -54358.97865 | X31: -222712.0774 | Y31: -10742.32686 | Z31: -46923.41869 | AA31: -20030.2475 | AB31: -16902.02876 | AC31: -15892.66623 | AD31: -2365.997175 | AE31: -16978.62831 | AF31: -181935.8095 | AG31: -64675.89696 | AH31: -47255.06389 | AI31: -59910.64405 | AJ31: -95985.84084 | AK31: -613107.0471 | AL31: -102677.1398 | AO31: =[1]Outputs!C29 -> 217099.5828 | AP31: =[1]Outputs!D29 -> 593568.0497 | AQ31: =[1]Outputs!E29 -> 69692.99581 | AR31: =[1]Outputs!F29 -> 305969.3078 | AS31: =[1]Outputs!G29 -> 179230.8504 | AT31: =[1]Outputs!H29 -> 96175.87118 | AU31: =[1]Outputs!I29 -> 140497.0604 | AV31: =[1]Outputs!J29 -> 44220.81692 | AW31: =[1]Outputs!K29 -> 189134.6488 | AX31: =[1]Outputs!L29 -> 1210779.585 | AY31: =[1]Outputs!M29 -> 229010.7031 | AZ31: =[1]Outputs!O29 -> 240551.2736 | BA31: =[1]Outputs!P29 -> 306718.5256 | BB31: =[1]Outputs!Q29 -> 701380.2477 | BC31: =[1]Outputs!R29 -> 3510716.526 | BD31: =[1]Outputs!S29 -> 702234.6642
A32: Closing RAB, third year of reg period | B32: =RAB!H95 ->  | C32: 164763.808 | D32: 380144.7627 | E32: 60361.94254 | F32: 272906.7563 | G32: 163773.2269 | H32: 80444.33321 | I32: 127931.9304 | J32: 42397.4204 | K32: 178040.462 | L32: 1050140.659 | M32: 170222.2796 | N32: 1659480.014 | O32: 196490.7935 | P32: 259753.0689 | Q32: 626297.9391 | R32: 2998507.702 | S32: 614997.4572 | W32: -56191.8118 | X32: -250305.7124 | Y32: -11900.86258 | Z32: -43760.44747 | AA32: -20143.81003 | AB32: -19210.04249 | AC32: -14967.94021 | AD32: -2570.85607 | AE32: -14997.85616 | AF32: -221789.9625 | AG32: -71034.63605 | AH32: -52822.29121 | AI32: -57686.5337 | AJ32: -101351.4854 | AK32: -645603.2656 | AL32: -106036.8323 | AO32: =[1]Outputs!C30 -> 220955.6198 | AP32: =[1]Outputs!D30 -> 630450.4751 | AQ32: =[1]Outputs!E30 -> 72262.80512 | AR32: =[1]Outputs!F30 -> 316667.2037 | AS32: =[1]Outputs!G30 -> 183917.0369 | AT32: =[1]Outputs!H30 -> 99654.3757 | AU32: =[1]Outputs!I30 -> 142899.8706 | AV32: =[1]Outputs!J30 -> 44968.27647 | AW32: =[1]Outputs!K30 -> 193038.3181 | AX32: =[1]Outputs!L30 -> 1271930.622 | AY32: =[1]Outputs!M30 -> 241256.9156 | AZ32: =[1]Outputs!O30 -> 249313.0847 | BA32: =[1]Outputs!P30 -> 317439.6026 | BB32: =[1]Outputs!Q30 -> 727649.4245 | BC32: =[1]Outputs!R30 -> 3644110.967 | BD32: =[1]Outputs!S30 -> 721034.2895
A33: Closing RAB, fourth year of reg period | B33: =RAB!I95 ->  | C33: 163416.5426 | D33: 390164.471 | E33: 61418.22493 | F33: 285729.5759 | G33: 166482.5079 | H33: 80716.7036 | I33: 130503.5958 | J33: 42957.25139 | K33: 180152.2393 | L33: 1058710.21 | M33: 175879.4183 | N33: 1721572.056 | O33: 198752.4485 | P33: 270707.4041 | Q33: 645840.0085 | R33: 3099907.604 | S33: 625245.0654 | W33: -60086.96802 | X33: -266867.9883 | Y33: -12191.81739 | Z33: -39137.56021 | AA33: -22256.44051 | AB33: -22292.26738 | AC33: -14949.83924 | AD33: -2703.265217 | AE33: -17536.40101 | AF33: -262854.2881 | AG33: -82327.97631 | AH33: -59602.72671 | AI33: -56794.88359 | AJ33: -103145.8163 | AK33: -668917.0334 | AL33: -115651.3556 | AO33: =[1]Outputs!C31 -> 223503.5107 | AP33: =[1]Outputs!D31 -> 657032.4593 | AQ33: =[1]Outputs!E31 -> 73610.04232 | AR33: =[1]Outputs!F31 -> 324867.1361 | AS33: =[1]Outputs!G31 -> 188738.9484 | AT33: =[1]Outputs!H31 -> 103008.971 | AU33: =[1]Outputs!I31 -> 145453.435 | AV33: =[1]Outputs!J31 -> 45660.5166 | AW33: =[1]Outputs!K31 -> 197688.6403 | AX33: =[1]Outputs!L31 -> 1321564.499 | AY33: =[1]Outputs!M31 -> 258207.3946 | AZ33: =[1]Outputs!O31 -> 258355.1752 | BA33: =[1]Outputs!P31 -> 327502.2877 | BB33: =[1]Outputs!Q31 -> 748985.8248 | BC33: =[1]Outputs!R31 -> 3768824.638 | BD33: =[1]Outputs!S31 -> 740896.4209
A34: Closing RAB, fifth year of reg period | B34: =RAB!J95 ->  | C34: 162399.2099 | D34: 395302.4915 | E34: 62125.31421 | F34: 292824.1191 | G34: 169322.4028 | H34: 81765.77465 | I34: 132968.139 | J34: 43783.18041 | K34: 181225.8172 | L34: 1091933.779 | M34: 180937.2319 | N34: 1787415.856 | O34: 202156.7329 | P34: 283238.4837 | Q34: 660906.3129 | R34: 3191466.262 | S34: 633911.3469 | W34: -62500.57246 | X34: -291900.2994 | Y34: -12857.56197 | Z34: -38830.26813 | AA34: -24628.44616 | AB34: -24004.42695 | AC34: -14777.52412 | AD34: -2516.454383 | AE34: -19216.22334 | AF34: -281887.5989 | AG34: -84686.76005 | AH34: -63508.01135 | AI34: -54231.06299 | AJ34: -109312.649 | AK34: -684703.0239 | AL34: -127778.2589 | AO34: =[1]Outputs!C32 -> 224899.7823 | AP34: =[1]Outputs!D32 -> 687202.7909 | AQ34: =[1]Outputs!E32 -> 74982.87618 | AR34: =[1]Outputs!F32 -> 331654.3873 | AS34: =[1]Outputs!G32 -> 193950.8489 | AT34: =[1]Outputs!H32 -> 105770.2016 | AU34: =[1]Outputs!I32 -> 147745.6631 | AV34: =[1]Outputs!J32 -> 46299.63479 | AW34: =[1]Outputs!K32 -> 200442.0405 | AX34: =[1]Outputs!L32 -> 1373821.378 | AY34: =[1]Outputs!M32 -> 265623.992 | AZ34: =[1]Outputs!O32 -> 265664.7443 | BA34: =[1]Outputs!P32 -> 337469.5467 | BB34: =[1]Outputs!Q32 -> 770218.9619 | BC34: =[1]Outputs!R32 -> 3876169.285 | BD34: =[1]Outputs!S32 -> 761689.6057
C39: The data panel below is a copy of the outputs from the 2015 DPP reset model | V39: Reconciliation of the this waterfall model with the 2015 financial model outputs is achieved when the tan coloured panel below indicates zero values. This reconciliation requires the "mode" setting at cell D5 on the Waterfall sheet to be set to 0.
C40: Alpine Energy | D40: Aurora Energy | E40: Centralines | F40: EA Networks | G40: Eastland Network | H40: Electricity Invercargill | I40: Horizon Energy | J40: Nelson Electricity | K40: Network Tasman | L40: Orion | M40: OtagoNet | N40: Powerco | O40: The Lines Company | P40: Top Energy | Q40: Unison Networks | R40: Vector Lines | S40: Wellington Electricity | W40: Alpine Energy | X40: Aurora Energy | Y40: Centralines | Z40: EA Networks | AA40: Eastland Network | AB40: Electricity Invercargill | AC40: Horizon Energy | AD40: Nelson Electricity | AE40: Network Tasman | AF40: Orion | AG40: OtagoNet | AH40: Powerco | AI40: The Lines Company | AJ40: Top Energy | AK40: Unison Networks | AL40: Vector Lines | AM40: Wellington Electricity
A41: PV at 1 Apr 2015 of BBAR | C41: 163099.0198 | D41: 247691.7372 | E41: 48814.56879 | F41: 144179.6933 | G41: 103952.6872 | H41: 58957.10534 | I41: 95547.21115 | J41: 29921.80788 | K41: 122903.6847 | L41: No reconciliation for Orion as the 2015 reset model did not produce meaningful outputs for Orion | M41: 108078.0521 | N41: 1087074.297 | O41: 148967.8663 | P41: 168714.3866 | Q41: 436524.6314 | R41: 1749930.119 | S41: 432008.2578 | W41: =C11-C41 -> 0 | X41: =D11-D41 -> 0 | Y41: =E11-E41 -> 0 | Z41: =F11-F41 -> 0 | AA41: =G11-G41 -> 0 | AB41: =H11-H41 -> 0 | AC41: =I11-I41 -> 0 | AD41: =J11-J41 -> 0 | AE41: =K11-K41 -> 0 | AF41: No reconciliation for Orion as the 2015 reset model did not produce meaningful outputs for Orion | AG41: =M11-M41 -> 0 | AH41: 0 | AI41: =O11-O41 -> 0 | AJ41: =P11-P41 -> 0 | AK41: =Q11-Q41 -> 0 | AL41: =R11-R41 -> 0 | AM41: =S11-S41 -> 0
A42: Starting price for industry-wide X factor | C42: 37559.9229 | D42: 56511.66603 | E42: 11394.05771 | F42: 33046.58332 | G42: 24062.42743 | H42: 13565.26038 | I42: 22026.85063 | J42: 6824.407415 | K42: 28091.76336 | M42: 24779.53509 | N42: 250424.4396 | O42: 34705.26322 | P42: 39089.38949 | Q42: 100101.5151 | R42: 395244.8061 | S42: 98788.23029 | W42: 0 | X42: =D12-D42 -> 0 | Y42: 0 | Z42: 0 | AA42: 0 | AB42: 0 | AC42: 0 | AD42: 0 | AE42: 0 | AG42: 0 | AH42: =N12-N42 -> 0 | AI42: =O12-O42 -> 0 | AJ42: =P12-P42 -> 0 | AK42: =Q12-Q42 -> 0 | AL42: =R12-R42 -> 0 | AM42: =S12-S42 -> 0
A43: Starting price for applicable X factor | C43: 30458.39221 | D43: 56511.66603 | E43: 9983.311486 | F43: 33046.58332 | G43: 22731.95846 | H43: 13565.26038 | I43: 22026.85063 | J43: 6824.407415 | K43: 28091.76336 | M43: 24779.53509 | N43: 250424.4396 | O43: 34705.26322 | P43: 34231.36848 | Q43: 100101.5151 | R43: 395244.8061 | S43: 98788.23029 | W43: 0 | X43: 0 | Y43: 0 | Z43: 0 | AA43: 0 | AB43: 0 | AC43: 0 | AD43: 0 | AE43: 0 | AG43: 0 | AH43: 0 | AI43: 0 | AJ43: 0 | AK43: 0 | AL43: 0 | AM43: 0
A44: PV at 1 Apr 2015 of MAR (applicable X) | C44: 163662.2393 | D44: 247691.7372 | E44: 48814.56879 | F44: 144179.6933 | G44: 103952.6872 | H44: 58957.10534 | I44: 95547.21115 | J44: 29921.80788 | K44: 122903.6847 | M44: 108140.005 | N44: 1087074.297 | O44: 149068.9809 | P44: 168714.3866 | Q44: 436524.6314 | R44: 1749930.119 | S44: 432008.2578 | W44: 0 | X44: 0 | Y44: 0 | Z44: 0 | AA44: 0 | AB44: 0 | AC44: 0 | AD44: 0 | AE44: 0 | AG44: 0 | AH44: 0 | AI44: 0 | AJ44: 0 | AK44: 0 | AL44: 0 | AM44: 0
A45: MAR (industry-wide X factor) 2016 | C45: 37559.9229 | D45: 56511.66603 | E45: 11394.05771 | F45: 33046.58332 | G45: 24062.42743 | H45: 13565.26038 | I45: 22026.85063 | J45: 6824.407415 | K45: 28091.76336 | M45: 24779.53509 | N45: 250424.4396 | O45: 34705.26322 | P45: 39089.38949 | Q45: 100101.5151 | R45: 395244.8061 | S45: 98788.23029 | W45: 0 | X45: 0 | Y45: 0 | Z45: 0 | AA45: 0 | AB45: 0 | AC45: 0 | AD45: 0 | AE45: 0 | AG45: 0 | AH45: 0 | AI45: 0 | AJ45: 0 | AK45: 0 | AL45: 0 | AM45: 0
A46: MAR (industry-wide X factor) 2017 | C46: 38224.14473 | D46: 57688.37038 | E46: 11492.41069 | F46: 33653.51318 | G46: 24377.54228 | H46: 13786.522 | I46: 22363.28674 | J46: 6967.762855 | K46: 28649.47282 | M46: 25238.16198 | N46: 254347.0941 | O46: 35052.74047 | P46: 39581.89603 | Q46: 101914.1649 | R46: 405605.5542 | S46: 100725.2836 | W46: 0 | X46: 0 | Y46: 0 | Z46: 0 | AA46: 0 | AB46: 0 | AC46: 0 | AD46: 0 | AE46: 0 | AG46: 0 | AH46: 0 | AI46: 0 | AJ46: 0 | AK46: 0 | AL46: 0 | AM46: 0
A47: MAR (industry-wide X factor) 2018 | C47: 39002.16188 | D47: 59044.06506 | E47: 11622.02163 | F47: 34361.49658 | G47: 24761.57236 | H47: 14048.14952 | I47: 22764.42459 | J47: 7132.792588 | K47: 29294.90458 | M47: 25772.71147 | N47: 259008.8889 | O47: 35496.57341 | P47: 40185.75379 | Q47: 104031.8372 | R47: 417329.8358 | S47: 102969.739 | W47: 0 | X47: 0 | Y47: 0 | Z47: 0 | AA47: 0 | AB47: 0 | AC47: 0 | AD47: 0 | AE47: 0 | AG47: 0 | AH47: 0 | AI47: 0 | AJ47: 0 | AK47: 0 | AL47: 0 | AM47: 0
A48: MAR (industry-wide X factor) 2019 | C48: 39926.52908 | D48: 60629.80931 | E48: 11791.63952 | F48: 35199.43614 | G48: 25234.13909 | H48: 14361.68831 | I48: 23248.75469 | J48: 7325.677619 | K48: 30053.1164 | M48: 26404.89673 | N48: 264621.1367 | O48: 36063.91396 | P48: 40932.62696 | Q48: 106541.7827 | R48: 430801.2438 | S48: 105609.4297 | W48: 0 | X48: 0 | Y48: 0 | Z48: 0 | AA48: 0 | AB48: 0 | AC48: 0 | AD48: 0 | AE48: 0 | AG48: 0 | AH48: 0 | AI48: 0 | AJ48: 0 | AK48: 0 | AL48: 0 | AM48: 0
A49: MAR (industry-wide X factor) 2020 | C49: 40891.18175 | D49: 62286.13491 | E49: 11969.11216 | F49: 36074.02234 | G49: 25727.28715 | H49: 14688.82649 | I49: 23754.065 | J49: 7527.161559 | K49: 30844.81479 | M49: 27064.75265 | N49: 270476.5511 | O49: 36656.79685 | P49: 41712.12771 | Q49: 109161.345 | R49: 444907.4623 | S49: 108365.493 | W49: 0 | X49: 0 | Y49: 0 | Z49: 0 | AA49: 0 | AB49: 0 | AC49: 0 | AD49: 0 | AE49: 0 | AG49: 0 | AH49: 0 | AI49: 0 | AJ49: 0 | AK49: 0 | AL49: 0 | AM49: 0
A50: MAR (applicable X factor) 2016 | C50: 30458.39221 | D50: 56511.66603 | E50: 9983.311486 | F50: 33046.58332 | G50: 22731.95846 | H50: 13565.26038 | I50: 22026.85063 | J50: 6824.407415 | K50: 28091.76336 | M50: 24779.53509 | N50: 250424.4396 | O50: 34705.26322 | P50: 34231.36848 | Q50: 100101.5151 | R50: 395244.8061 | S50: 98788.23029 | W50: 0 | X50: 0 | Y50: 0 | Z50: 0 | AA50: 0 | AB50: 0 | AC50: 0 | AD50: 0 | AE50: 0 | AG50: 0 | AH50: 0 | AI50: 0 | AJ50: 0 | AK50: 0 | AL50: 0 | AM50: 0
A51: MAR (applicable X factor) 2017 | C51: 34406.70138 | D51: 57688.37038 | E51: 10774.35106 | F51: 33653.51318 | G51: 23720.53936 | H51: 13786.522 | I51: 22363.28674 | J51: 6967.762855 | K51: 28649.47282 | M51: 25238.16198 | N51: 254347.0941 | O51: 35052.74047 | P51: 37089.05307 | Q51: 101914.1649 | R51: 405605.5542 | S51: 100725.2836 | W51: 0 | X51: 0 | Y51: 0 | Z51: 0 | AA51: 0 | AB51: 0 | AC51: 0 | AD51: 0 | AE51: 0 | AG51: 0 | AH51: 0 | AI51: 0 | AJ51: 0 | AK51: 0 | AL51: 0 | AM51: 0
A52: MAR (applicable X factor) 2018 | C52: 38968.78998 | D52: 59044.06506 | E52: 11658.57421 | F52: 34361.49658 | G52: 24817.04596 | H52: 14048.14952 | I52: 22764.42459 | J52: 7132.792588 | K52: 29294.90458 | M52: 25772.71147 | N52: 259008.8889 | O52: 35496.57341 | P52: 40290.72186 | Q52: 104031.8372 | R52: 417329.8358 | S52: 102969.739 | W52: 0 | X52: 0 | Y52: 0 | Z52: 0 | AA52: 0 | AB52: 0 | AC52: 0 | AD52: 0 | AE52: 0 | AG52: 0 | AH52: 0 | AI52: 0 | AJ52: 0 | AK52: 0 | AL52: 0 | AM52: 0
A53: MAR (applicable X factor) 2019 | C53: 44280.52653 | D53: 60629.80931 | E53: 12656.73636 | F53: 35199.43614 | G53: 26049.39153 | H53: 14361.68831 | I53: 23248.75469 | J53: 7325.677619 | K53: 30053.1164 | M53: 26404.89673 | N53: 264621.1367 | O53: 36063.91396 | P53: 43912.31413 | Q53: 106541.7827 | R53: 430801.2438 | S53: 105609.4297 | W53: 0 | X53: 0 | Y53: 0 | Z53: 0 | AA53: 0 | AB53: 0 | AC53: 0 | AD53: 0 | AE53: 0 | AG53: 0 | AH53: 0 | AI53: 0 | AJ53: 0 | AK53: 0 | AL53: 0 | AM53: 0
A54: MAR (applicable X factor) 2020 | C54: 50338.91604 | D54: 62286.13491 | E54: 13746.53537 | F54: 36074.02234 | G54: 27355.22614 | H54: 14688.82649 | I54: 23754.065 | J54: 7527.161559 | K54: 30844.81479 | M54: 27064.75265 | N54: 270476.5511 | O54: 36656.79685 | P54: 47880.95768 | Q54: 109161.345 | R54: 444907.4623 | S54: 108365.493 | W54: 0 | X54: 0 | Y54: 0 | Z54: 0 | AA54: 0 | AB54: 0 | AC54: 0 | AD54: 0 | AE54: 0 | AG54: 0 | AH54: 0 | AI54: 0 | AJ54: 0 | AK54: 0 | AL54: 0 | AM54: 0
A55: BBAR before tax 2016 | C55: 37686.55007 | D55: 56742.25911 | E55: 11258.66487 | F55: 32304.51082 | G55: 23603.7491 | H55: 13673.25846 | I55: 22108.11457 | J55: 7005.914968 | K55: 28328.59077 | M55: 24616.80347 | N55: 247958.6453 | O55: 34381.36842 | P55: 37798.66999 | Q55: 99427.23543 | R55: 399748.3961 | S55: 99633.73932 | W55: 0 | X55: 0 | Y55: 0 | Z55: 0 | AA55: 0 | AB55: 0 | AC55: 0 | AD55: 0 | AE55: 0 | AG55: 0 | AH55: 0 | AI55: 0 | AJ55: 0 | AK55: 0 | AL55: 0 | AM55: 0
A56: BBAR before tax 2017 | C56: 37813.71262 | D56: 57115.8418 | E56: 11288.88193 | F56: 32754.80249 | G56: 23961.81198 | H56: 13713.90803 | I56: 22146.43307 | J56: 6915.435878 | K56: 28270.92205 | M56: 24740.60779 | N56: 248570.7654 | O56: 34496.50448 | P56: 38463.07339 | Q56: 100416.833 | R56: 400165.2395 | S56: 99360.96877 | W56: 0 | X56: 0 | Y56: 0 | Z56: 0 | AA56: 0 | AB56: 0 | AC56: 0 | AD56: 0 | AE56: 0 | AG56: 0 | AH56: 0 | AI56: 0 | AJ56: 0 | AK56: 0 | AL56: 0 | AM56: 0
A57: BBAR before tax 2018 | C57: 38749.75874 | D57: 58684.84202 | E57: 11573.85335 | F57: 34265.57129 | G57: 24809.11479 | H57: 13996.39332 | I57: 22660.86044 | J57: 7050.151231 | K57: 29140.58858 | M57: 25563.5739 | N57: 256942.6814 | O57: 35309.25561 | P57: 40094.74625 | Q57: 103553.5118 | R57: 413439.8824 | S57: 102167.9002 | W57: 0 | X57: 0 | Y57: 0 | Z57: 0 | AA57: 0 | AB57: 0 | AC57: 0 | AD57: 0 | AE57: 0 | AG57: 0 | AH57: 0 | AI57: 0 | AJ57: 0 | AK57: 0 | AL57: 0 | AM57: 0
A58: BBAR before tax 2019 | C58: 39850.44093 | D58: 60876.86923 | E58: 11948.13601 | F58: 35993.6376 | G58: 25622.21423 | H58: 14352.63622 | I58: 23327.28455 | J58: 7272.173998 | K58: 30182.37628 | M58: 26677.55651 | N58: 268179.9455 | O58: 36396.49168 | P58: 41949.98696 | Q58: 107589.7303 | R58: 431595.9182 | S58: 105956.6625 | W58: 0 | X58: 0 | Y58: 0 | Z58: 0 | AA58: 0 | AB58: 0 | AC58: 0 | AD58: 0 | AE58: 0 | AG58: 0 | AH58: 0 | AI58: 0 | AJ58: 0 | AK58: 0 | AL58: 0 | AM58: 0
A59: BBAR before tax 2020 | C59: 40826.20192 | D59: 62834.74966 | E59: 12286.10583 | F59: 37419.40066 | G59: 26374.2055 | H59: 14704.85404 | I59: 23948.67461 | J59: 7504.295606 | K59: 31037.13804 | M59: 27755.15381 | N59: 279405.0593 | O59: 37489.05235 | P59: 43808.02363 | Q59: 111321.8538 | R59: 449279.9452 | S59: 109478.6633 | W59: 0 | X59: 0 | Y59: 0 | Z59: 0 | AA59: 0 | AB59: 0 | AC59: 0 | AD59: 0 | AE59: 0 | AG59: 0 | AH59: 0 | AI59: 0 | AJ59: 0 | AK59: 0 | AL59: 0 | AM59: 0
A60: Closing RAB 2016 | C60: 161761.7556 | D60: 360210.8278 | E60: 57680.18433 | F60: 240561.0992 | G60: 148118.4506 | H60: 77602.86593 | I60: 120698.9527 | J60: 41745.1932 | K60: 168303.6496 | M60: 159098.8227 | N60: 1540185.481 | O60: 189870.4149 | P60: 230926.956 | Q60: 582770.4555 | R60: 2798661.376 | S60: 589754.7243 | W60: 0 | X60: 0 | Y60: 0 | Z60: 0 | AA60: 0 | AB60: 0 | AC60: 0 | AD60: 0 | AE60: 0 | AG60: 0 | AH60: 0 | AI60: 0 | AJ60: 0 | AK60: 0 | AL60: 0 | AM60: 0
A61: Closing RAB 2017 | C61: 162740.6042 | D61: 370855.9722 | E61: 58950.66895 | F61: 259045.8891 | G61: 159200.6029 | H61: 79273.84242 | I61: 124604.3942 | J61: 41854.81975 | K61: 172156.0205 | M61: 164334.8062 | N61: 1593316.73 | O61: 193296.2097 | P61: 246807.8816 | Q61: 605394.4069 | R61: 2897609.479 | S61: 599557.5244 | W61: 0 | X61: 0 | Y61: 0 | Z61: 0 | AA61: 0 | AB61: 0 | AC61: 0 | AD61: 0 | AE61: 0 | AG61: 0 | AH61: 0 | AI61: 0 | AJ61: 0 | AK61: 0 | AL61: 0 | AM61: 0
A62: Closing RAB 2018 | C62: 164763.808 | D62: 380144.7627 | E62: 60361.94254 | F62: 272906.7563 | G62: 163773.2269 | H62: 80444.33321 | I62: 127931.9304 | J62: 42397.4204 | K62: 178040.462 | M62: 170222.2796 | N62: 1659480.014 | O62: 196490.7935 | P62: 259753.0689 | Q62: 626297.9391 | R62: 2998507.702 | S62: 614997.4572 | W62: 0 | X62: 0 | Y62: 0 | Z62: 0 | AA62: 0 | AB62: 0 | AC62: 0 | AD62: 0 | AE62: 0 | AG62: 0 | AH62: 0 | AI62: 0 | AJ62: 0 | AK62: 0 | AL62: 0 | AM62: 0
A63: Closing RAB 2019 | C63: 163416.5426 | D63: 390164.471 | E63: 61418.22493 | F63: 285729.5759 | G63: 166482.5079 | H63: 80716.7036 | I63: 130503.5958 | J63: 42957.25139 | K63: 180152.2393 | M63: 175879.4183 | N63: 1721572.056 | O63: 198752.4485 | P63: 270707.4041 | Q63: 645840.0085 | R63: 3099907.604 | S63: 625245.0654 | W63: 0 | X63: 0 | Y63: 0 | Z63: 0 | AA63: 0 | AB63: 0 | AC63: 0 | AD63: 0 | AE63: 0 | AG63: 0 | AH63: 0 | AI63: 0 | AJ63: 0 | AK63: 0 | AL63: 0 | AM63: 0
A64: Closing RAB 2020 | C64: 162399.2099 | D64: 395302.4915 | E64: 62125.31421 | F64: 292824.1191 | G64: 169322.4028 | H64: 81765.77465 | I64: 132968.139 | J64: 43783.18041 | K64: 181225.8172 | M64: 180937.2319 | N64: 1787415.856 | O64: 202156.7329 | P64: 283238.4837 | Q64: 660906.3129 | R64: 3191466.262 | S64: 633911.3469 | W64: 0 | X64: 0 | Y64: 0 | Z64: 0 | AA64: 0 | AB64: 0 | AC64: 0 | AD64: 0 | AE64: 0 | AG64: 0 | AH64: 0 | AI64: 0 | AJ64: 0 | AK64: 0 | AL64: 0 | AM64: 0
